{"text_format":"1","workbook":"xlsx","n_sheets":2,"sheets":["Range","Table"],"not_rendered":{"charts":0,"images":2,"macros":1,"external_links":0,"defined_names":6,"comments":0,"pivot_tables":0},"unopened":[],"bounds":{"document_bytes":16777216,"sheet_cells":100000,"rows_first":2000,"rows_last":500,"rows_between":2000,"halvings":0,"cell_chars":16384,"cell_head_chars":4096},"cells_cut":0,"cells_raw":0,"read":"whole","date_system":"1900"}

{"sheet":"Range","index":0,"n_rows":301,"n_cols":8,"rows_kept":301,"cut":false,"hidden":false,"merged":[]}
[null,null,null,null,"Город","Статус","Индекс","Фильтр"]
[null,"",null,null,"Москва ",{"$f":"NOT(ISERROR(SEARCH($B$2,$E2)))","v":true},{"$f":"IF($F2,COUNTIF($F$2:$F2,TRUE),\"\")","v":1},{"$f":"IFERROR(INDEX(стлГород,MATCH(ROWS($G$2:$G2),стлИндекс,0)),\"\")","v":"Москва "}]
[null,null,null,null,"Санкт-Петербург ",{"$f":"NOT(ISERROR(SEARCH($B$2,$E3)))","v":true},{"$f":"IF($F3,COUNTIF($F$2:$F3,TRUE),\"\")","v":2},{"$f":"IFERROR(INDEX(стлГород,MATCH(ROWS($G$2:$G3),стлИндекс,0)),\"\")","v":"Санкт-Петербург "}]
[null,null,null,null,"Новосибирск ",true,{"$f":"IF($F4,COUNTIF($F$2:$F4,TRUE),\"\")","v":3},{"$f":"IFERROR(INDEX(стлГород,MATCH(ROWS($G$2:$G4),стлИндекс,0)),\"\")","v":"Новосибирск "}]
[null,null,null,null,"Екатеринбург ",true,{"$f":"IF($F5,COUNTIF($F$2:$F5,TRUE),\"\")","v":4},{"$f":"IFERROR(INDEX(стлГород,MATCH(ROWS($G$2:$G5),стлИндекс,0)),\"\")","v":"Екатеринбург "}]
[null,null,null,null,"Нижний Новгород ",true,{"$f":"IF($F6,COUNTIF($F$2:$F6,TRUE),\"\")","v":5},{"$f":"IFERROR(INDEX(стлГород,MATCH(ROWS($G$2:$G6),стлИндекс,0)),\"\")","v":"Нижний Новгород "}]
[null,null,null,null,"Самара ",true,{"$f":"IF($F7,COUNTIF($F$2:$F7,TRUE),\"\")","v":6},{"$f":"IFERROR(INDEX(стлГород,MATCH(ROWS($G$2:$G7),стлИндекс,0)),\"\")","v":"Самара "}]
[null,null,null,null,"Омск ",true,{"$f":"IF($F8,COUNTIF($F$2:$F8,TRUE),\"\")","v":7},{"$f":"IFERROR(INDEX(стлГород,MATCH(ROWS($G$2:$G8),стлИндекс,0)),\"\")","v":"Омск "}]
[null,null,null,null,"Казань ",true,{"$f":"IF($F9,COUNTIF($F$2:$F9,TRUE),\"\")","v":8},{"$f":"IFERROR(INDEX(стлГород,MATCH(ROWS($G$2:$G9),стлИндекс,0)),\"\")","v":"Казань "}]
[null,null,null,null,"Челябинск ",true,{"$f":"IF($F10,COUNTIF($F$2:$F10,TRUE),\"\")","v":9},{"$f":"IFERROR(INDEX(стлГород,MATCH(ROWS($G$2:$G10),стлИндекс,0)),\"\")","v":"Челябинск "}]
[null,null,null,null,"Ростов-на-Дону ",true,{"$f":"IF($F11,COUNTIF($F$2:$F11,TRUE),\"\")","v":10},{"$f":"IFERROR(INDEX(стлГород,MATCH(ROWS($G$2:$G11),стлИндекс,0)),\"\")","v":"Ростов-на-Дону "}]
[null,null,null,null,"Уфа ",true,{"$f":"IF($F12,COUNTIF($F$2:$F12,TRUE),\"\")","v":11},{"$f":"IFERROR(INDEX(стлГород,MATCH(ROWS($G$2:$G12),стлИндекс,0)),\"\")","v":"Уфа "}]
[null,null,null,null,"Волгоград ",true,{"$f":"IF($F13,COUNTIF($F$2:$F13,TRUE),\"\")","v":12},{"$f":"IFERROR(INDEX(стлГород,MATCH(ROWS($G$2:$G13),стлИндекс,0)),\"\")","v":"Волгоград "}]
[null,null,null,null,"Пермь ",true,{"$f":"IF($F14,COUNTIF($F$2:$F14,TRUE),\"\")","v":13},{"$f":"IFERROR(INDEX(стлГород,MATCH(ROWS($G$2:$G14),стлИндекс,0)),\"\")","v":"Пермь "}]
[null,null,null,null,"Красноярск ",true,{"$f":"IF($F15,COUNTIF($F$2:$F15,TRUE),\"\")","v":14},{"$f":"IFERROR(INDEX(стлГород,MATCH(ROWS($G$2:$G15),стлИндекс,0)),\"\")","v":"Красноярск "}]
[null,null,null,null,"Воронеж ",true,{"$f":"IF($F16,COUNTIF($F$2:$F16,TRUE),\"\")","v":15},{"$f":"IFERROR(INDEX(стлГород,MATCH(ROWS($G$2:$G16),стлИндекс,0)),\"\")","v":"Воронеж "}]
[null,null,null,null,"Саратов ",true,{"$f":"IF($F17,COUNTIF($F$2:$F17,TRUE),\"\")","v":16},{"$f":"IFERROR(INDEX(стлГород,MATCH(ROWS($G$2:$G17),стлИндекс,0)),\"\")","v":"Саратов "}]
[null,null,null,null,"Краснодар ",true,{"$f":"IF($F18,COUNTIF($F$2:$F18,TRUE),\"\")","v":17},{"$f":"IFERROR(INDEX(стлГород,MATCH(ROWS($G$2:$G18),стлИндекс,0)),\"\")","v":"Краснодар "}]
[null,null,null,null,"Тольятти ",true,{"$f":"IF($F19,COUNTIF($F$2:$F19,TRUE),\"\")","v":18},{"$f":"IFERROR(INDEX(стлГород,MATCH(ROWS($G$2:$G19),стлИндекс,0)),\"\")","v":"Тольятти "}]
[null,null,null,null,"Ижевск ",true,{"$f":"IF($F20,COUNTIF($F$2:$F20,TRUE),\"\")","v":19},{"$f":"IFERROR(INDEX(стлГород,MATCH(ROWS($G$2:$G20),стлИндекс,0)),\"\")","v":"Ижевск "}]
[null,null,null,null,"Ульяновск ",true,{"$f":"IF($F21,COUNTIF($F$2:$F21,TRUE),\"\")","v":20},{"$f":"IFERROR(INDEX(стлГород,MATCH(ROWS($G$2:$G21),стлИндекс,0)),\"\")","v":"Ульяновск "}]
[null,null,null,null,"Барнаул ",true,{"$f":"IF($F22,COUNTIF($F$2:$F22,TRUE),\"\")","v":21},{"$f":"IFERROR(INDEX(стлГород,MATCH(ROWS($G$2:$G22),стлИндекс,0)),\"\")","v":"Барнаул "}]
[null,null,null,null,"Владивосток ",true,{"$f":"IF($F23,COUNTIF($F$2:$F23,TRUE),\"\")","v":22},{"$f":"IFERROR(INDEX(стлГород,MATCH(ROWS($G$2:$G23),стлИндекс,0)),\"\")","v":"Владивосток "}]
[null,null,null,null,"Ярославль ",true,{"$f":"IF($F24,COUNTIF($F$2:$F24,TRUE),\"\")","v":23},{"$f":"IFERROR(INDEX(стлГород,MATCH(ROWS($G$2:$G24),стлИндекс,0)),\"\")","v":"Ярославль "}]
[null,null,null,null,"Иркутск ",true,{"$f":"IF($F25,COUNTIF($F$2:$F25,TRUE),\"\")","v":24},{"$f":"IFERROR(INDEX(стлГород,MATCH(ROWS($G$2:$G25),стлИндекс,0)),\"\")","v":"Иркутск "}]
[null,null,null,null,"Тюмень ",true,{"$f":"IF($F26,COUNTIF($F$2:$F26,TRUE),\"\")","v":25},{"$f":"IFERROR(INDEX(стлГород,MATCH(ROWS($G$2:$G26),стлИндекс,0)),\"\")","v":"Тюмень "}]
[null,null,null,null,"Махачкала ",true,{"$f":"IF($F27,COUNTIF($F$2:$F27,TRUE),\"\")","v":26},{"$f":"IFERROR(INDEX(стлГород,MATCH(ROWS($G$2:$G27),стлИндекс,0)),\"\")","v":"Махачкала "}]
[null,null,null,null,"Хабаровск ",true,{"$f":"IF($F28,COUNTIF($F$2:$F28,TRUE),\"\")","v":27},{"$f":"IFERROR(INDEX(стлГород,MATCH(ROWS($G$2:$G28),стлИндекс,0)),\"\")","v":"Хабаровск "}]
[null,null,null,null,"Оренбург ",true,{"$f":"IF($F29,COUNTIF($F$2:$F29,TRUE),\"\")","v":28},{"$f":"IFERROR(INDEX(стлГород,MATCH(ROWS($G$2:$G29),стлИндекс,0)),\"\")","v":"Оренбург "}]
[null,null,null,null,"Новокузнецк ",true,{"$f":"IF($F30,COUNTIF($F$2:$F30,TRUE),\"\")","v":29},{"$f":"IFERROR(INDEX(стлГород,MATCH(ROWS($G$2:$G30),стлИндекс,0)),\"\")","v":"Новокузнецк "}]
[null,null,null,null,"Кемерово ",true,{"$f":"IF($F31,COUNTIF($F$2:$F31,TRUE),\"\")","v":30},{"$f":"IFERROR(INDEX(стлГород,MATCH(ROWS($G$2:$G31),стлИндекс,0)),\"\")","v":"Кемерово "}]
[null,null,null,null,"Рязань ",true,{"$f":"IF($F32,COUNTIF($F$2:$F32,TRUE),\"\")","v":31},{"$f":"IFERROR(INDEX(стлГород,MATCH(ROWS($G$2:$G32),стлИндекс,0)),\"\")","v":"Рязань "}]
[null,null,null,null,"Томск ",true,{"$f":"IF($F33,COUNTIF($F$2:$F33,TRUE),\"\")","v":32},{"$f":"IFERROR(INDEX(стлГород,MATCH(ROWS($G$2:$G33),стлИндекс,0)),\"\")","v":"Томск "}]
[null,null,null,null,"Астрахань ",true,{"$f":"IF($F34,COUNTIF($F$2:$F34,TRUE),\"\")","v":33},{"$f":"IFERROR(INDEX(стлГород,MATCH(ROWS($G$2:$G34),стлИндекс,0)),\"\")","v":"Астрахань "}]
[null,null,null,null,"Пенза ",true,{"$f":"IF($F35,COUNTIF($F$2:$F35,TRUE),\"\")","v":34},{"$f":"IFERROR(INDEX(стлГород,MATCH(ROWS($G$2:$G35),стлИндекс,0)),\"\")","v":"Пенза "}]
[null,null,null,null,"Набережные Челны ",true,{"$f":"IF($F36,COUNTIF($F$2:$F36,TRUE),\"\")","v":35},{"$f":"IFERROR(INDEX(стлГород,MATCH(ROWS($G$2:$G36),стлИндекс,0)),\"\")","v":"Набережные Челны "}]
[null,null,null,null,"Липецк ",true,{"$f":"IF($F37,COUNTIF($F$2:$F37,TRUE),\"\")","v":36},{"$f":"IFERROR(INDEX(стлГород,MATCH(ROWS($G$2:$G37),стлИндекс,0)),\"\")","v":"Липецк "}]
[null,null,null,null,"Тула ",true,{"$f":"IF($F38,COUNTIF($F$2:$F38,TRUE),\"\")","v":37},{"$f":"IFERROR(INDEX(стлГород,MATCH(ROWS($G$2:$G38),стлИндекс,0)),\"\")","v":"Тула "}]
[null,null,null,null,"Киров ",true,{"$f":"IF($F39,COUNTIF($F$2:$F39,TRUE),\"\")","v":38},{"$f":"IFERROR(INDEX(стлГород,MATCH(ROWS($G$2:$G39),стлИндекс,0)),\"\")","v":"Киров "}]
[null,null,null,null,"Чебоксары ",true,{"$f":"IF($F40,COUNTIF($F$2:$F40,TRUE),\"\")","v":39},{"$f":"IFERROR(INDEX(стлГород,MATCH(ROWS($G$2:$G40),стлИндекс,0)),\"\")","v":"Чебоксары "}]
[null,null,null,null,"Калининград ",true,{"$f":"IF($F41,COUNTIF($F$2:$F41,TRUE),\"\")","v":40},{"$f":"IFERROR(INDEX(стлГород,MATCH(ROWS($G$2:$G41),стлИндекс,0)),\"\")","v":"Калининград "}]
[null,null,null,null,"Брянск ",true,{"$f":"IF($F42,COUNTIF($F$2:$F42,TRUE),\"\")","v":41},{"$f":"IFERROR(INDEX(стлГород,MATCH(ROWS($G$2:$G42),стлИндекс,0)),\"\")","v":"Брянск "}]
[null,null,null,null,"Курск ",true,{"$f":"IF($F43,COUNTIF($F$2:$F43,TRUE),\"\")","v":42},{"$f":"IFERROR(INDEX(стлГород,MATCH(ROWS($G$2:$G43),стлИндекс,0)),\"\")","v":"Курск "}]
[null,null,null,null,"Иваново ",true,{"$f":"IF($F44,COUNTIF($F$2:$F44,TRUE),\"\")","v":43},{"$f":"IFERROR(INDEX(стлГород,MATCH(ROWS($G$2:$G44),стлИндекс,0)),\"\")","v":"Иваново "}]
[null,null,null,null,"Магнитогорск ",true,{"$f":"IF($F45,COUNTIF($F$2:$F45,TRUE),\"\")","v":44},{"$f":"IFERROR(INDEX(стлГород,MATCH(ROWS($G$2:$G45),стлИндекс,0)),\"\")","v":"Магнитогорск "}]
[null,null,null,null,"Улан-Удэ ",true,{"$f":"IF($F46,COUNTIF($F$2:$F46,TRUE),\"\")","v":45},{"$f":"IFERROR(INDEX(стлГород,MATCH(ROWS($G$2:$G46),стлИндекс,0)),\"\")","v":"Улан-Удэ "}]
[null,null,null,null,"Тверь ",true,{"$f":"IF($F47,COUNTIF($F$2:$F47,TRUE),\"\")","v":46},{"$f":"IFERROR(INDEX(стлГород,MATCH(ROWS($G$2:$G47),стлИндекс,0)),\"\")","v":"Тверь "}]
[null,null,null,null,"Ставрополь ",true,{"$f":"IF($F48,COUNTIF($F$2:$F48,TRUE),\"\")","v":47},{"$f":"IFERROR(INDEX(стлГород,MATCH(ROWS($G$2:$G48),стлИндекс,0)),\"\")","v":"Ставрополь "}]
[null,null,null,null,"Симферополь ",true,{"$f":"IF($F49,COUNTIF($F$2:$F49,TRUE),\"\")","v":48},{"$f":"IFERROR(INDEX(стлГород,MATCH(ROWS($G$2:$G49),стлИндекс,0)),\"\")","v":"Симферополь "}]
[null,null,null,null,"Нижний Тагил ",true,{"$f":"IF($F50,COUNTIF($F$2:$F50,TRUE),\"\")","v":49},{"$f":"IFERROR(INDEX(стлГород,MATCH(ROWS($G$2:$G50),стлИндекс,0)),\"\")","v":"Нижний Тагил "}]
[null,null,null,null,"Белгород ",true,{"$f":"IF($F51,COUNTIF($F$2:$F51,TRUE),\"\")","v":50},{"$f":"IFERROR(INDEX(стлГород,MATCH(ROWS($G$2:$G51),стлИндекс,0)),\"\")","v":"Белгород "}]
[null,null,null,null,"Архангельск ",true,{"$f":"IF($F52,COUNTIF($F$2:$F52,TRUE),\"\")","v":51},{"$f":"IFERROR(INDEX(стлГород,MATCH(ROWS($G$2:$G52),стлИндекс,0)),\"\")","v":"Архангельск "}]
[null,null,null,null,"Владимир ",true,{"$f":"IF($F53,COUNTIF($F$2:$F53,TRUE),\"\")","v":52},{"$f":"IFERROR(INDEX(стлГород,MATCH(ROWS($G$2:$G53),стлИндекс,0)),\"\")","v":"Владимир "}]
[null,null,null,null,"Севастополь ",true,{"$f":"IF($F54,COUNTIF($F$2:$F54,TRUE),\"\")","v":53},{"$f":"IFERROR(INDEX(стлГород,MATCH(ROWS($G$2:$G54),стлИндекс,0)),\"\")","v":"Севастополь "}]
[null,null,null,null,"Сочи ",true,{"$f":"IF($F55,COUNTIF($F$2:$F55,TRUE),\"\")","v":54},{"$f":"IFERROR(INDEX(стлГород,MATCH(ROWS($G$2:$G55),стлИндекс,0)),\"\")","v":"Сочи "}]
[null,null,null,null,"Курган ",true,{"$f":"IF($F56,COUNTIF($F$2:$F56,TRUE),\"\")","v":55},{"$f":"IFERROR(INDEX(стлГород,MATCH(ROWS($G$2:$G56),стлИндекс,0)),\"\")","v":"Курган "}]
[null,null,null,null,"Смоленск ",true,{"$f":"IF($F57,COUNTIF($F$2:$F57,TRUE),\"\")","v":56},{"$f":"IFERROR(INDEX(стлГород,MATCH(ROWS($G$2:$G57),стлИндекс,0)),\"\")","v":"Смоленск "}]
[null,null,null,null,"Калуга ",true,{"$f":"IF($F58,COUNTIF($F$2:$F58,TRUE),\"\")","v":57},{"$f":"IFERROR(INDEX(стлГород,MATCH(ROWS($G$2:$G58),стлИндекс,0)),\"\")","v":"Калуга "}]
[null,null,null,null,"Чита ",true,{"$f":"IF($F59,COUNTIF($F$2:$F59,TRUE),\"\")","v":58},{"$f":"IFERROR(INDEX(стлГород,MATCH(ROWS($G$2:$G59),стлИндекс,0)),\"\")","v":"Чита "}]
[null,null,null,null,"Орёл ",true,{"$f":"IF($F60,COUNTIF($F$2:$F60,TRUE),\"\")","v":59},{"$f":"IFERROR(INDEX(стлГород,MATCH(ROWS($G$2:$G60),стлИндекс,0)),\"\")","v":"Орёл "}]
[null,null,null,null,"Волжский ",true,{"$f":"IF($F61,COUNTIF($F$2:$F61,TRUE),\"\")","v":60},{"$f":"IFERROR(INDEX(стлГород,MATCH(ROWS($G$2:$G61),стлИндекс,0)),\"\")","v":"Волжский "}]
[null,null,null,null,"Череповец ",true,{"$f":"IF($F62,COUNTIF($F$2:$F62,TRUE),\"\")","v":61},{"$f":"IFERROR(INDEX(стлГород,MATCH(ROWS($G$2:$G62),стлИндекс,0)),\"\")","v":"Череповец "}]
[null,null,null,null,"Владикавказ ",true,{"$f":"IF($F63,COUNTIF($F$2:$F63,TRUE),\"\")","v":62},{"$f":"IFERROR(INDEX(стлГород,MATCH(ROWS($G$2:$G63),стлИндекс,0)),\"\")","v":"Владикавказ "}]
[null,null,null,null,"Мурманск ",true,{"$f":"IF($F64,COUNTIF($F$2:$F64,TRUE),\"\")","v":63},{"$f":"IFERROR(INDEX(стлГород,MATCH(ROWS($G$2:$G64),стлИндекс,0)),\"\")","v":"Мурманск "}]
[null,null,null,null,"Сургут ",true,{"$f":"IF($F65,COUNTIF($F$2:$F65,TRUE),\"\")","v":64},{"$f":"IFERROR(INDEX(стлГород,MATCH(ROWS($G$2:$G65),стлИндекс,0)),\"\")","v":"Сургут "}]
[null,null,null,null,"Вологда ",true,{"$f":"IF($F66,COUNTIF($F$2:$F66,TRUE),\"\")","v":65},{"$f":"IFERROR(INDEX(стлГород,MATCH(ROWS($G$2:$G66),стлИндекс,0)),\"\")","v":"Вологда "}]
[null,null,null,null,"Саранск ",{"$f":"NOT(ISERROR(SEARCH($B$2,$E67)))","v":true},{"$f":"IF($F67,COUNTIF($F$2:$F67,TRUE),\"\")","v":66},{"$f":"IFERROR(INDEX(стлГород,MATCH(ROWS($G$2:$G67),стлИндекс,0)),\"\")","v":"Саранск "}]
[null,null,null,null,"Тамбов ",true,{"$f":"IF($F68,COUNTIF($F$2:$F68,TRUE),\"\")","v":67},{"$f":"IFERROR(INDEX(стлГород,MATCH(ROWS($G$2:$G68),стлИндекс,0)),\"\")","v":"Тамбов "}]
[null,null,null,null,"Стерлитамак ",true,{"$f":"IF($F69,COUNTIF($F$2:$F69,TRUE),\"\")","v":68},{"$f":"IFERROR(INDEX(стлГород,MATCH(ROWS($G$2:$G69),стлИндекс,0)),\"\")","v":"Стерлитамак "}]
[null,null,null,null,"Грозный ",true,{"$f":"IF($F70,COUNTIF($F$2:$F70,TRUE),\"\")","v":69},{"$f":"IFERROR(INDEX(стлГород,MATCH(ROWS($G$2:$G70),стлИндекс,0)),\"\")","v":"Грозный "}]
[null,null,null,null,"Якутск ",true,{"$f":"IF($F71,COUNTIF($F$2:$F71,TRUE),\"\")","v":70},{"$f":"IFERROR(INDEX(стлГород,MATCH(ROWS($G$2:$G71),стлИндекс,0)),\"\")","v":"Якутск "}]
[null,null,null,null,"Кострома ",true,{"$f":"IF($F72,COUNTIF($F$2:$F72,TRUE),\"\")","v":71},{"$f":"IFERROR(INDEX(стлГород,MATCH(ROWS($G$2:$G72),стлИндекс,0)),\"\")","v":"Кострома "}]
[null,null,null,null,"Комсомольск-на-Амуре ",true,{"$f":"IF($F73,COUNTIF($F$2:$F73,TRUE),\"\")","v":72},{"$f":"IFERROR(INDEX(стлГород,MATCH(ROWS($G$2:$G73),стлИндекс,0)),\"\")","v":"Комсомольск-на-Амуре "}]
[null,null,null,null,"Петрозаводск ",true,{"$f":"IF($F74,COUNTIF($F$2:$F74,TRUE),\"\")","v":73},{"$f":"IFERROR(INDEX(стлГород,MATCH(ROWS($G$2:$G74),стлИндекс,0)),\"\")","v":"Петрозаводск "}]
[null,null,null,null,"Таганрог ",true,{"$f":"IF($F75,COUNTIF($F$2:$F75,TRUE),\"\")","v":74},{"$f":"IFERROR(INDEX(стлГород,MATCH(ROWS($G$2:$G75),стлИндекс,0)),\"\")","v":"Таганрог "}]
[null,null,null,null,"Нижневартовск ",true,{"$f":"IF($F76,COUNTIF($F$2:$F76,TRUE),\"\")","v":75},{"$f":"IFERROR(INDEX(стлГород,MATCH(ROWS($G$2:$G76),стлИндекс,0)),\"\")","v":"Нижневартовск "}]
[null,null,null,null,"Йошкар-Ола ",true,{"$f":"IF($F77,COUNTIF($F$2:$F77,TRUE),\"\")","v":76},{"$f":"IFERROR(INDEX(стлГород,MATCH(ROWS($G$2:$G77),стлИндекс,0)),\"\")","v":"Йошкар-Ола "}]
[null,null,null,null,"Братск ",true,{"$f":"IF($F78,COUNTIF($F$2:$F78,TRUE),\"\")","v":77},{"$f":"IFERROR(INDEX(стлГород,MATCH(ROWS($G$2:$G78),стлИндекс,0)),\"\")","v":"Братск "}]
[null,null,null,null,"Новороссийск ",true,{"$f":"IF($F79,COUNTIF($F$2:$F79,TRUE),\"\")","v":78},{"$f":"IFERROR(INDEX(стлГород,MATCH(ROWS($G$2:$G79),стлИндекс,0)),\"\")","v":"Новороссийск "}]
[null,null,null,null,"Дзержинск ",true,{"$f":"IF($F80,COUNTIF($F$2:$F80,TRUE),\"\")","v":79},{"$f":"IFERROR(INDEX(стлГород,MATCH(ROWS($G$2:$G80),стлИндекс,0)),\"\")","v":"Дзержинск "}]
[null,null,null,null,"Шахты ",true,{"$f":"IF($F81,COUNTIF($F$2:$F81,TRUE),\"\")","v":80},{"$f":"IFERROR(INDEX(стлГород,MATCH(ROWS($G$2:$G81),стлИндекс,0)),\"\")","v":"Шахты "}]
[null,null,null,null,"Нальчик ",true,{"$f":"IF($F82,COUNTIF($F$2:$F82,TRUE),\"\")","v":81},{"$f":"IFERROR(INDEX(стлГород,MATCH(ROWS($G$2:$G82),стлИндекс,0)),\"\")","v":"Нальчик "}]
[null,null,null,null,"Орск ",true,{"$f":"IF($F83,COUNTIF($F$2:$F83,TRUE),\"\")","v":82},{"$f":"IFERROR(INDEX(стлГород,MATCH(ROWS($G$2:$G83),стлИндекс,0)),\"\")","v":"Орск "}]
[null,null,null,null,"Сыктывкар ",true,{"$f":"IF($F84,COUNTIF($F$2:$F84,TRUE),\"\")","v":83},{"$f":"IFERROR(INDEX(стлГород,MATCH(ROWS($G$2:$G84),стлИндекс,0)),\"\")","v":"Сыктывкар "}]
[null,null,null,null,"Нижнекамск ",true,{"$f":"IF($F85,COUNTIF($F$2:$F85,TRUE),\"\")","v":84},{"$f":"IFERROR(INDEX(стлГород,MATCH(ROWS($G$2:$G85),стлИндекс,0)),\"\")","v":"Нижнекамск "}]
[null,null,null,null,"Ангарск ",true,{"$f":"IF($F86,COUNTIF($F$2:$F86,TRUE),\"\")","v":85},{"$f":"IFERROR(INDEX(стлГород,MATCH(ROWS($G$2:$G86),стлИндекс,0)),\"\")","v":"Ангарск "}]
[null,null,null,null,"Старый Оскол ",true,{"$f":"IF($F87,COUNTIF($F$2:$F87,TRUE),\"\")","v":86},{"$f":"IFERROR(INDEX(стлГород,MATCH(ROWS($G$2:$G87),стлИндекс,0)),\"\")","v":"Старый Оскол "}]
[null,null,null,null,"Великий Новгород ",true,{"$f":"IF($F88,COUNTIF($F$2:$F88,TRUE),\"\")","v":87},{"$f":"IFERROR(INDEX(стлГород,MATCH(ROWS($G$2:$G88),стлИндекс,0)),\"\")","v":"Великий Новгород "}]
[null,null,null,null,"Балашиха ",true,{"$f":"IF($F89,COUNTIF($F$2:$F89,TRUE),\"\")","v":88},{"$f":"IFERROR(INDEX(стлГород,MATCH(ROWS($G$2:$G89),стлИндекс,0)),\"\")","v":"Балашиха "}]
[null,null,null,null,"Благовещенск ",true,{"$f":"IF($F90,COUNTIF($F$2:$F90,TRUE),\"\")","v":89},{"$f":"IFERROR(INDEX(стлГород,MATCH(ROWS($G$2:$G90),стлИндекс,0)),\"\")","v":"Благовещенск "}]
[null,null,null,null,"Прокопьевск ",true,{"$f":"IF($F91,COUNTIF($F$2:$F91,TRUE),\"\")","v":90},{"$f":"IFERROR(INDEX(стлГород,MATCH(ROWS($G$2:$G91),стлИндекс,0)),\"\")","v":"Прокопьевск "}]
[null,null,null,null,"Бийск ",true,{"$f":"IF($F92,COUNTIF($F$2:$F92,TRUE),\"\")","v":91},{"$f":"IFERROR(INDEX(стлГород,MATCH(ROWS($G$2:$G92),стлИндекс,0)),\"\")","v":"Бийск "}]
[null,null,null,null,"Химки ",true,{"$f":"IF($F93,COUNTIF($F$2:$F93,TRUE),\"\")","v":92},{"$f":"IFERROR(INDEX(стлГород,MATCH(ROWS($G$2:$G93),стлИндекс,0)),\"\")","v":"Химки "}]
[null,null,null,null,"Псков ",true,{"$f":"IF($F94,COUNTIF($F$2:$F94,TRUE),\"\")","v":93},{"$f":"IFERROR(INDEX(стлГород,MATCH(ROWS($G$2:$G94),стлИндекс,0)),\"\")","v":"Псков "}]
[null,null,null,null,"Энгельс ",true,{"$f":"IF($F95,COUNTIF($F$2:$F95,TRUE),\"\")","v":94},{"$f":"IFERROR(INDEX(стлГород,MATCH(ROWS($G$2:$G95),стлИндекс,0)),\"\")","v":"Энгельс "}]
[null,null,null,null,"Рыбинск ",true,{"$f":"IF($F96,COUNTIF($F$2:$F96,TRUE),\"\")","v":95},{"$f":"IFERROR(INDEX(стлГород,MATCH(ROWS($G$2:$G96),стлИндекс,0)),\"\")","v":"Рыбинск "}]
[null,null,null,null,"Балаково ",true,{"$f":"IF($F97,COUNTIF($F$2:$F97,TRUE),\"\")","v":96},{"$f":"IFERROR(INDEX(стлГород,MATCH(ROWS($G$2:$G97),стлИндекс,0)),\"\")","v":"Балаково "}]
[null,null,null,null,"Северодвинск ",true,{"$f":"IF($F98,COUNTIF($F$2:$F98,TRUE),\"\")","v":97},{"$f":"IFERROR(INDEX(стлГород,MATCH(ROWS($G$2:$G98),стлИндекс,0)),\"\")","v":"Северодвинск "}]
[null,null,null,null,"Армавир ",true,{"$f":"IF($F99,COUNTIF($F$2:$F99,TRUE),\"\")","v":98},{"$f":"IFERROR(INDEX(стлГород,MATCH(ROWS($G$2:$G99),стлИндекс,0)),\"\")","v":"Армавир "}]
[null,null,null,null,"Подольск ",true,{"$f":"IF($F100,COUNTIF($F$2:$F100,TRUE),\"\")","v":99},{"$f":"IFERROR(INDEX(стлГород,MATCH(ROWS($G$2:$G100),стлИндекс,0)),\"\")","v":"Подольск "}]
[null,null,null,null,"Королёв ",true,{"$f":"IF($F101,COUNTIF($F$2:$F101,TRUE),\"\")","v":100},{"$f":"IFERROR(INDEX(стлГород,MATCH(ROWS($G$2:$G101),стлИндекс,0)),\"\")","v":"Королёв "}]
[null,null,null,null,"Южно-Сахалинск ",true,{"$f":"IF($F102,COUNTIF($F$2:$F102,TRUE),\"\")","v":101},{"$f":"IFERROR(INDEX(стлГород,MATCH(ROWS($G$2:$G102),стлИндекс,0)),\"\")","v":"Южно-Сахалинск "}]
[null,null,null,null,"Петропавловск-Камчатский ",true,{"$f":"IF($F103,COUNTIF($F$2:$F103,TRUE),\"\")","v":102},{"$f":"IFERROR(INDEX(стлГород,MATCH(ROWS($G$2:$G103),стлИндекс,0)),\"\")","v":"Петропавловск-Камчатский "}]
[null,null,null,null,"Сызрань ",true,{"$f":"IF($F104,COUNTIF($F$2:$F104,TRUE),\"\")","v":103},{"$f":"IFERROR(INDEX(стлГород,MATCH(ROWS($G$2:$G104),стлИндекс,0)),\"\")","v":"Сызрань "}]
[null,null,null,null,"Норильск ",true,{"$f":"IF($F105,COUNTIF($F$2:$F105,TRUE),\"\")","v":104},{"$f":"IFERROR(INDEX(стлГород,MATCH(ROWS($G$2:$G105),стлИндекс,0)),\"\")","v":"Норильск "}]
[null,null,null,null,"Златоуст ",true,{"$f":"IF($F106,COUNTIF($F$2:$F106,TRUE),\"\")","v":105},{"$f":"IFERROR(INDEX(стлГород,MATCH(ROWS($G$2:$G106),стлИндекс,0)),\"\")","v":"Златоуст "}]
[null,null,null,null,"Каменск-Уральский ",true,{"$f":"IF($F107,COUNTIF($F$2:$F107,TRUE),\"\")","v":106},{"$f":"IFERROR(INDEX(стлГород,MATCH(ROWS($G$2:$G107),стлИндекс,0)),\"\")","v":"Каменск-Уральский "}]
[null,null,null,null,"Мытищи ",true,{"$f":"IF($F108,COUNTIF($F$2:$F108,TRUE),\"\")","v":107},{"$f":"IFERROR(INDEX(стлГород,MATCH(ROWS($G$2:$G108),стлИндекс,0)),\"\")","v":"Мытищи "}]
[null,null,null,null,"Люберцы ",true,{"$f":"IF($F109,COUNTIF($F$2:$F109,TRUE),\"\")","v":108},{"$f":"IFERROR(INDEX(стлГород,MATCH(ROWS($G$2:$G109),стлИндекс,0)),\"\")","v":"Люберцы "}]
[null,null,null,null,"Волгодонск ",true,{"$f":"IF($F110,COUNTIF($F$2:$F110,TRUE),\"\")","v":109},{"$f":"IFERROR(INDEX(стлГород,MATCH(ROWS($G$2:$G110),стлИндекс,0)),\"\")","v":"Волгодонск "}]
[null,null,null,null,"Новочеркасск ",true,{"$f":"IF($F111,COUNTIF($F$2:$F111,TRUE),\"\")","v":110},{"$f":"IFERROR(INDEX(стлГород,MATCH(ROWS($G$2:$G111),стлИндекс,0)),\"\")","v":"Новочеркасск "}]
[null,null,null,null,"Абакан ",true,{"$f":"IF($F112,COUNTIF($F$2:$F112,TRUE),\"\")","v":111},{"$f":"IFERROR(INDEX(стлГород,MATCH(ROWS($G$2:$G112),стлИндекс,0)),\"\")","v":"Абакан "}]
[null,null,null,null,"Находка ",true,{"$f":"IF($F113,COUNTIF($F$2:$F113,TRUE),\"\")","v":112},{"$f":"IFERROR(INDEX(стлГород,MATCH(ROWS($G$2:$G113),стлИндекс,0)),\"\")","v":"Находка "}]
[null,null,null,null,"Уссурийск ",true,{"$f":"IF($F114,COUNTIF($F$2:$F114,TRUE),\"\")","v":113},{"$f":"IFERROR(INDEX(стлГород,MATCH(ROWS($G$2:$G114),стлИндекс,0)),\"\")","v":"Уссурийск "}]
[null,null,null,null,"Березники ",true,{"$f":"IF($F115,COUNTIF($F$2:$F115,TRUE),\"\")","v":114},{"$f":"IFERROR(INDEX(стлГород,MATCH(ROWS($G$2:$G115),стлИндекс,0)),\"\")","v":"Березники "}]
[null,null,null,null,"Салават ",true,{"$f":"IF($F116,COUNTIF($F$2:$F116,TRUE),\"\")","v":115},{"$f":"IFERROR(INDEX(стлГород,MATCH(ROWS($G$2:$G116),стлИндекс,0)),\"\")","v":"Салават "}]
[null,null,null,null,"Электросталь ",true,{"$f":"IF($F117,COUNTIF($F$2:$F117,TRUE),\"\")","v":116},{"$f":"IFERROR(INDEX(стлГород,MATCH(ROWS($G$2:$G117),стлИндекс,0)),\"\")","v":"Электросталь "}]
[null,null,null,null,"Миасс ",true,{"$f":"IF($F118,COUNTIF($F$2:$F118,TRUE),\"\")","v":117},{"$f":"IFERROR(INDEX(стлГород,MATCH(ROWS($G$2:$G118),стлИндекс,0)),\"\")","v":"Миасс "}]
[null,null,null,null,"Первоуральск ",true,{"$f":"IF($F119,COUNTIF($F$2:$F119,TRUE),\"\")","v":118},{"$f":"IFERROR(INDEX(стлГород,MATCH(ROWS($G$2:$G119),стлИндекс,0)),\"\")","v":"Первоуральск "}]
[null,null,null,null,"Рубцовск ",true,{"$f":"IF($F120,COUNTIF($F$2:$F120,TRUE),\"\")","v":119},{"$f":"IFERROR(INDEX(стлГород,MATCH(ROWS($G$2:$G120),стлИндекс,0)),\"\")","v":"Рубцовск "}]
[null,null,null,null,"Альметьевск ",true,{"$f":"IF($F121,COUNTIF($F$2:$F121,TRUE),\"\")","v":120},{"$f":"IFERROR(INDEX(стлГород,MATCH(ROWS($G$2:$G121),стлИндекс,0)),\"\")","v":"Альметьевск "}]
[null,null,null,null,"Ковров ",true,{"$f":"IF($F122,COUNTIF($F$2:$F122,TRUE),\"\")","v":121},{"$f":"IFERROR(INDEX(стлГород,MATCH(ROWS($G$2:$G122),стлИндекс,0)),\"\")","v":"Ковров "}]
[null,null,null,null,"Коломна ",true,{"$f":"IF($F123,COUNTIF($F$2:$F123,TRUE),\"\")","v":122},{"$f":"IFERROR(INDEX(стлГород,MATCH(ROWS($G$2:$G123),стлИндекс,0)),\"\")","v":"Коломна "}]
[null,null,null,null,"Керчь",true,{"$f":"IF($F124,COUNTIF($F$2:$F124,TRUE),\"\")","v":123},{"$f":"IFERROR(INDEX(стлГород,MATCH(ROWS($G$2:$G124),стлИндекс,0)),\"\")","v":"Керчь"}]
[null,null,null,null,"Майкоп ",true,{"$f":"IF($F125,COUNTIF($F$2:$F125,TRUE),\"\")","v":124},{"$f":"IFERROR(INDEX(стлГород,MATCH(ROWS($G$2:$G125),стлИндекс,0)),\"\")","v":"Майкоп "}]
[null,null,null,null,"Пятигорск ",true,{"$f":"IF($F126,COUNTIF($F$2:$F126,TRUE),\"\")","v":125},{"$f":"IFERROR(INDEX(стлГород,MATCH(ROWS($G$2:$G126),стлИндекс,0)),\"\")","v":"Пятигорск "}]
[null,null,null,null,"Одинцово ",true,{"$f":"IF($F127,COUNTIF($F$2:$F127,TRUE),\"\")","v":126},{"$f":"IFERROR(INDEX(стлГород,MATCH(ROWS($G$2:$G127),стлИндекс,0)),\"\")","v":"Одинцово "}]
[null,null,null,null,"Колпино ",true,{"$f":"IF($F128,COUNTIF($F$2:$F128,TRUE),\"\")","v":127},{"$f":"IFERROR(INDEX(стлГород,MATCH(ROWS($G$2:$G128),стлИндекс,0)),\"\")","v":"Колпино "}]
[null,null,null,null,"Копейск ",true,{"$f":"IF($F129,COUNTIF($F$2:$F129,TRUE),\"\")","v":128},{"$f":"IFERROR(INDEX(стлГород,MATCH(ROWS($G$2:$G129),стлИндекс,0)),\"\")","v":"Копейск "}]
[null,null,null,null,"Хасавюрт ",true,{"$f":"IF($F130,COUNTIF($F$2:$F130,TRUE),\"\")","v":129},{"$f":"IFERROR(INDEX(стлГород,MATCH(ROWS($G$2:$G130),стлИндекс,0)),\"\")","v":"Хасавюрт "}]
[null,null,null,null,"Железнодорожный ",{"$f":"NOT(ISERROR(SEARCH($B$2,$E131)))","v":true},{"$f":"IF($F131,COUNTIF($F$2:$F131,TRUE),\"\")","v":130},{"$f":"IFERROR(INDEX(стлГород,MATCH(ROWS($G$2:$G131),стлИндекс,0)),\"\")","v":"Железнодорожный "}]
[null,null,null,null,"Новомосковск ",true,{"$f":"IF($F132,COUNTIF($F$2:$F132,TRUE),\"\")","v":131},{"$f":"IFERROR(INDEX(стлГород,MATCH(ROWS($G$2:$G132),стлИндекс,0)),\"\")","v":"Новомосковск "}]
[null,null,null,null,"Кисловодск ",true,{"$f":"IF($F133,COUNTIF($F$2:$F133,TRUE),\"\")","v":132},{"$f":"IFERROR(INDEX(стлГород,MATCH(ROWS($G$2:$G133),стлИндекс,0)),\"\")","v":"Кисловодск "}]
[null,null,null,null,"Серпухов ",true,{"$f":"IF($F134,COUNTIF($F$2:$F134,TRUE),\"\")","v":133},{"$f":"IFERROR(INDEX(стлГород,MATCH(ROWS($G$2:$G134),стлИндекс,0)),\"\")","v":"Серпухов "}]
[null,null,null,null,"Новочебоксарск ",true,{"$f":"IF($F135,COUNTIF($F$2:$F135,TRUE),\"\")","v":134},{"$f":"IFERROR(INDEX(стлГород,MATCH(ROWS($G$2:$G135),стлИндекс,0)),\"\")","v":"Новочебоксарск "}]
[null,null,null,null,"Нефтеюганск ",true,{"$f":"IF($F136,COUNTIF($F$2:$F136,TRUE),\"\")","v":135},{"$f":"IFERROR(INDEX(стлГород,MATCH(ROWS($G$2:$G136),стлИндекс,0)),\"\")","v":"Нефтеюганск "}]
[null,null,null,null,"Димитровград ",true,{"$f":"IF($F137,COUNTIF($F$2:$F137,TRUE),\"\")","v":136},{"$f":"IFERROR(INDEX(стлГород,MATCH(ROWS($G$2:$G137),стлИндекс,0)),\"\")","v":"Димитровград "}]
[null,null,null,null,"Нефтекамск ",true,{"$f":"IF($F138,COUNTIF($F$2:$F138,TRUE),\"\")","v":137},{"$f":"IFERROR(INDEX(стлГород,MATCH(ROWS($G$2:$G138),стлИндекс,0)),\"\")","v":"Нефтекамск "}]
[null,null,null,null,"Черкесск ",true,{"$f":"IF($F139,COUNTIF($F$2:$F139,TRUE),\"\")","v":138},{"$f":"IFERROR(INDEX(стлГород,MATCH(ROWS($G$2:$G139),стлИндекс,0)),\"\")","v":"Черкесск "}]
[null,null,null,null,"Орехово-Зуево ",true,{"$f":"IF($F140,COUNTIF($F$2:$F140,TRUE),\"\")","v":139},{"$f":"IFERROR(INDEX(стлГород,MATCH(ROWS($G$2:$G140),стлИндекс,0)),\"\")","v":"Орехово-Зуево "}]
[null,null,null,null,"Дербент ",true,{"$f":"IF($F141,COUNTIF($F$2:$F141,TRUE),\"\")","v":140},{"$f":"IFERROR(INDEX(стлГород,MATCH(ROWS($G$2:$G141),стлИндекс,0)),\"\")","v":"Дербент "}]
[null,null,null,null,"Камышин ",true,{"$f":"IF($F142,COUNTIF($F$2:$F142,TRUE),\"\")","v":141},{"$f":"IFERROR(INDEX(стлГород,MATCH(ROWS($G$2:$G142),стлИндекс,0)),\"\")","v":"Камышин "}]
[null,null,null,null,"Невинномысск ",true,{"$f":"IF($F143,COUNTIF($F$2:$F143,TRUE),\"\")","v":142},{"$f":"IFERROR(INDEX(стлГород,MATCH(ROWS($G$2:$G143),стлИндекс,0)),\"\")","v":"Невинномысск "}]
[null,null,null,null,"Красногорск ",true,{"$f":"IF($F144,COUNTIF($F$2:$F144,TRUE),\"\")","v":143},{"$f":"IFERROR(INDEX(стлГород,MATCH(ROWS($G$2:$G144),стлИндекс,0)),\"\")","v":"Красногорск "}]
[null,null,null,null,"Муром ",true,{"$f":"IF($F145,COUNTIF($F$2:$F145,TRUE),\"\")","v":144},{"$f":"IFERROR(INDEX(стлГород,MATCH(ROWS($G$2:$G145),стлИндекс,0)),\"\")","v":"Муром "}]
[null,null,null,null,"Батайск ",true,{"$f":"IF($F146,COUNTIF($F$2:$F146,TRUE),\"\")","v":145},{"$f":"IFERROR(INDEX(стлГород,MATCH(ROWS($G$2:$G146),стлИндекс,0)),\"\")","v":"Батайск "}]
[null,null,null,null,"Новошахтинск ",true,{"$f":"IF($F147,COUNTIF($F$2:$F147,TRUE),\"\")","v":146},{"$f":"IFERROR(INDEX(стлГород,MATCH(ROWS($G$2:$G147),стлИндекс,0)),\"\")","v":"Новошахтинск "}]
[null,null,null,null,"Сергиев Посад ",true,{"$f":"IF($F148,COUNTIF($F$2:$F148,TRUE),\"\")","v":147},{"$f":"IFERROR(INDEX(стлГород,MATCH(ROWS($G$2:$G148),стлИндекс,0)),\"\")","v":"Сергиев Посад "}]
[null,null,null,null,"Ноябрьск ",true,{"$f":"IF($F149,COUNTIF($F$2:$F149,TRUE),\"\")","v":148},{"$f":"IFERROR(INDEX(стлГород,MATCH(ROWS($G$2:$G149),стлИндекс,0)),\"\")","v":"Ноябрьск "}]
[null,null,null,null,"Щёлково ",true,{"$f":"IF($F150,COUNTIF($F$2:$F150,TRUE),\"\")","v":149},{"$f":"IFERROR(INDEX(стлГород,MATCH(ROWS($G$2:$G150),стлИндекс,0)),\"\")","v":"Щёлково "}]
[null,null,null,null,"Кызыл ",true,{"$f":"IF($F151,COUNTIF($F$2:$F151,TRUE),\"\")","v":150},{"$f":"IFERROR(INDEX(стлГород,MATCH(ROWS($G$2:$G151),стлИндекс,0)),\"\")","v":"Кызыл "}]
[null,null,null,null,"Октябрьский ",true,{"$f":"IF($F152,COUNTIF($F$2:$F152,TRUE),\"\")","v":151},{"$f":"IFERROR(INDEX(стлГород,MATCH(ROWS($G$2:$G152),стлИндекс,0)),\"\")","v":"Октябрьский "}]
[null,null,null,null,"Ачинск ",true,{"$f":"IF($F153,COUNTIF($F$2:$F153,TRUE),\"\")","v":152},{"$f":"IFERROR(INDEX(стлГород,MATCH(ROWS($G$2:$G153),стлИндекс,0)),\"\")","v":"Ачинск "}]
[null,null,null,null,"Северск ",true,{"$f":"IF($F154,COUNTIF($F$2:$F154,TRUE),\"\")","v":153},{"$f":"IFERROR(INDEX(стлГород,MATCH(ROWS($G$2:$G154),стлИндекс,0)),\"\")","v":"Северск "}]
[null,null,null,null,"Новокуйбышевск ",true,{"$f":"IF($F155,COUNTIF($F$2:$F155,TRUE),\"\")","v":154},{"$f":"IFERROR(INDEX(стлГород,MATCH(ROWS($G$2:$G155),стлИндекс,0)),\"\")","v":"Новокуйбышевск "}]
[null,null,null,null,"Елец ",true,{"$f":"IF($F156,COUNTIF($F$2:$F156,TRUE),\"\")","v":155},{"$f":"IFERROR(INDEX(стлГород,MATCH(ROWS($G$2:$G156),стлИндекс,0)),\"\")","v":"Елец "}]
[null,null,null,null,"Евпатория",true,{"$f":"IF($F157,COUNTIF($F$2:$F157,TRUE),\"\")","v":156},{"$f":"IFERROR(INDEX(стлГород,MATCH(ROWS($G$2:$G157),стлИндекс,0)),\"\")","v":"Евпатория"}]
[null,null,null,null,"Арзамас ",true,{"$f":"IF($F158,COUNTIF($F$2:$F158,TRUE),\"\")","v":157},{"$f":"IFERROR(INDEX(стлГород,MATCH(ROWS($G$2:$G158),стлИндекс,0)),\"\")","v":"Арзамас "}]
[null,null,null,null,"Обнинск ",true,{"$f":"IF($F159,COUNTIF($F$2:$F159,TRUE),\"\")","v":158},{"$f":"IFERROR(INDEX(стлГород,MATCH(ROWS($G$2:$G159),стлИндекс,0)),\"\")","v":"Обнинск "}]
[null,null,null,null,"Новый Уренгой ",true,{"$f":"IF($F160,COUNTIF($F$2:$F160,TRUE),\"\")","v":159},{"$f":"IFERROR(INDEX(стлГород,MATCH(ROWS($G$2:$G160),стлИндекс,0)),\"\")","v":"Новый Уренгой "}]
[null,null,null,null,"Каспийск ",true,{"$f":"IF($F161,COUNTIF($F$2:$F161,TRUE),\"\")","v":160},{"$f":"IFERROR(INDEX(стлГород,MATCH(ROWS($G$2:$G161),стлИндекс,0)),\"\")","v":"Каспийск "}]
[null,null,null,null,"Элиста ",true,{"$f":"IF($F162,COUNTIF($F$2:$F162,TRUE),\"\")","v":161},{"$f":"IFERROR(INDEX(стлГород,MATCH(ROWS($G$2:$G162),стлИндекс,0)),\"\")","v":"Элиста "}]
[null,null,null,null,"Пушкино ",true,{"$f":"IF($F163,COUNTIF($F$2:$F163,TRUE),\"\")","v":162},{"$f":"IFERROR(INDEX(стлГород,MATCH(ROWS($G$2:$G163),стлИндекс,0)),\"\")","v":"Пушкино "}]
[null,null,null,null,"Жуковский ",true,{"$f":"IF($F164,COUNTIF($F$2:$F164,TRUE),\"\")","v":163},{"$f":"IFERROR(INDEX(стлГород,MATCH(ROWS($G$2:$G164),стлИндекс,0)),\"\")","v":"Жуковский "}]
[null,null,null,null,"Артём ",true,{"$f":"IF($F165,COUNTIF($F$2:$F165,TRUE),\"\")","v":164},{"$f":"IFERROR(INDEX(стлГород,MATCH(ROWS($G$2:$G165),стлИндекс,0)),\"\")","v":"Артём "}]
[null,null,null,null,"Междуреченск ",true,{"$f":"IF($F166,COUNTIF($F$2:$F166,TRUE),\"\")","v":165},{"$f":"IFERROR(INDEX(стлГород,MATCH(ROWS($G$2:$G166),стлИндекс,0)),\"\")","v":"Междуреченск "}]
[null,null,null,null,"Ленинск-Кузнецкий ",true,{"$f":"IF($F167,COUNTIF($F$2:$F167,TRUE),\"\")","v":166},{"$f":"IFERROR(INDEX(стлГород,MATCH(ROWS($G$2:$G167),стлИндекс,0)),\"\")","v":"Ленинск-Кузнецкий "}]
[null,null,null,null,"Сарапул ",true,{"$f":"IF($F168,COUNTIF($F$2:$F168,TRUE),\"\")","v":167},{"$f":"IFERROR(INDEX(стлГород,MATCH(ROWS($G$2:$G168),стлИндекс,0)),\"\")","v":"Сарапул "}]
[null,null,null,null,"Ессентуки ",true,{"$f":"IF($F169,COUNTIF($F$2:$F169,TRUE),\"\")","v":168},{"$f":"IFERROR(INDEX(стлГород,MATCH(ROWS($G$2:$G169),стлИндекс,0)),\"\")","v":"Ессентуки "}]
[null,null,null,null,"Воткинск ",true,{"$f":"IF($F170,COUNTIF($F$2:$F170,TRUE),\"\")","v":169},{"$f":"IFERROR(INDEX(стлГород,MATCH(ROWS($G$2:$G170),стлИндекс,0)),\"\")","v":"Воткинск "}]
[null,null,null,null,"Ногинск ",true,{"$f":"IF($F171,COUNTIF($F$2:$F171,TRUE),\"\")","v":170},{"$f":"IFERROR(INDEX(стлГород,MATCH(ROWS($G$2:$G171),стлИндекс,0)),\"\")","v":"Ногинск "}]
[null,null,null,null,"Тобольск ",true,{"$f":"IF($F172,COUNTIF($F$2:$F172,TRUE),\"\")","v":171},{"$f":"IFERROR(INDEX(стлГород,MATCH(ROWS($G$2:$G172),стлИндекс,0)),\"\")","v":"Тобольск "}]
[null,null,null,null,"Ухта ",true,{"$f":"IF($F173,COUNTIF($F$2:$F173,TRUE),\"\")","v":172},{"$f":"IFERROR(INDEX(стлГород,MATCH(ROWS($G$2:$G173),стлИндекс,0)),\"\")","v":"Ухта "}]
[null,null,null,null,"Серов ",true,{"$f":"IF($F174,COUNTIF($F$2:$F174,TRUE),\"\")","v":173},{"$f":"IFERROR(INDEX(стлГород,MATCH(ROWS($G$2:$G174),стлИндекс,0)),\"\")","v":"Серов "}]
[null,null,null,null,"Бердск ",true,{"$f":"IF($F175,COUNTIF($F$2:$F175,TRUE),\"\")","v":174},{"$f":"IFERROR(INDEX(стлГород,MATCH(ROWS($G$2:$G175),стлИндекс,0)),\"\")","v":"Бердск "}]
[null,null,null,null,"Великие Луки ",true,{"$f":"IF($F176,COUNTIF($F$2:$F176,TRUE),\"\")","v":175},{"$f":"IFERROR(INDEX(стлГород,MATCH(ROWS($G$2:$G176),стлИндекс,0)),\"\")","v":"Великие Луки "}]
[null,null,null,null,"Мичуринск ",true,{"$f":"IF($F177,COUNTIF($F$2:$F177,TRUE),\"\")","v":176},{"$f":"IFERROR(INDEX(стлГород,MATCH(ROWS($G$2:$G177),стлИндекс,0)),\"\")","v":"Мичуринск "}]
[null,null,null,null,"Киселёвск ",true,{"$f":"IF($F178,COUNTIF($F$2:$F178,TRUE),\"\")","v":177},{"$f":"IFERROR(INDEX(стлГород,MATCH(ROWS($G$2:$G178),стлИндекс,0)),\"\")","v":"Киселёвск "}]
[null,null,null,null,"Новотроицк ",true,{"$f":"IF($F179,COUNTIF($F$2:$F179,TRUE),\"\")","v":178},{"$f":"IFERROR(INDEX(стлГород,MATCH(ROWS($G$2:$G179),стлИндекс,0)),\"\")","v":"Новотроицк "}]
[null,null,null,null,"Зеленодольск ",true,{"$f":"IF($F180,COUNTIF($F$2:$F180,TRUE),\"\")","v":179},{"$f":"IFERROR(INDEX(стлГород,MATCH(ROWS($G$2:$G180),стлИндекс,0)),\"\")","v":"Зеленодольск "}]
[null,null,null,null,"Соликамск ",true,{"$f":"IF($F181,COUNTIF($F$2:$F181,TRUE),\"\")","v":180},{"$f":"IFERROR(INDEX(стлГород,MATCH(ROWS($G$2:$G181),стлИндекс,0)),\"\")","v":"Соликамск "}]
[null,null,null,null,"Раменское ",true,{"$f":"IF($F182,COUNTIF($F$2:$F182,TRUE),\"\")","v":181},{"$f":"IFERROR(INDEX(стлГород,MATCH(ROWS($G$2:$G182),стлИндекс,0)),\"\")","v":"Раменское "}]
[null,null,null,null,"Домодедово ",true,{"$f":"IF($F183,COUNTIF($F$2:$F183,TRUE),\"\")","v":182},{"$f":"IFERROR(INDEX(стлГород,MATCH(ROWS($G$2:$G183),стлИндекс,0)),\"\")","v":"Домодедово "}]
[null,null,null,null,"Магадан ",true,{"$f":"IF($F184,COUNTIF($F$2:$F184,TRUE),\"\")","v":183},{"$f":"IFERROR(INDEX(стлГород,MATCH(ROWS($G$2:$G184),стлИндекс,0)),\"\")","v":"Магадан "}]
[null,null,null,null,"Глазов ",true,{"$f":"IF($F185,COUNTIF($F$2:$F185,TRUE),\"\")","v":184},{"$f":"IFERROR(INDEX(стлГород,MATCH(ROWS($G$2:$G185),стлИндекс,0)),\"\")","v":"Глазов "}]
[null,null,null,null,"Каменск-Шахтинский ",true,{"$f":"IF($F186,COUNTIF($F$2:$F186,TRUE),\"\")","v":185},{"$f":"IFERROR(INDEX(стлГород,MATCH(ROWS($G$2:$G186),стлИндекс,0)),\"\")","v":"Каменск-Шахтинский "}]
[null,null,null,null,"Железногорск ",true,{"$f":"IF($F187,COUNTIF($F$2:$F187,TRUE),\"\")","v":186},{"$f":"IFERROR(INDEX(стлГород,MATCH(ROWS($G$2:$G187),стлИндекс,0)),\"\")","v":"Железногорск "}]
[null,null,null,null,"Канск ",true,{"$f":"IF($F188,COUNTIF($F$2:$F188,TRUE),\"\")","v":187},{"$f":"IFERROR(INDEX(стлГород,MATCH(ROWS($G$2:$G188),стлИндекс,0)),\"\")","v":"Канск "}]
[null,null,null,null,"Назрань ",true,{"$f":"IF($F189,COUNTIF($F$2:$F189,TRUE),\"\")","v":188},{"$f":"IFERROR(INDEX(стлГород,MATCH(ROWS($G$2:$G189),стлИндекс,0)),\"\")","v":"Назрань "}]
[null,null,null,null,"Пушкин ",true,{"$f":"IF($F190,COUNTIF($F$2:$F190,TRUE),\"\")","v":189},{"$f":"IFERROR(INDEX(стлГород,MATCH(ROWS($G$2:$G190),стлИндекс,0)),\"\")","v":"Пушкин "}]
[null,null,null,null,"Гатчина ",true,{"$f":"IF($F191,COUNTIF($F$2:$F191,TRUE),\"\")","v":190},{"$f":"IFERROR(INDEX(стлГород,MATCH(ROWS($G$2:$G191),стлИндекс,0)),\"\")","v":"Гатчина "}]
[null,null,null,null,"Саров ",true,{"$f":"IF($F192,COUNTIF($F$2:$F192,TRUE),\"\")","v":191},{"$f":"IFERROR(INDEX(стлГород,MATCH(ROWS($G$2:$G192),стлИндекс,0)),\"\")","v":"Саров "}]
[null,null,null,null,"Новоуральск ",true,{"$f":"IF($F193,COUNTIF($F$2:$F193,TRUE),\"\")","v":192},{"$f":"IFERROR(INDEX(стлГород,MATCH(ROWS($G$2:$G193),стлИндекс,0)),\"\")","v":"Новоуральск "}]
[null,null,null,null,"Воскресенск ",true,{"$f":"IF($F194,COUNTIF($F$2:$F194,TRUE),\"\")","v":193},{"$f":"IFERROR(INDEX(стлГород,MATCH(ROWS($G$2:$G194),стлИндекс,0)),\"\")","v":"Воскресенск "}]
[null,null,null,null,"Долгопрудный ",{"$f":"NOT(ISERROR(SEARCH($B$2,$E195)))","v":true},{"$f":"IF($F195,COUNTIF($F$2:$F195,TRUE),\"\")","v":194},{"$f":"IFERROR(INDEX(стлГород,MATCH(ROWS($G$2:$G195),стлИндекс,0)),\"\")","v":"Долгопрудный "}]
[null,null,null,null,"Бугульма ",true,{"$f":"IF($F196,COUNTIF($F$2:$F196,TRUE),\"\")","v":195},{"$f":"IFERROR(INDEX(стлГород,MATCH(ROWS($G$2:$G196),стлИндекс,0)),\"\")","v":"Бугульма "}]
[null,null,null,null,"Кузнецк ",true,{"$f":"IF($F197,COUNTIF($F$2:$F197,TRUE),\"\")","v":196},{"$f":"IFERROR(INDEX(стлГород,MATCH(ROWS($G$2:$G197),стлИндекс,0)),\"\")","v":"Кузнецк "}]
[null,null,null,null,"Губкин ",true,{"$f":"IF($F198,COUNTIF($F$2:$F198,TRUE),\"\")","v":197},{"$f":"IFERROR(INDEX(стлГород,MATCH(ROWS($G$2:$G198),стлИндекс,0)),\"\")","v":"Губкин "}]
[null,null,null,null,"Кинешма ",true,{"$f":"IF($F199,COUNTIF($F$2:$F199,TRUE),\"\")","v":198},{"$f":"IFERROR(INDEX(стлГород,MATCH(ROWS($G$2:$G199),стлИндекс,0)),\"\")","v":"Кинешма "}]
[null,null,null,null,"Ейск ",true,{"$f":"IF($F200,COUNTIF($F$2:$F200,TRUE),\"\")","v":199},{"$f":"IFERROR(INDEX(стлГород,MATCH(ROWS($G$2:$G200),стлИндекс,0)),\"\")","v":"Ейск "}]
[null,null,null,null,"Реутов ",true,{"$f":"IF($F201,COUNTIF($F$2:$F201,TRUE),\"\")","v":200},{"$f":"IFERROR(INDEX(стлГород,MATCH(ROWS($G$2:$G201),стлИндекс,0)),\"\")","v":"Реутов "}]
[null,null,null,null,"Усть-Илимск ",true,{"$f":"IF($F202,COUNTIF($F$2:$F202,TRUE),\"\")","v":201},{"$f":"IFERROR(INDEX(стлГород,MATCH(ROWS($G$2:$G202),стлИндекс,0)),\"\")","v":"Усть-Илимск "}]
[null,null,null,null,"Железногорск ",true,{"$f":"IF($F203,COUNTIF($F$2:$F203,TRUE),\"\")","v":202},{"$f":"IFERROR(INDEX(стлГород,MATCH(ROWS($G$2:$G203),стлИндекс,0)),\"\")","v":"Железногорск "}]
[null,null,null,null,"Усолье-Сибирское ",true,{"$f":"IF($F204,COUNTIF($F$2:$F204,TRUE),\"\")","v":203},{"$f":"IFERROR(INDEX(стлГород,MATCH(ROWS($G$2:$G204),стлИндекс,0)),\"\")","v":"Усолье-Сибирское "}]
[null,null,null,null,"Чайковский ",true,{"$f":"IF($F205,COUNTIF($F$2:$F205,TRUE),\"\")","v":204},{"$f":"IFERROR(INDEX(стлГород,MATCH(ROWS($G$2:$G205),стлИндекс,0)),\"\")","v":"Чайковский "}]
[null,null,null,null,"Азов ",true,{"$f":"IF($F206,COUNTIF($F$2:$F206,TRUE),\"\")","v":205},{"$f":"IFERROR(INDEX(стлГород,MATCH(ROWS($G$2:$G206),стлИндекс,0)),\"\")","v":"Азов "}]
[null,null,null,null,"Бузулук ",true,{"$f":"IF($F207,COUNTIF($F$2:$F207,TRUE),\"\")","v":206},{"$f":"IFERROR(INDEX(стлГород,MATCH(ROWS($G$2:$G207),стлИндекс,0)),\"\")","v":"Бузулук "}]
[null,null,null,null,"Озёрск ",true,{"$f":"IF($F208,COUNTIF($F$2:$F208,TRUE),\"\")","v":207},{"$f":"IFERROR(INDEX(стлГород,MATCH(ROWS($G$2:$G208),стлИндекс,0)),\"\")","v":"Озёрск "}]
[null,null,null,null,"Балашов ",true,{"$f":"IF($F209,COUNTIF($F$2:$F209,TRUE),\"\")","v":208},{"$f":"IFERROR(INDEX(стлГород,MATCH(ROWS($G$2:$G209),стлИндекс,0)),\"\")","v":"Балашов "}]
[null,null,null,null,"Юрга ",true,{"$f":"IF($F210,COUNTIF($F$2:$F210,TRUE),\"\")","v":209},{"$f":"IFERROR(INDEX(стлГород,MATCH(ROWS($G$2:$G210),стлИндекс,0)),\"\")","v":"Юрга "}]
[null,null,null,null,"Кирово-Чепецк ",true,{"$f":"IF($F211,COUNTIF($F$2:$F211,TRUE),\"\")","v":210},{"$f":"IFERROR(INDEX(стлГород,MATCH(ROWS($G$2:$G211),стлИндекс,0)),\"\")","v":"Кирово-Чепецк "}]
[null,null,null,null,"Кропоткин ",true,{"$f":"IF($F212,COUNTIF($F$2:$F212,TRUE),\"\")","v":211},{"$f":"IFERROR(INDEX(стлГород,MATCH(ROWS($G$2:$G212),стлИндекс,0)),\"\")","v":"Кропоткин "}]
[null,null,null,null,"Клин ",true,{"$f":"IF($F213,COUNTIF($F$2:$F213,TRUE),\"\")","v":212},{"$f":"IFERROR(INDEX(стлГород,MATCH(ROWS($G$2:$G213),стлИндекс,0)),\"\")","v":"Клин "}]
[null,null,null,null,"Красноуфимск ",true,{"$f":"IF($F214,COUNTIF($F$2:$F214,TRUE),\"\")","v":213},{"$f":"IFERROR(INDEX(стлГород,MATCH(ROWS($G$2:$G214),стлИндекс,0)),\"\")","v":"Красноуфимск "}]
[null,null,null,null,"Выборг ",true,{"$f":"IF($F215,COUNTIF($F$2:$F215,TRUE),\"\")","v":214},{"$f":"IFERROR(INDEX(стлГород,MATCH(ROWS($G$2:$G215),стлИндекс,0)),\"\")","v":"Выборг "}]
[null,null,null,null,"Ханты-Мансийск ",true,{"$f":"IF($F216,COUNTIF($F$2:$F216,TRUE),\"\")","v":215},{"$f":"IFERROR(INDEX(стлГород,MATCH(ROWS($G$2:$G216),стлИндекс,0)),\"\")","v":"Ханты-Мансийск "}]
[null,null,null,null,"Троицк ",true,{"$f":"IF($F217,COUNTIF($F$2:$F217,TRUE),\"\")","v":216},{"$f":"IFERROR(INDEX(стлГород,MATCH(ROWS($G$2:$G217),стлИндекс,0)),\"\")","v":"Троицк "}]
[null,null,null,null,"Бор ",true,{"$f":"IF($F218,COUNTIF($F$2:$F218,TRUE),\"\")","v":217},{"$f":"IFERROR(INDEX(стлГород,MATCH(ROWS($G$2:$G218),стлИндекс,0)),\"\")","v":"Бор "}]
[null,null,null,null,"Ялта",true,{"$f":"IF($F219,COUNTIF($F$2:$F219,TRUE),\"\")","v":218},{"$f":"IFERROR(INDEX(стлГород,MATCH(ROWS($G$2:$G219),стлИндекс,0)),\"\")","v":"Ялта"}]
[null,null,null,null,"Шадринск ",true,{"$f":"IF($F220,COUNTIF($F$2:$F220,TRUE),\"\")","v":219},{"$f":"IFERROR(INDEX(стлГород,MATCH(ROWS($G$2:$G220),стлИндекс,0)),\"\")","v":"Шадринск "}]
[null,null,null,null,"Белово ",true,{"$f":"IF($F221,COUNTIF($F$2:$F221,TRUE),\"\")","v":220},{"$f":"IFERROR(INDEX(стлГород,MATCH(ROWS($G$2:$G221),стлИндекс,0)),\"\")","v":"Белово "}]
[null,null,null,null,"Минеральные Воды ",true,{"$f":"IF($F222,COUNTIF($F$2:$F222,TRUE),\"\")","v":221},{"$f":"IFERROR(INDEX(стлГород,MATCH(ROWS($G$2:$G222),стлИндекс,0)),\"\")","v":"Минеральные Воды "}]
[null,null,null,null,"Анжеро-Судженск ",true,{"$f":"IF($F223,COUNTIF($F$2:$F223,TRUE),\"\")","v":222},{"$f":"IFERROR(INDEX(стлГород,MATCH(ROWS($G$2:$G223),стлИндекс,0)),\"\")","v":"Анжеро-Судженск "}]
[null,null,null,null,"Биробиджан ",true,{"$f":"IF($F224,COUNTIF($F$2:$F224,TRUE),\"\")","v":223},{"$f":"IFERROR(INDEX(стлГород,MATCH(ROWS($G$2:$G224),стлИндекс,0)),\"\")","v":"Биробиджан "}]
[null,null,null,null,"Лобня ",true,{"$f":"IF($F225,COUNTIF($F$2:$F225,TRUE),\"\")","v":224},{"$f":"IFERROR(INDEX(стлГород,MATCH(ROWS($G$2:$G225),стлИндекс,0)),\"\")","v":"Лобня "}]
[null,null,null,null,"Петергоф ",true,{"$f":"IF($F226,COUNTIF($F$2:$F226,TRUE),\"\")","v":225},{"$f":"IFERROR(INDEX(стлГород,MATCH(ROWS($G$2:$G226),стлИндекс,0)),\"\")","v":"Петергоф "}]
[null,null,null,null,"Чапаевск ",true,{"$f":"IF($F227,COUNTIF($F$2:$F227,TRUE),\"\")","v":226},{"$f":"IFERROR(INDEX(стлГород,MATCH(ROWS($G$2:$G227),стлИндекс,0)),\"\")","v":"Чапаевск "}]
[null,null,null,null,"Георгиевск ",true,{"$f":"IF($F228,COUNTIF($F$2:$F228,TRUE),\"\")","v":227},{"$f":"IFERROR(INDEX(стлГород,MATCH(ROWS($G$2:$G228),стлИндекс,0)),\"\")","v":"Георгиевск "}]
[null,null,null,null,"Черногорск ",true,{"$f":"IF($F229,COUNTIF($F$2:$F229,TRUE),\"\")","v":228},{"$f":"IFERROR(INDEX(стлГород,MATCH(ROWS($G$2:$G229),стлИндекс,0)),\"\")","v":"Черногорск "}]
[null,null,null,null,"Минусинск ",true,{"$f":"IF($F230,COUNTIF($F$2:$F230,TRUE),\"\")","v":229},{"$f":"IFERROR(INDEX(стлГород,MATCH(ROWS($G$2:$G230),стлИндекс,0)),\"\")","v":"Минусинск "}]
[null,null,null,null,"Михайловск ",true,{"$f":"IF($F231,COUNTIF($F$2:$F231,TRUE),\"\")","v":230},{"$f":"IFERROR(INDEX(стлГород,MATCH(ROWS($G$2:$G231),стлИндекс,0)),\"\")","v":"Михайловск "}]
[null,null,null,null,"Елабуга ",true,{"$f":"IF($F232,COUNTIF($F$2:$F232,TRUE),\"\")","v":231},{"$f":"IFERROR(INDEX(стлГород,MATCH(ROWS($G$2:$G232),стлИндекс,0)),\"\")","v":"Елабуга "}]
[null,null,null,null,"Дубна ",true,{"$f":"IF($F233,COUNTIF($F$2:$F233,TRUE),\"\")","v":232},{"$f":"IFERROR(INDEX(стлГород,MATCH(ROWS($G$2:$G233),стлИндекс,0)),\"\")","v":"Дубна "}]
[null,null,null,null,"Воркута ",true,{"$f":"IF($F234,COUNTIF($F$2:$F234,TRUE),\"\")","v":233},{"$f":"IFERROR(INDEX(стлГород,MATCH(ROWS($G$2:$G234),стлИндекс,0)),\"\")","v":"Воркута "}]
[null,null,null,null,"Новоалтайск ",true,{"$f":"IF($F235,COUNTIF($F$2:$F235,TRUE),\"\")","v":234},{"$f":"IFERROR(INDEX(стлГород,MATCH(ROWS($G$2:$G235),стлИндекс,0)),\"\")","v":"Новоалтайск "}]
[null,null,null,null,"Егорьевск ",true,{"$f":"IF($F236,COUNTIF($F$2:$F236,TRUE),\"\")","v":235},{"$f":"IFERROR(INDEX(стлГород,MATCH(ROWS($G$2:$G236),стлИндекс,0)),\"\")","v":"Егорьевск "}]
[null,null,null,null,"Асбест ",true,{"$f":"IF($F237,COUNTIF($F$2:$F237,TRUE),\"\")","v":236},{"$f":"IFERROR(INDEX(стлГород,MATCH(ROWS($G$2:$G237),стлИндекс,0)),\"\")","v":"Асбест "}]
[null,null,null,null,"Феодосия",true,{"$f":"IF($F238,COUNTIF($F$2:$F238,TRUE),\"\")","v":237},{"$f":"IFERROR(INDEX(стлГород,MATCH(ROWS($G$2:$G238),стлИндекс,0)),\"\")","v":"Феодосия"}]
[null,null,null,null,"Ишим ",true,{"$f":"IF($F239,COUNTIF($F$2:$F239,TRUE),\"\")","v":238},{"$f":"IFERROR(INDEX(стлГород,MATCH(ROWS($G$2:$G239),стлИндекс,0)),\"\")","v":"Ишим "}]
[null,null,null,null,"Белорецк ",true,{"$f":"IF($F240,COUNTIF($F$2:$F240,TRUE),\"\")","v":239},{"$f":"IFERROR(INDEX(стлГород,MATCH(ROWS($G$2:$G240),стлИндекс,0)),\"\")","v":"Белорецк "}]
[null,null,null,null,"Белогорск ",true,{"$f":"IF($F241,COUNTIF($F$2:$F241,TRUE),\"\")","v":240},{"$f":"IFERROR(INDEX(стлГород,MATCH(ROWS($G$2:$G241),стлИндекс,0)),\"\")","v":"Белогорск "}]
[null,null,null,null,"Кунгур ",true,{"$f":"IF($F242,COUNTIF($F$2:$F242,TRUE),\"\")","v":241},{"$f":"IFERROR(INDEX(стлГород,MATCH(ROWS($G$2:$G242),стлИндекс,0)),\"\")","v":"Кунгур "}]
[null,null,null,null,"Лысьва ",true,{"$f":"IF($F243,COUNTIF($F$2:$F243,TRUE),\"\")","v":242},{"$f":"IFERROR(INDEX(стлГород,MATCH(ROWS($G$2:$G243),стлИндекс,0)),\"\")","v":"Лысьва "}]
[null,null,null,null,"Гуково ",true,{"$f":"IF($F244,COUNTIF($F$2:$F244,TRUE),\"\")","v":243},{"$f":"IFERROR(INDEX(стлГород,MATCH(ROWS($G$2:$G244),стлИндекс,0)),\"\")","v":"Гуково "}]
[null,null,null,null,"Ступино ",true,{"$f":"IF($F245,COUNTIF($F$2:$F245,TRUE),\"\")","v":244},{"$f":"IFERROR(INDEX(стлГород,MATCH(ROWS($G$2:$G245),стлИндекс,0)),\"\")","v":"Ступино "}]
[null,null,null,null,"Туймазы ",true,{"$f":"IF($F246,COUNTIF($F$2:$F246,TRUE),\"\")","v":245},{"$f":"IFERROR(INDEX(стлГород,MATCH(ROWS($G$2:$G246),стлИндекс,0)),\"\")","v":"Туймазы "}]
[null,null,null,null,"Кстово ",true,{"$f":"IF($F247,COUNTIF($F$2:$F247,TRUE),\"\")","v":246},{"$f":"IFERROR(INDEX(стлГород,MATCH(ROWS($G$2:$G247),стлИндекс,0)),\"\")","v":"Кстово "}]
[null,null,null,null,"Вольск ",true,{"$f":"IF($F248,COUNTIF($F$2:$F248,TRUE),\"\")","v":247},{"$f":"IFERROR(INDEX(стлГород,MATCH(ROWS($G$2:$G248),стлИндекс,0)),\"\")","v":"Вольск "}]
[null,null,null,null,"Ишимбай ",true,{"$f":"IF($F249,COUNTIF($F$2:$F249,TRUE),\"\")","v":248},{"$f":"IFERROR(INDEX(стлГород,MATCH(ROWS($G$2:$G249),стлИндекс,0)),\"\")","v":"Ишимбай "}]
[null,null,null,null,"Зеленогорск ",true,{"$f":"IF($F250,COUNTIF($F$2:$F250,TRUE),\"\")","v":249},{"$f":"IFERROR(INDEX(стлГород,MATCH(ROWS($G$2:$G250),стлИндекс,0)),\"\")","v":"Зеленогорск "}]
[null,null,null,null,"Сосновый Бор ",true,{"$f":"IF($F251,COUNTIF($F$2:$F251,TRUE),\"\")","v":250},{"$f":"IFERROR(INDEX(стлГород,MATCH(ROWS($G$2:$G251),стлИндекс,0)),\"\")","v":"Сосновый Бор "}]
[null,null,null,null,"Буйнакск ",true,{"$f":"IF($F252,COUNTIF($F$2:$F252,TRUE),\"\")","v":251},{"$f":"IFERROR(INDEX(стлГород,MATCH(ROWS($G$2:$G252),стлИндекс,0)),\"\")","v":"Буйнакск "}]
[null,null,null,null,"Борисоглебск ",true,{"$f":"IF($F253,COUNTIF($F$2:$F253,TRUE),\"\")","v":252},{"$f":"IFERROR(INDEX(стлГород,MATCH(ROWS($G$2:$G253),стлИндекс,0)),\"\")","v":"Борисоглебск "}]
[null,null,null,null,"Наро-Фоминск ",true,{"$f":"IF($F254,COUNTIF($F$2:$F254,TRUE),\"\")","v":253},{"$f":"IFERROR(INDEX(стлГород,MATCH(ROWS($G$2:$G254),стлИндекс,0)),\"\")","v":"Наро-Фоминск "}]
[null,null,null,null,"Будённовск ",true,{"$f":"IF($F255,COUNTIF($F$2:$F255,TRUE),\"\")","v":254},{"$f":"IFERROR(INDEX(стлГород,MATCH(ROWS($G$2:$G255),стлИндекс,0)),\"\")","v":"Будённовск "}]
[null,null,null,null,"Донской ",true,{"$f":"IF($F256,COUNTIF($F$2:$F256,TRUE),\"\")","v":255},{"$f":"IFERROR(INDEX(стлГород,MATCH(ROWS($G$2:$G256),стлИндекс,0)),\"\")","v":"Донской "}]
[null,null,null,null,"Полевской ",true,{"$f":"IF($F257,COUNTIF($F$2:$F257,TRUE),\"\")","v":256},{"$f":"IFERROR(INDEX(стлГород,MATCH(ROWS($G$2:$G257),стлИндекс,0)),\"\")","v":"Полевской "}]
[null,null,null,null,"Лениногорск ",true,{"$f":"IF($F258,COUNTIF($F$2:$F258,TRUE),\"\")","v":257},{"$f":"IFERROR(INDEX(стлГород,MATCH(ROWS($G$2:$G258),стлИндекс,0)),\"\")","v":"Лениногорск "}]
[null,null,null,null,"Павловский Посад ",{"$f":"NOT(ISERROR(SEARCH($B$2,$E259)))","v":true},{"$f":"IF($F259,COUNTIF($F$2:$F259,TRUE),\"\")","v":258},{"$f":"IFERROR(INDEX(стлГород,MATCH(ROWS($G$2:$G259),стлИндекс,0)),\"\")","v":"Павловский Посад "}]
[null,null,null,null,"Славянск-на-Кубани ",true,{"$f":"IF($F260,COUNTIF($F$2:$F260,TRUE),\"\")","v":259},{"$f":"IFERROR(INDEX(стлГород,MATCH(ROWS($G$2:$G260),стлИндекс,0)),\"\")","v":"Славянск-на-Кубани "}]
[null,null,null,null,"Заречный ",true,{"$f":"IF($F261,COUNTIF($F$2:$F261,TRUE),\"\")","v":260},{"$f":"IFERROR(INDEX(стлГород,MATCH(ROWS($G$2:$G261),стлИндекс,0)),\"\")","v":"Заречный "}]
[null,null,null,null,"Туапсе ",true,{"$f":"IF($F262,COUNTIF($F$2:$F262,TRUE),\"\")","v":261},{"$f":"IFERROR(INDEX(стлГород,MATCH(ROWS($G$2:$G262),стлИндекс,0)),\"\")","v":"Туапсе "}]
[null,null,null,null,"Россошь ",true,{"$f":"IF($F263,COUNTIF($F$2:$F263,TRUE),\"\")","v":262},{"$f":"IFERROR(INDEX(стлГород,MATCH(ROWS($G$2:$G263),стлИндекс,0)),\"\")","v":"Россошь "}]
[null,null,null,null,"Кумертау ",true,{"$f":"IF($F264,COUNTIF($F$2:$F264,TRUE),\"\")","v":263},{"$f":"IFERROR(INDEX(стлГород,MATCH(ROWS($G$2:$G264),стлИндекс,0)),\"\")","v":"Кумертау "}]
[null,null,null,null,"Лабинск ",true,{"$f":"IF($F265,COUNTIF($F$2:$F265,TRUE),\"\")","v":264},{"$f":"IFERROR(INDEX(стлГород,MATCH(ROWS($G$2:$G265),стлИндекс,0)),\"\")","v":"Лабинск "}]
[null,null,null,null,"Сибай ",true,{"$f":"IF($F266,COUNTIF($F$2:$F266,TRUE),\"\")","v":265},{"$f":"IFERROR(INDEX(стлГород,MATCH(ROWS($G$2:$G266),стлИндекс,0)),\"\")","v":"Сибай "}]
[null,null,null,null,"Клинцы ",true,{"$f":"IF($F267,COUNTIF($F$2:$F267,TRUE),\"\")","v":266},{"$f":"IFERROR(INDEX(стлГород,MATCH(ROWS($G$2:$G267),стлИндекс,0)),\"\")","v":"Клинцы "}]
[null,null,null,null,"Ржев ",true,{"$f":"IF($F268,COUNTIF($F$2:$F268,TRUE),\"\")","v":267},{"$f":"IFERROR(INDEX(стлГород,MATCH(ROWS($G$2:$G268),стлИндекс,0)),\"\")","v":"Ржев "}]
[null,null,null,null,"Тихорецк ",true,{"$f":"IF($F269,COUNTIF($F$2:$F269,TRUE),\"\")","v":268},{"$f":"IFERROR(INDEX(стлГород,MATCH(ROWS($G$2:$G269),стлИндекс,0)),\"\")","v":"Тихорецк "}]
[null,null,null,null,"Нерюнгри ",true,{"$f":"IF($F270,COUNTIF($F$2:$F270,TRUE),\"\")","v":269},{"$f":"IFERROR(INDEX(стлГород,MATCH(ROWS($G$2:$G270),стлИндекс,0)),\"\")","v":"Нерюнгри "}]
[null,null,null,null,"Алексин ",true,{"$f":"IF($F271,COUNTIF($F$2:$F271,TRUE),\"\")","v":270},{"$f":"IFERROR(INDEX(стлГород,MATCH(ROWS($G$2:$G271),стлИндекс,0)),\"\")","v":"Алексин "}]
[null,null,null,null,"Ревда ",true,{"$f":"IF($F272,COUNTIF($F$2:$F272,TRUE),\"\")","v":271},{"$f":"IFERROR(INDEX(стлГород,MATCH(ROWS($G$2:$G272),стлИндекс,0)),\"\")","v":"Ревда "}]
[null,null,null,null,"Александров ",true,{"$f":"IF($F273,COUNTIF($F$2:$F273,TRUE),\"\")","v":272},{"$f":"IFERROR(INDEX(стлГород,MATCH(ROWS($G$2:$G273),стлИндекс,0)),\"\")","v":"Александров "}]
[null,null,null,null,"Дмитров ",true,{"$f":"IF($F274,COUNTIF($F$2:$F274,TRUE),\"\")","v":273},{"$f":"IFERROR(INDEX(стлГород,MATCH(ROWS($G$2:$G274),стлИндекс,0)),\"\")","v":"Дмитров "}]
[null,null,null,null,"Мелеуз ",true,{"$f":"IF($F275,COUNTIF($F$2:$F275,TRUE),\"\")","v":274},{"$f":"IFERROR(INDEX(стлГород,MATCH(ROWS($G$2:$G275),стлИндекс,0)),\"\")","v":"Мелеуз "}]
[null,null,null,null,"Сальск ",true,{"$f":"IF($F276,COUNTIF($F$2:$F276,TRUE),\"\")","v":275},{"$f":"IFERROR(INDEX(стлГород,MATCH(ROWS($G$2:$G276),стлИндекс,0)),\"\")","v":"Сальск "}]
[null,null,null,null,"Лесосибирск ",true,{"$f":"IF($F277,COUNTIF($F$2:$F277,TRUE),\"\")","v":276},{"$f":"IFERROR(INDEX(стлГород,MATCH(ROWS($G$2:$G277),стлИндекс,0)),\"\")","v":"Лесосибирск "}]
[null,null,null,null,"Гусь-Хрустальный ",true,{"$f":"IF($F278,COUNTIF($F$2:$F278,TRUE),\"\")","v":277},{"$f":"IFERROR(INDEX(стлГород,MATCH(ROWS($G$2:$G278),стлИндекс,0)),\"\")","v":"Гусь-Хрустальный "}]
[null,null,null,null,"Чистополь ",true,{"$f":"IF($F279,COUNTIF($F$2:$F279,TRUE),\"\")","v":278},{"$f":"IFERROR(INDEX(стлГород,MATCH(ROWS($G$2:$G279),стлИндекс,0)),\"\")","v":"Чистополь "}]
[null,null,null,null,"Павлово ",true,{"$f":"IF($F280,COUNTIF($F$2:$F280,TRUE),\"\")","v":279},{"$f":"IFERROR(INDEX(стлГород,MATCH(ROWS($G$2:$G280),стлИндекс,0)),\"\")","v":"Павлово "}]
[null,null,null,null,"Чехов ",true,{"$f":"IF($F281,COUNTIF($F$2:$F281,TRUE),\"\")","v":280},{"$f":"IFERROR(INDEX(стлГород,MATCH(ROWS($G$2:$G281),стлИндекс,0)),\"\")","v":"Чехов "}]
[null,null,null,null,"Котлас ",true,{"$f":"IF($F282,COUNTIF($F$2:$F282,TRUE),\"\")","v":281},{"$f":"IFERROR(INDEX(стлГород,MATCH(ROWS($G$2:$G282),стлИндекс,0)),\"\")","v":"Котлас "}]
[null,null,null,null,"Белебей ",true,{"$f":"IF($F283,COUNTIF($F$2:$F283,TRUE),\"\")","v":282},{"$f":"IFERROR(INDEX(стлГород,MATCH(ROWS($G$2:$G283),стлИндекс,0)),\"\")","v":"Белебей "}]
[null,null,null,null,"Искитим ",true,{"$f":"IF($F284,COUNTIF($F$2:$F284,TRUE),\"\")","v":283},{"$f":"IFERROR(INDEX(стлГород,MATCH(ROWS($G$2:$G284),стлИндекс,0)),\"\")","v":"Искитим "}]
[null,null,null,null,"Краснотурьинск ",true,{"$f":"IF($F285,COUNTIF($F$2:$F285,TRUE),\"\")","v":284},{"$f":"IFERROR(INDEX(стлГород,MATCH(ROWS($G$2:$G285),стлИндекс,0)),\"\")","v":"Краснотурьинск "}]
[null,null,null,null,"Апатиты ",true,{"$f":"IF($F286,COUNTIF($F$2:$F286,TRUE),\"\")","v":285},{"$f":"IFERROR(INDEX(стлГород,MATCH(ROWS($G$2:$G286),стлИндекс,0)),\"\")","v":"Апатиты "}]
[null,null,null,null,"Всеволожск ",true,{"$f":"IF($F287,COUNTIF($F$2:$F287,TRUE),\"\")","v":286},{"$f":"IFERROR(INDEX(стлГород,MATCH(ROWS($G$2:$G287),стлИндекс,0)),\"\")","v":"Всеволожск "}]
[null,null,null,null,"Прохладный ",true,{"$f":"IF($F288,COUNTIF($F$2:$F288,TRUE),\"\")","v":287},{"$f":"IFERROR(INDEX(стлГород,MATCH(ROWS($G$2:$G288),стлИндекс,0)),\"\")","v":"Прохладный "}]
[null,null,null,null,"Михайловка ",true,{"$f":"IF($F289,COUNTIF($F$2:$F289,TRUE),\"\")","v":288},{"$f":"IFERROR(INDEX(стлГород,MATCH(ROWS($G$2:$G289),стлИндекс,0)),\"\")","v":"Михайловка "}]
[null,null,null,null,"Анапа ",true,{"$f":"IF($F290,COUNTIF($F$2:$F290,TRUE),\"\")","v":289},{"$f":"IFERROR(INDEX(стлГород,MATCH(ROWS($G$2:$G290),стлИндекс,0)),\"\")","v":"Анапа "}]
[null,null,null,null,"Тихвин ",true,{"$f":"IF($F291,COUNTIF($F$2:$F291,TRUE),\"\")","v":290},{"$f":"IFERROR(INDEX(стлГород,MATCH(ROWS($G$2:$G291),стлИндекс,0)),\"\")","v":"Тихвин "}]
[null,null,null,null,"Верхняя Пышма ",true,{"$f":"IF($F292,COUNTIF($F$2:$F292,TRUE),\"\")","v":291},{"$f":"IFERROR(INDEX(стлГород,MATCH(ROWS($G$2:$G292),стлИндекс,0)),\"\")","v":"Верхняя Пышма "}]
[null,null,null,null,"Свободный ",true,{"$f":"IF($F293,COUNTIF($F$2:$F293,TRUE),\"\")","v":292},{"$f":"IFERROR(INDEX(стлГород,MATCH(ROWS($G$2:$G293),стлИндекс,0)),\"\")","v":"Свободный "}]
[null,null,null,null,"Ивантеевка ",true,{"$f":"IF($F294,COUNTIF($F$2:$F294,TRUE),\"\")","v":293},{"$f":"IFERROR(INDEX(стлГород,MATCH(ROWS($G$2:$G294),стлИндекс,0)),\"\")","v":"Ивантеевка "}]
[null,null,null,null,"Шуя ",true,{"$f":"IF($F295,COUNTIF($F$2:$F295,TRUE),\"\")","v":294},{"$f":"IFERROR(INDEX(стлГород,MATCH(ROWS($G$2:$G295),стлИндекс,0)),\"\")","v":"Шуя "}]
[null,null,null,null,"Когалым ",true,{"$f":"IF($F296,COUNTIF($F$2:$F296,TRUE),\"\")","v":295},{"$f":"IFERROR(INDEX(стлГород,MATCH(ROWS($G$2:$G296),стлИндекс,0)),\"\")","v":"Когалым "}]
[null,null,null,null,"Щёкино ",true,{"$f":"IF($F297,COUNTIF($F$2:$F297,TRUE),\"\")","v":296},{"$f":"IFERROR(INDEX(стлГород,MATCH(ROWS($G$2:$G297),стлИндекс,0)),\"\")","v":"Щёкино "}]
[null,null,null,null,"Жигулёвск ",true,{"$f":"IF($F298,COUNTIF($F$2:$F298,TRUE),\"\")","v":297},{"$f":"IFERROR(INDEX(стлГород,MATCH(ROWS($G$2:$G298),стлИндекс,0)),\"\")","v":"Жигулёвск "}]
[null,null,null,null,"Крымск ",true,{"$f":"IF($F299,COUNTIF($F$2:$F299,TRUE),\"\")","v":298},{"$f":"IFERROR(INDEX(стлГород,MATCH(ROWS($G$2:$G299),стлИндекс,0)),\"\")","v":"Крымск "}]
[null,null,null,null,"Вязьма ",true,{"$f":"IF($F300,COUNTIF($F$2:$F300,TRUE),\"\")","v":299},{"$f":"IFERROR(INDEX(стлГород,MATCH(ROWS($G$2:$G300),стлИндекс,0)),\"\")","v":"Вязьма "}]
[null,null,null,null,"Горно-Алтайск ",true,{"$f":"IF($F301,COUNTIF($F$2:$F301,TRUE),\"\")","v":300},{"$f":"IFERROR(INDEX(стлГород,MATCH(ROWS($G$2:$G301),стлИндекс,0)),\"\")","v":"Горно-Алтайск "}]

{"sheet":"Table","index":1,"n_rows":301,"n_cols":8,"rows_kept":301,"cut":false,"hidden":false,"merged":[]}
[null,null,null,null,"Город","Статус","Индекс","Фильтр"]
[null,"",null,null,"Москва ",{"$f":"NOT(ISERROR(SEARCH($B$2,tblData[[#This Row],[Город]])))","v":true},{"$f":"IF(tblData[[#This Row],[Статус]],COUNTIF($F$2:tblData[[#This Row],[Статус]],TRUE),\"\")","v":1},{"$f":"IFERROR(INDEX(tblData[Город],MATCH(ROWS($G$2:tblData[[#This Row],[Индекс]]),tblData[Индекс],0)),\"\")","v":"Москва "}]
[null,null,null,null,"Санкт-Петербург ",{"$f":"NOT(ISERROR(SEARCH($B$2,tblData[[#This Row],[Город]])))","v":true},{"$f":"IF(tblData[[#This Row],[Статус]],COUNTIF($F$2:tblData[[#This Row],[Статус]],TRUE),\"\")","v":2},{"$f":"IFERROR(INDEX(tblData[Город],MATCH(ROWS($G$2:tblData[[#This Row],[Индекс]]),tblData[Индекс],0)),\"\")","v":"Санкт-Петербург "}]
[null,null,null,null,"Новосибирск ",{"$f":"NOT(ISERROR(SEARCH($B$2,tblData[[#This Row],[Город]])))","v":true},{"$f":"IF(tblData[[#This Row],[Статус]],COUNTIF($F$2:tblData[[#This Row],[Статус]],TRUE),\"\")","v":3},{"$f":"IFERROR(INDEX(tblData[Город],MATCH(ROWS($G$2:tblData[[#This Row],[Индекс]]),tblData[Индекс],0)),\"\")","v":"Новосибирск "}]
[null,null,null,null,"Екатеринбург ",{"$f":"NOT(ISERROR(SEARCH($B$2,tblData[[#This Row],[Город]])))","v":true},{"$f":"IF(tblData[[#This Row],[Статус]],COUNTIF($F$2:tblData[[#This Row],[Статус]],TRUE),\"\")","v":4},{"$f":"IFERROR(INDEX(tblData[Город],MATCH(ROWS($G$2:tblData[[#This Row],[Индекс]]),tblData[Индекс],0)),\"\")","v":"Екатеринбург "}]
[null,null,null,null,"Нижний Новгород ",{"$f":"NOT(ISERROR(SEARCH($B$2,tblData[[#This Row],[Город]])))","v":true},{"$f":"IF(tblData[[#This Row],[Статус]],COUNTIF($F$2:tblData[[#This Row],[Статус]],TRUE),\"\")","v":5},{"$f":"IFERROR(INDEX(tblData[Город],MATCH(ROWS($G$2:tblData[[#This Row],[Индекс]]),tblData[Индекс],0)),\"\")","v":"Нижний Новгород "}]
[null,null,null,null,"Самара ",{"$f":"NOT(ISERROR(SEARCH($B$2,tblData[[#This Row],[Город]])))","v":true},{"$f":"IF(tblData[[#This Row],[Статус]],COUNTIF($F$2:tblData[[#This Row],[Статус]],TRUE),\"\")","v":6},{"$f":"IFERROR(INDEX(tblData[Город],MATCH(ROWS($G$2:tblData[[#This Row],[Индекс]]),tblData[Индекс],0)),\"\")","v":"Самара "}]
[null,null,null,null,"Омск ",{"$f":"NOT(ISERROR(SEARCH($B$2,tblData[[#This Row],[Город]])))","v":true},{"$f":"IF(tblData[[#This Row],[Статус]],COUNTIF($F$2:tblData[[#This Row],[Статус]],TRUE),\"\")","v":7},{"$f":"IFERROR(INDEX(tblData[Город],MATCH(ROWS($G$2:tblData[[#This Row],[Индекс]]),tblData[Индекс],0)),\"\")","v":"Омск "}]
[null,null,null,null,"Казань ",{"$f":"NOT(ISERROR(SEARCH($B$2,tblData[[#This Row],[Город]])))","v":true},{"$f":"IF(tblData[[#This Row],[Статус]],COUNTIF($F$2:tblData[[#This Row],[Статус]],TRUE),\"\")","v":8},{"$f":"IFERROR(INDEX(tblData[Город],MATCH(ROWS($G$2:tblData[[#This Row],[Индекс]]),tblData[Индекс],0)),\"\")","v":"Казань "}]
[null,null,null,null,"Челябинск ",{"$f":"NOT(ISERROR(SEARCH($B$2,tblData[[#This Row],[Город]])))","v":true},{"$f":"IF(tblData[[#This Row],[Статус]],COUNTIF($F$2:tblData[[#This Row],[Статус]],TRUE),\"\")","v":9},{"$f":"IFERROR(INDEX(tblData[Город],MATCH(ROWS($G$2:tblData[[#This Row],[Индекс]]),tblData[Индекс],0)),\"\")","v":"Челябинск "}]
[null,null,null,null,"Ростов-на-Дону ",{"$f":"NOT(ISERROR(SEARCH($B$2,tblData[[#This Row],[Город]])))","v":true},{"$f":"IF(tblData[[#This Row],[Статус]],COUNTIF($F$2:tblData[[#This Row],[Статус]],TRUE),\"\")","v":10},{"$f":"IFERROR(INDEX(tblData[Город],MATCH(ROWS($G$2:tblData[[#This Row],[Индекс]]),tblData[Индекс],0)),\"\")","v":"Ростов-на-Дону "}]
[null,null,null,null,"Уфа ",{"$f":"NOT(ISERROR(SEARCH($B$2,tblData[[#This Row],[Город]])))","v":true},{"$f":"IF(tblData[[#This Row],[Статус]],COUNTIF($F$2:tblData[[#This Row],[Статус]],TRUE),\"\")","v":11},{"$f":"IFERROR(INDEX(tblData[Город],MATCH(ROWS($G$2:tblData[[#This Row],[Индекс]]),tblData[Индекс],0)),\"\")","v":"Уфа "}]
[null,null,null,null,"Волгоград ",{"$f":"NOT(ISERROR(SEARCH($B$2,tblData[[#This Row],[Город]])))","v":true},{"$f":"IF(tblData[[#This Row],[Статус]],COUNTIF($F$2:tblData[[#This Row],[Статус]],TRUE),\"\")","v":12},{"$f":"IFERROR(INDEX(tblData[Город],MATCH(ROWS($G$2:tblData[[#This Row],[Индекс]]),tblData[Индекс],0)),\"\")","v":"Волгоград "}]
[null,null,null,null,"Пермь ",{"$f":"NOT(ISERROR(SEARCH($B$2,tblData[[#This Row],[Город]])))","v":true},{"$f":"IF(tblData[[#This Row],[Статус]],COUNTIF($F$2:tblData[[#This Row],[Статус]],TRUE),\"\")","v":13},{"$f":"IFERROR(INDEX(tblData[Город],MATCH(ROWS($G$2:tblData[[#This Row],[Индекс]]),tblData[Индекс],0)),\"\")","v":"Пермь "}]
[null,null,null,null,"Красноярск ",{"$f":"NOT(ISERROR(SEARCH($B$2,tblData[[#This Row],[Город]])))","v":true},{"$f":"IF(tblData[[#This Row],[Статус]],COUNTIF($F$2:tblData[[#This Row],[Статус]],TRUE),\"\")","v":14},{"$f":"IFERROR(INDEX(tblData[Город],MATCH(ROWS($G$2:tblData[[#This Row],[Индекс]]),tblData[Индекс],0)),\"\")","v":"Красноярск "}]
[null,null,null,null,"Воронеж ",{"$f":"NOT(ISERROR(SEARCH($B$2,tblData[[#This Row],[Город]])))","v":true},{"$f":"IF(tblData[[#This Row],[Статус]],COUNTIF($F$2:tblData[[#This Row],[Статус]],TRUE),\"\")","v":15},{"$f":"IFERROR(INDEX(tblData[Город],MATCH(ROWS($G$2:tblData[[#This Row],[Индекс]]),tblData[Индекс],0)),\"\")","v":"Воронеж "}]
[null,null,null,null,"Саратов ",{"$f":"NOT(ISERROR(SEARCH($B$2,tblData[[#This Row],[Город]])))","v":true},{"$f":"IF(tblData[[#This Row],[Статус]],COUNTIF($F$2:tblData[[#This Row],[Статус]],TRUE),\"\")","v":16},{"$f":"IFERROR(INDEX(tblData[Город],MATCH(ROWS($G$2:tblData[[#This Row],[Индекс]]),tblData[Индекс],0)),\"\")","v":"Саратов "}]
[null,null,null,null,"Краснодар ",{"$f":"NOT(ISERROR(SEARCH($B$2,tblData[[#This Row],[Город]])))","v":true},{"$f":"IF(tblData[[#This Row],[Статус]],COUNTIF($F$2:tblData[[#This Row],[Статус]],TRUE),\"\")","v":17},{"$f":"IFERROR(INDEX(tblData[Город],MATCH(ROWS($G$2:tblData[[#This Row],[Индекс]]),tblData[Индекс],0)),\"\")","v":"Краснодар "}]
[null,null,null,null,"Тольятти ",{"$f":"NOT(ISERROR(SEARCH($B$2,tblData[[#This Row],[Город]])))","v":true},{"$f":"IF(tblData[[#This Row],[Статус]],COUNTIF($F$2:tblData[[#This Row],[Статус]],TRUE),\"\")","v":18},{"$f":"IFERROR(INDEX(tblData[Город],MATCH(ROWS($G$2:tblData[[#This Row],[Индекс]]),tblData[Индекс],0)),\"\")","v":"Тольятти "}]
[null,null,null,null,"Ижевск ",{"$f":"NOT(ISERROR(SEARCH($B$2,tblData[[#This Row],[Город]])))","v":true},{"$f":"IF(tblData[[#This Row],[Статус]],COUNTIF($F$2:tblData[[#This Row],[Статус]],TRUE),\"\")","v":19},{"$f":"IFERROR(INDEX(tblData[Город],MATCH(ROWS($G$2:tblData[[#This Row],[Индекс]]),tblData[Индекс],0)),\"\")","v":"Ижевск "}]
[null,null,null,null,"Ульяновск ",{"$f":"NOT(ISERROR(SEARCH($B$2,tblData[[#This Row],[Город]])))","v":true},{"$f":"IF(tblData[[#This Row],[Статус]],COUNTIF($F$2:tblData[[#This Row],[Статус]],TRUE),\"\")","v":20},{"$f":"IFERROR(INDEX(tblData[Город],MATCH(ROWS($G$2:tblData[[#This Row],[Индекс]]),tblData[Индекс],0)),\"\")","v":"Ульяновск "}]
[null,null,null,null,"Барнаул ",{"$f":"NOT(ISERROR(SEARCH($B$2,tblData[[#This Row],[Город]])))","v":true},{"$f":"IF(tblData[[#This Row],[Статус]],COUNTIF($F$2:tblData[[#This Row],[Статус]],TRUE),\"\")","v":21},{"$f":"IFERROR(INDEX(tblData[Город],MATCH(ROWS($G$2:tblData[[#This Row],[Индекс]]),tblData[Индекс],0)),\"\")","v":"Барнаул "}]
[null,null,null,null,"Владивосток ",{"$f":"NOT(ISERROR(SEARCH($B$2,tblData[[#This Row],[Город]])))","v":true},{"$f":"IF(tblData[[#This Row],[Статус]],COUNTIF($F$2:tblData[[#This Row],[Статус]],TRUE),\"\")","v":22},{"$f":"IFERROR(INDEX(tblData[Город],MATCH(ROWS($G$2:tblData[[#This Row],[Индекс]]),tblData[Индекс],0)),\"\")","v":"Владивосток "}]
[null,null,null,null,"Ярославль ",{"$f":"NOT(ISERROR(SEARCH($B$2,tblData[[#This Row],[Город]])))","v":true},{"$f":"IF(tblData[[#This Row],[Статус]],COUNTIF($F$2:tblData[[#This Row],[Статус]],TRUE),\"\")","v":23},{"$f":"IFERROR(INDEX(tblData[Город],MATCH(ROWS($G$2:tblData[[#This Row],[Индекс]]),tblData[Индекс],0)),\"\")","v":"Ярославль "}]
[null,null,null,null,"Иркутск ",{"$f":"NOT(ISERROR(SEARCH($B$2,tblData[[#This Row],[Город]])))","v":true},{"$f":"IF(tblData[[#This Row],[Статус]],COUNTIF($F$2:tblData[[#This Row],[Статус]],TRUE),\"\")","v":24},{"$f":"IFERROR(INDEX(tblData[Город],MATCH(ROWS($G$2:tblData[[#This Row],[Индекс]]),tblData[Индекс],0)),\"\")","v":"Иркутск "}]
[null,null,null,null,"Тюмень ",{"$f":"NOT(ISERROR(SEARCH($B$2,tblData[[#This Row],[Город]])))","v":true},{"$f":"IF(tblData[[#This Row],[Статус]],COUNTIF($F$2:tblData[[#This Row],[Статус]],TRUE),\"\")","v":25},{"$f":"IFERROR(INDEX(tblData[Город],MATCH(ROWS($G$2:tblData[[#This Row],[Индекс]]),tblData[Индекс],0)),\"\")","v":"Тюмень "}]
[null,null,null,null,"Махачкала ",{"$f":"NOT(ISERROR(SEARCH($B$2,tblData[[#This Row],[Город]])))","v":true},{"$f":"IF(tblData[[#This Row],[Статус]],COUNTIF($F$2:tblData[[#This Row],[Статус]],TRUE),\"\")","v":26},{"$f":"IFERROR(INDEX(tblData[Город],MATCH(ROWS($G$2:tblData[[#This Row],[Индекс]]),tblData[Индекс],0)),\"\")","v":"Махачкала "}]
[null,null,null,null,"Хабаровск ",{"$f":"NOT(ISERROR(SEARCH($B$2,tblData[[#This Row],[Город]])))","v":true},{"$f":"IF(tblData[[#This Row],[Статус]],COUNTIF($F$2:tblData[[#This Row],[Статус]],TRUE),\"\")","v":27},{"$f":"IFERROR(INDEX(tblData[Город],MATCH(ROWS($G$2:tblData[[#This Row],[Индекс]]),tblData[Индекс],0)),\"\")","v":"Хабаровск "}]
[null,null,null,null,"Оренбург ",{"$f":"NOT(ISERROR(SEARCH($B$2,tblData[[#This Row],[Город]])))","v":true},{"$f":"IF(tblData[[#This Row],[Статус]],COUNTIF($F$2:tblData[[#This Row],[Статус]],TRUE),\"\")","v":28},{"$f":"IFERROR(INDEX(tblData[Город],MATCH(ROWS($G$2:tblData[[#This Row],[Индекс]]),tblData[Индекс],0)),\"\")","v":"Оренбург "}]
[null,null,null,null,"Новокузнецк ",{"$f":"NOT(ISERROR(SEARCH($B$2,tblData[[#This Row],[Город]])))","v":true},{"$f":"IF(tblData[[#This Row],[Статус]],COUNTIF($F$2:tblData[[#This Row],[Статус]],TRUE),\"\")","v":29},{"$f":"IFERROR(INDEX(tblData[Город],MATCH(ROWS($G$2:tblData[[#This Row],[Индекс]]),tblData[Индекс],0)),\"\")","v":"Новокузнецк "}]
[null,null,null,null,"Кемерово ",{"$f":"NOT(ISERROR(SEARCH($B$2,tblData[[#This Row],[Город]])))","v":true},{"$f":"IF(tblData[[#This Row],[Статус]],COUNTIF($F$2:tblData[[#This Row],[Статус]],TRUE),\"\")","v":30},{"$f":"IFERROR(INDEX(tblData[Город],MATCH(ROWS($G$2:tblData[[#This Row],[Индекс]]),tblData[Индекс],0)),\"\")","v":"Кемерово "}]
[null,null,null,null,"Рязань ",{"$f":"NOT(ISERROR(SEARCH($B$2,tblData[[#This Row],[Город]])))","v":true},{"$f":"IF(tblData[[#This Row],[Статус]],COUNTIF($F$2:tblData[[#This Row],[Статус]],TRUE),\"\")","v":31},{"$f":"IFERROR(INDEX(tblData[Город],MATCH(ROWS($G$2:tblData[[#This Row],[Индекс]]),tblData[Индекс],0)),\"\")","v":"Рязань "}]
[null,null,null,null,"Томск ",{"$f":"NOT(ISERROR(SEARCH($B$2,tblData[[#This Row],[Город]])))","v":true},{"$f":"IF(tblData[[#This Row],[Статус]],COUNTIF($F$2:tblData[[#This Row],[Статус]],TRUE),\"\")","v":32},{"$f":"IFERROR(INDEX(tblData[Город],MATCH(ROWS($G$2:tblData[[#This Row],[Индекс]]),tblData[Индекс],0)),\"\")","v":"Томск "}]
[null,null,null,null,"Астрахань ",{"$f":"NOT(ISERROR(SEARCH($B$2,tblData[[#This Row],[Город]])))","v":true},{"$f":"IF(tblData[[#This Row],[Статус]],COUNTIF($F$2:tblData[[#This Row],[Статус]],TRUE),\"\")","v":33},{"$f":"IFERROR(INDEX(tblData[Город],MATCH(ROWS($G$2:tblData[[#This Row],[Индекс]]),tblData[Индекс],0)),\"\")","v":"Астрахань "}]
[null,null,null,null,"Пенза ",{"$f":"NOT(ISERROR(SEARCH($B$2,tblData[[#This Row],[Город]])))","v":true},{"$f":"IF(tblData[[#This Row],[Статус]],COUNTIF($F$2:tblData[[#This Row],[Статус]],TRUE),\"\")","v":34},{"$f":"IFERROR(INDEX(tblData[Город],MATCH(ROWS($G$2:tblData[[#This Row],[Индекс]]),tblData[Индекс],0)),\"\")","v":"Пенза "}]
[null,null,null,null,"Набережные Челны ",{"$f":"NOT(ISERROR(SEARCH($B$2,tblData[[#This Row],[Город]])))","v":true},{"$f":"IF(tblData[[#This Row],[Статус]],COUNTIF($F$2:tblData[[#This Row],[Статус]],TRUE),\"\")","v":35},{"$f":"IFERROR(INDEX(tblData[Город],MATCH(ROWS($G$2:tblData[[#This Row],[Индекс]]),tblData[Индекс],0)),\"\")","v":"Набережные Челны "}]
[null,null,null,null,"Липецк ",{"$f":"NOT(ISERROR(SEARCH($B$2,tblData[[#This Row],[Город]])))","v":true},{"$f":"IF(tblData[[#This Row],[Статус]],COUNTIF($F$2:tblData[[#This Row],[Статус]],TRUE),\"\")","v":36},{"$f":"IFERROR(INDEX(tblData[Город],MATCH(ROWS($G$2:tblData[[#This Row],[Индекс]]),tblData[Индекс],0)),\"\")","v":"Липецк "}]
[null,null,null,null,"Тула ",{"$f":"NOT(ISERROR(SEARCH($B$2,tblData[[#This Row],[Город]])))","v":true},{"$f":"IF(tblData[[#This Row],[Статус]],COUNTIF($F$2:tblData[[#This Row],[Статус]],TRUE),\"\")","v":37},{"$f":"IFERROR(INDEX(tblData[Город],MATCH(ROWS($G$2:tblData[[#This Row],[Индекс]]),tblData[Индекс],0)),\"\")","v":"Тула "}]
[null,null,null,null,"Киров ",{"$f":"NOT(ISERROR(SEARCH($B$2,tblData[[#This Row],[Город]])))","v":true},{"$f":"IF(tblData[[#This Row],[Статус]],COUNTIF($F$2:tblData[[#This Row],[Статус]],TRUE),\"\")","v":38},{"$f":"IFERROR(INDEX(tblData[Город],MATCH(ROWS($G$2:tblData[[#This Row],[Индекс]]),tblData[Индекс],0)),\"\")","v":"Киров "}]
[null,null,null,null,"Чебоксары ",{"$f":"NOT(ISERROR(SEARCH($B$2,tblData[[#This Row],[Город]])))","v":true},{"$f":"IF(tblData[[#This Row],[Статус]],COUNTIF($F$2:tblData[[#This Row],[Статус]],TRUE),\"\")","v":39},{"$f":"IFERROR(INDEX(tblData[Город],MATCH(ROWS($G$2:tblData[[#This Row],[Индекс]]),tblData[Индекс],0)),\"\")","v":"Чебоксары "}]
[null,null,null,null,"Калининград ",{"$f":"NOT(ISERROR(SEARCH($B$2,tblData[[#This Row],[Город]])))","v":true},{"$f":"IF(tblData[[#This Row],[Статус]],COUNTIF($F$2:tblData[[#This Row],[Статус]],TRUE),\"\")","v":40},{"$f":"IFERROR(INDEX(tblData[Город],MATCH(ROWS($G$2:tblData[[#This Row],[Индекс]]),tblData[Индекс],0)),\"\")","v":"Калининград "}]
[null,null,null,null,"Брянск ",{"$f":"NOT(ISERROR(SEARCH($B$2,tblData[[#This Row],[Город]])))","v":true},{"$f":"IF(tblData[[#This Row],[Статус]],COUNTIF($F$2:tblData[[#This Row],[Статус]],TRUE),\"\")","v":41},{"$f":"IFERROR(INDEX(tblData[Город],MATCH(ROWS($G$2:tblData[[#This Row],[Индекс]]),tblData[Индекс],0)),\"\")","v":"Брянск "}]
[null,null,null,null,"Курск ",{"$f":"NOT(ISERROR(SEARCH($B$2,tblData[[#This Row],[Город]])))","v":true},{"$f":"IF(tblData[[#This Row],[Статус]],COUNTIF($F$2:tblData[[#This Row],[Статус]],TRUE),\"\")","v":42},{"$f":"IFERROR(INDEX(tblData[Город],MATCH(ROWS($G$2:tblData[[#This Row],[Индекс]]),tblData[Индекс],0)),\"\")","v":"Курск "}]
[null,null,null,null,"Иваново ",{"$f":"NOT(ISERROR(SEARCH($B$2,tblData[[#This Row],[Город]])))","v":true},{"$f":"IF(tblData[[#This Row],[Статус]],COUNTIF($F$2:tblData[[#This Row],[Статус]],TRUE),\"\")","v":43},{"$f":"IFERROR(INDEX(tblData[Город],MATCH(ROWS($G$2:tblData[[#This Row],[Индекс]]),tblData[Индекс],0)),\"\")","v":"Иваново "}]
[null,null,null,null,"Магнитогорск ",{"$f":"NOT(ISERROR(SEARCH($B$2,tblData[[#This Row],[Город]])))","v":true},{"$f":"IF(tblData[[#This Row],[Статус]],COUNTIF($F$2:tblData[[#This Row],[Статус]],TRUE),\"\")","v":44},{"$f":"IFERROR(INDEX(tblData[Город],MATCH(ROWS($G$2:tblData[[#This Row],[Индекс]]),tblData[Индекс],0)),\"\")","v":"Магнитогорск "}]
[null,null,null,null,"Улан-Удэ ",{"$f":"NOT(ISERROR(SEARCH($B$2,tblData[[#This Row],[Город]])))","v":true},{"$f":"IF(tblData[[#This Row],[Статус]],COUNTIF($F$2:tblData[[#This Row],[Статус]],TRUE),\"\")","v":45},{"$f":"IFERROR(INDEX(tblData[Город],MATCH(ROWS($G$2:tblData[[#This Row],[Индекс]]),tblData[Индекс],0)),\"\")","v":"Улан-Удэ "}]
[null,null,null,null,"Тверь ",{"$f":"NOT(ISERROR(SEARCH($B$2,tblData[[#This Row],[Город]])))","v":true},{"$f":"IF(tblData[[#This Row],[Статус]],COUNTIF($F$2:tblData[[#This Row],[Статус]],TRUE),\"\")","v":46},{"$f":"IFERROR(INDEX(tblData[Город],MATCH(ROWS($G$2:tblData[[#This Row],[Индекс]]),tblData[Индекс],0)),\"\")","v":"Тверь "}]
[null,null,null,null,"Ставрополь ",{"$f":"NOT(ISERROR(SEARCH($B$2,tblData[[#This Row],[Город]])))","v":true},{"$f":"IF(tblData[[#This Row],[Статус]],COUNTIF($F$2:tblData[[#This Row],[Статус]],TRUE),\"\")","v":47},{"$f":"IFERROR(INDEX(tblData[Город],MATCH(ROWS($G$2:tblData[[#This Row],[Индекс]]),tblData[Индекс],0)),\"\")","v":"Ставрополь "}]
[null,null,null,null,"Симферополь ",{"$f":"NOT(ISERROR(SEARCH($B$2,tblData[[#This Row],[Город]])))","v":true},{"$f":"IF(tblData[[#This Row],[Статус]],COUNTIF($F$2:tblData[[#This Row],[Статус]],TRUE),\"\")","v":48},{"$f":"IFERROR(INDEX(tblData[Город],MATCH(ROWS($G$2:tblData[[#This Row],[Индекс]]),tblData[Индекс],0)),\"\")","v":"Симферополь "}]
[null,null,null,null,"Нижний Тагил ",{"$f":"NOT(ISERROR(SEARCH($B$2,tblData[[#This Row],[Город]])))","v":true},{"$f":"IF(tblData[[#This Row],[Статус]],COUNTIF($F$2:tblData[[#This Row],[Статус]],TRUE),\"\")","v":49},{"$f":"IFERROR(INDEX(tblData[Город],MATCH(ROWS($G$2:tblData[[#This Row],[Индекс]]),tblData[Индекс],0)),\"\")","v":"Нижний Тагил "}]
[null,null,null,null,"Белгород ",{"$f":"NOT(ISERROR(SEARCH($B$2,tblData[[#This Row],[Город]])))","v":true},{"$f":"IF(tblData[[#This Row],[Статус]],COUNTIF($F$2:tblData[[#This Row],[Статус]],TRUE),\"\")","v":50},{"$f":"IFERROR(INDEX(tblData[Город],MATCH(ROWS($G$2:tblData[[#This Row],[Индекс]]),tblData[Индекс],0)),\"\")","v":"Белгород "}]
[null,null,null,null,"Архангельск ",{"$f":"NOT(ISERROR(SEARCH($B$2,tblData[[#This Row],[Город]])))","v":true},{"$f":"IF(tblData[[#This Row],[Статус]],COUNTIF($F$2:tblData[[#This Row],[Статус]],TRUE),\"\")","v":51},{"$f":"IFERROR(INDEX(tblData[Город],MATCH(ROWS($G$2:tblData[[#This Row],[Индекс]]),tblData[Индекс],0)),\"\")","v":"Архангельск "}]
[null,null,null,null,"Владимир ",{"$f":"NOT(ISERROR(SEARCH($B$2,tblData[[#This Row],[Город]])))","v":true},{"$f":"IF(tblData[[#This Row],[Статус]],COUNTIF($F$2:tblData[[#This Row],[Статус]],TRUE),\"\")","v":52},{"$f":"IFERROR(INDEX(tblData[Город],MATCH(ROWS($G$2:tblData[[#This Row],[Индекс]]),tblData[Индекс],0)),\"\")","v":"Владимир "}]
[null,null,null,null,"Севастополь ",{"$f":"NOT(ISERROR(SEARCH($B$2,tblData[[#This Row],[Город]])))","v":true},{"$f":"IF(tblData[[#This Row],[Статус]],COUNTIF($F$2:tblData[[#This Row],[Статус]],TRUE),\"\")","v":53},{"$f":"IFERROR(INDEX(tblData[Город],MATCH(ROWS($G$2:tblData[[#This Row],[Индекс]]),tblData[Индекс],0)),\"\")","v":"Севастополь "}]
[null,null,null,null,"Сочи ",{"$f":"NOT(ISERROR(SEARCH($B$2,tblData[[#This Row],[Город]])))","v":true},{"$f":"IF(tblData[[#This Row],[Статус]],COUNTIF($F$2:tblData[[#This Row],[Статус]],TRUE),\"\")","v":54},{"$f":"IFERROR(INDEX(tblData[Город],MATCH(ROWS($G$2:tblData[[#This Row],[Индекс]]),tblData[Индекс],0)),\"\")","v":"Сочи "}]
[null,null,null,null,"Курган ",{"$f":"NOT(ISERROR(SEARCH($B$2,tblData[[#This Row],[Город]])))","v":true},{"$f":"IF(tblData[[#This Row],[Статус]],COUNTIF($F$2:tblData[[#This Row],[Статус]],TRUE),\"\")","v":55},{"$f":"IFERROR(INDEX(tblData[Город],MATCH(ROWS($G$2:tblData[[#This Row],[Индекс]]),tblData[Индекс],0)),\"\")","v":"Курган "}]
[null,null,null,null,"Смоленск ",{"$f":"NOT(ISERROR(SEARCH($B$2,tblData[[#This Row],[Город]])))","v":true},{"$f":"IF(tblData[[#This Row],[Статус]],COUNTIF($F$2:tblData[[#This Row],[Статус]],TRUE),\"\")","v":56},{"$f":"IFERROR(INDEX(tblData[Город],MATCH(ROWS($G$2:tblData[[#This Row],[Индекс]]),tblData[Индекс],0)),\"\")","v":"Смоленск "}]
[null,null,null,null,"Калуга ",{"$f":"NOT(ISERROR(SEARCH($B$2,tblData[[#This Row],[Город]])))","v":true},{"$f":"IF(tblData[[#This Row],[Статус]],COUNTIF($F$2:tblData[[#This Row],[Статус]],TRUE),\"\")","v":57},{"$f":"IFERROR(INDEX(tblData[Город],MATCH(ROWS($G$2:tblData[[#This Row],[Индекс]]),tblData[Индекс],0)),\"\")","v":"Калуга "}]
[null,null,null,null,"Чита ",{"$f":"NOT(ISERROR(SEARCH($B$2,tblData[[#This Row],[Город]])))","v":true},{"$f":"IF(tblData[[#This Row],[Статус]],COUNTIF($F$2:tblData[[#This Row],[Статус]],TRUE),\"\")","v":58},{"$f":"IFERROR(INDEX(tblData[Город],MATCH(ROWS($G$2:tblData[[#This Row],[Индекс]]),tblData[Индекс],0)),\"\")","v":"Чита "}]
[null,null,null,null,"Орёл ",{"$f":"NOT(ISERROR(SEARCH($B$2,tblData[[#This Row],[Город]])))","v":true},{"$f":"IF(tblData[[#This Row],[Статус]],COUNTIF($F$2:tblData[[#This Row],[Статус]],TRUE),\"\")","v":59},{"$f":"IFERROR(INDEX(tblData[Город],MATCH(ROWS($G$2:tblData[[#This Row],[Индекс]]),tblData[Индекс],0)),\"\")","v":"Орёл "}]
[null,null,null,null,"Волжский ",{"$f":"NOT(ISERROR(SEARCH($B$2,tblData[[#This Row],[Город]])))","v":true},{"$f":"IF(tblData[[#This Row],[Статус]],COUNTIF($F$2:tblData[[#This Row],[Статус]],TRUE),\"\")","v":60},{"$f":"IFERROR(INDEX(tblData[Город],MATCH(ROWS($G$2:tblData[[#This Row],[Индекс]]),tblData[Индекс],0)),\"\")","v":"Волжский "}]
[null,null,null,null,"Череповец ",{"$f":"NOT(ISERROR(SEARCH($B$2,tblData[[#This Row],[Город]])))","v":true},{"$f":"IF(tblData[[#This Row],[Статус]],COUNTIF($F$2:tblData[[#This Row],[Статус]],TRUE),\"\")","v":61},{"$f":"IFERROR(INDEX(tblData[Город],MATCH(ROWS($G$2:tblData[[#This Row],[Индекс]]),tblData[Индекс],0)),\"\")","v":"Череповец "}]
[null,null,null,null,"Владикавказ ",{"$f":"NOT(ISERROR(SEARCH($B$2,tblData[[#This Row],[Город]])))","v":true},{"$f":"IF(tblData[[#This Row],[Статус]],COUNTIF($F$2:tblData[[#This Row],[Статус]],TRUE),\"\")","v":62},{"$f":"IFERROR(INDEX(tblData[Город],MATCH(ROWS($G$2:tblData[[#This Row],[Индекс]]),tblData[Индекс],0)),\"\")","v":"Владикавказ "}]
[null,null,null,null,"Мурманск ",{"$f":"NOT(ISERROR(SEARCH($B$2,tblData[[#This Row],[Город]])))","v":true},{"$f":"IF(tblData[[#This Row],[Статус]],COUNTIF($F$2:tblData[[#This Row],[Статус]],TRUE),\"\")","v":63},{"$f":"IFERROR(INDEX(tblData[Город],MATCH(ROWS($G$2:tblData[[#This Row],[Индекс]]),tblData[Индекс],0)),\"\")","v":"Мурманск "}]
[null,null,null,null,"Сургут ",{"$f":"NOT(ISERROR(SEARCH($B$2,tblData[[#This Row],[Город]])))","v":true},{"$f":"IF(tblData[[#This Row],[Статус]],COUNTIF($F$2:tblData[[#This Row],[Статус]],TRUE),\"\")","v":64},{"$f":"IFERROR(INDEX(tblData[Город],MATCH(ROWS($G$2:tblData[[#This Row],[Индекс]]),tblData[Индекс],0)),\"\")","v":"Сургут "}]
[null,null,null,null,"Вологда ",{"$f":"NOT(ISERROR(SEARCH($B$2,tblData[[#This Row],[Город]])))","v":true},{"$f":"IF(tblData[[#This Row],[Статус]],COUNTIF($F$2:tblData[[#This Row],[Статус]],TRUE),\"\")","v":65},{"$f":"IFERROR(INDEX(tblData[Город],MATCH(ROWS($G$2:tblData[[#This Row],[Индекс]]),tblData[Индекс],0)),\"\")","v":"Вологда "}]
[null,null,null,null,"Саранск ",{"$f":"NOT(ISERROR(SEARCH($B$2,tblData[[#This Row],[Город]])))","v":true},{"$f":"IF(tblData[[#This Row],[Статус]],COUNTIF($F$2:tblData[[#This Row],[Статус]],TRUE),\"\")","v":66},{"$f":"IFERROR(INDEX(tblData[Город],MATCH(ROWS($G$2:tblData[[#This Row],[Индекс]]),tblData[Индекс],0)),\"\")","v":"Саранск "}]
[null,null,null,null,"Тамбов ",{"$f":"NOT(ISERROR(SEARCH($B$2,tblData[[#This Row],[Город]])))","v":true},{"$f":"IF(tblData[[#This Row],[Статус]],COUNTIF($F$2:tblData[[#This Row],[Статус]],TRUE),\"\")","v":67},{"$f":"IFERROR(INDEX(tblData[Город],MATCH(ROWS($G$2:tblData[[#This Row],[Индекс]]),tblData[Индекс],0)),\"\")","v":"Тамбов "}]
[null,null,null,null,"Стерлитамак ",{"$f":"NOT(ISERROR(SEARCH($B$2,tblData[[#This Row],[Город]])))","v":true},{"$f":"IF(tblData[[#This Row],[Статус]],COUNTIF($F$2:tblData[[#This Row],[Статус]],TRUE),\"\")","v":68},{"$f":"IFERROR(INDEX(tblData[Город],MATCH(ROWS($G$2:tblData[[#This Row],[Индекс]]),tblData[Индекс],0)),\"\")","v":"Стерлитамак "}]
[null,null,null,null,"Грозный ",{"$f":"NOT(ISERROR(SEARCH($B$2,tblData[[#This Row],[Город]])))","v":true},{"$f":"IF(tblData[[#This Row],[Статус]],COUNTIF($F$2:tblData[[#This Row],[Статус]],TRUE),\"\")","v":69},{"$f":"IFERROR(INDEX(tblData[Город],MATCH(ROWS($G$2:tblData[[#This Row],[Индекс]]),tblData[Индекс],0)),\"\")","v":"Грозный "}]
[null,null,null,null,"Якутск ",{"$f":"NOT(ISERROR(SEARCH($B$2,tblData[[#This Row],[Город]])))","v":true},{"$f":"IF(tblData[[#This Row],[Статус]],COUNTIF($F$2:tblData[[#This Row],[Статус]],TRUE),\"\")","v":70},{"$f":"IFERROR(INDEX(tblData[Город],MATCH(ROWS($G$2:tblData[[#This Row],[Индекс]]),tblData[Индекс],0)),\"\")","v":"Якутск "}]
[null,null,null,null,"Кострома ",{"$f":"NOT(ISERROR(SEARCH($B$2,tblData[[#This Row],[Город]])))","v":true},{"$f":"IF(tblData[[#This Row],[Статус]],COUNTIF($F$2:tblData[[#This Row],[Статус]],TRUE),\"\")","v":71},{"$f":"IFERROR(INDEX(tblData[Город],MATCH(ROWS($G$2:tblData[[#This Row],[Индекс]]),tblData[Индекс],0)),\"\")","v":"Кострома "}]
[null,null,null,null,"Комсомольск-на-Амуре ",{"$f":"NOT(ISERROR(SEARCH($B$2,tblData[[#This Row],[Город]])))","v":true},{"$f":"IF(tblData[[#This Row],[Статус]],COUNTIF($F$2:tblData[[#This Row],[Статус]],TRUE),\"\")","v":72},{"$f":"IFERROR(INDEX(tblData[Город],MATCH(ROWS($G$2:tblData[[#This Row],[Индекс]]),tblData[Индекс],0)),\"\")","v":"Комсомольск-на-Амуре "}]
[null,null,null,null,"Петрозаводск ",{"$f":"NOT(ISERROR(SEARCH($B$2,tblData[[#This Row],[Город]])))","v":true},{"$f":"IF(tblData[[#This Row],[Статус]],COUNTIF($F$2:tblData[[#This Row],[Статус]],TRUE),\"\")","v":73},{"$f":"IFERROR(INDEX(tblData[Город],MATCH(ROWS($G$2:tblData[[#This Row],[Индекс]]),tblData[Индекс],0)),\"\")","v":"Петрозаводск "}]
[null,null,null,null,"Таганрог ",{"$f":"NOT(ISERROR(SEARCH($B$2,tblData[[#This Row],[Город]])))","v":true},{"$f":"IF(tblData[[#This Row],[Статус]],COUNTIF($F$2:tblData[[#This Row],[Статус]],TRUE),\"\")","v":74},{"$f":"IFERROR(INDEX(tblData[Город],MATCH(ROWS($G$2:tblData[[#This Row],[Индекс]]),tblData[Индекс],0)),\"\")","v":"Таганрог "}]
[null,null,null,null,"Нижневартовск ",{"$f":"NOT(ISERROR(SEARCH($B$2,tblData[[#This Row],[Город]])))","v":true},{"$f":"IF(tblData[[#This Row],[Статус]],COUNTIF($F$2:tblData[[#This Row],[Статус]],TRUE),\"\")","v":75},{"$f":"IFERROR(INDEX(tblData[Город],MATCH(ROWS($G$2:tblData[[#This Row],[Индекс]]),tblData[Индекс],0)),\"\")","v":"Нижневартовск "}]
[null,null,null,null,"Йошкар-Ола ",{"$f":"NOT(ISERROR(SEARCH($B$2,tblData[[#This Row],[Город]])))","v":true},{"$f":"IF(tblData[[#This Row],[Статус]],COUNTIF($F$2:tblData[[#This Row],[Статус]],TRUE),\"\")","v":76},{"$f":"IFERROR(INDEX(tblData[Город],MATCH(ROWS($G$2:tblData[[#This Row],[Индекс]]),tblData[Индекс],0)),\"\")","v":"Йошкар-Ола "}]
[null,null,null,null,"Братск ",{"$f":"NOT(ISERROR(SEARCH($B$2,tblData[[#This Row],[Город]])))","v":true},{"$f":"IF(tblData[[#This Row],[Статус]],COUNTIF($F$2:tblData[[#This Row],[Статус]],TRUE),\"\")","v":77},{"$f":"IFERROR(INDEX(tblData[Город],MATCH(ROWS($G$2:tblData[[#This Row],[Индекс]]),tblData[Индекс],0)),\"\")","v":"Братск "}]
[null,null,null,null,"Новороссийск ",{"$f":"NOT(ISERROR(SEARCH($B$2,tblData[[#This Row],[Город]])))","v":true},{"$f":"IF(tblData[[#This Row],[Статус]],COUNTIF($F$2:tblData[[#This Row],[Статус]],TRUE),\"\")","v":78},{"$f":"IFERROR(INDEX(tblData[Город],MATCH(ROWS($G$2:tblData[[#This Row],[Индекс]]),tblData[Индекс],0)),\"\")","v":"Новороссийск "}]
[null,null,null,null,"Дзержинск ",{"$f":"NOT(ISERROR(SEARCH($B$2,tblData[[#This Row],[Город]])))","v":true},{"$f":"IF(tblData[[#This Row],[Статус]],COUNTIF($F$2:tblData[[#This Row],[Статус]],TRUE),\"\")","v":79},{"$f":"IFERROR(INDEX(tblData[Город],MATCH(ROWS($G$2:tblData[[#This Row],[Индекс]]),tblData[Индекс],0)),\"\")","v":"Дзержинск "}]
[null,null,null,null,"Шахты ",{"$f":"NOT(ISERROR(SEARCH($B$2,tblData[[#This Row],[Город]])))","v":true},{"$f":"IF(tblData[[#This Row],[Статус]],COUNTIF($F$2:tblData[[#This Row],[Статус]],TRUE),\"\")","v":80},{"$f":"IFERROR(INDEX(tblData[Город],MATCH(ROWS($G$2:tblData[[#This Row],[Индекс]]),tblData[Индекс],0)),\"\")","v":"Шахты "}]
[null,null,null,null,"Нальчик ",{"$f":"NOT(ISERROR(SEARCH($B$2,tblData[[#This Row],[Город]])))","v":true},{"$f":"IF(tblData[[#This Row],[Статус]],COUNTIF($F$2:tblData[[#This Row],[Статус]],TRUE),\"\")","v":81},{"$f":"IFERROR(INDEX(tblData[Город],MATCH(ROWS($G$2:tblData[[#This Row],[Индекс]]),tblData[Индекс],0)),\"\")","v":"Нальчик "}]
[null,null,null,null,"Орск ",{"$f":"NOT(ISERROR(SEARCH($B$2,tblData[[#This Row],[Город]])))","v":true},{"$f":"IF(tblData[[#This Row],[Статус]],COUNTIF($F$2:tblData[[#This Row],[Статус]],TRUE),\"\")","v":82},{"$f":"IFERROR(INDEX(tblData[Город],MATCH(ROWS($G$2:tblData[[#This Row],[Индекс]]),tblData[Индекс],0)),\"\")","v":"Орск "}]
[null,null,null,null,"Сыктывкар ",{"$f":"NOT(ISERROR(SEARCH($B$2,tblData[[#This Row],[Город]])))","v":true},{"$f":"IF(tblData[[#This Row],[Статус]],COUNTIF($F$2:tblData[[#This Row],[Статус]],TRUE),\"\")","v":83},{"$f":"IFERROR(INDEX(tblData[Город],MATCH(ROWS($G$2:tblData[[#This Row],[Индекс]]),tblData[Индекс],0)),\"\")","v":"Сыктывкар "}]
[null,null,null,null,"Нижнекамск ",{"$f":"NOT(ISERROR(SEARCH($B$2,tblData[[#This Row],[Город]])))","v":true},{"$f":"IF(tblData[[#This Row],[Статус]],COUNTIF($F$2:tblData[[#This Row],[Статус]],TRUE),\"\")","v":84},{"$f":"IFERROR(INDEX(tblData[Город],MATCH(ROWS($G$2:tblData[[#This Row],[Индекс]]),tblData[Индекс],0)),\"\")","v":"Нижнекамск "}]
[null,null,null,null,"Ангарск ",{"$f":"NOT(ISERROR(SEARCH($B$2,tblData[[#This Row],[Город]])))","v":true},{"$f":"IF(tblData[[#This Row],[Статус]],COUNTIF($F$2:tblData[[#This Row],[Статус]],TRUE),\"\")","v":85},{"$f":"IFERROR(INDEX(tblData[Город],MATCH(ROWS($G$2:tblData[[#This Row],[Индекс]]),tblData[Индекс],0)),\"\")","v":"Ангарск "}]
[null,null,null,null,"Старый Оскол ",{"$f":"NOT(ISERROR(SEARCH($B$2,tblData[[#This Row],[Город]])))","v":true},{"$f":"IF(tblData[[#This Row],[Статус]],COUNTIF($F$2:tblData[[#This Row],[Статус]],TRUE),\"\")","v":86},{"$f":"IFERROR(INDEX(tblData[Город],MATCH(ROWS($G$2:tblData[[#This Row],[Индекс]]),tblData[Индекс],0)),\"\")","v":"Старый Оскол "}]
[null,null,null,null,"Великий Новгород ",{"$f":"NOT(ISERROR(SEARCH($B$2,tblData[[#This Row],[Город]])))","v":true},{"$f":"IF(tblData[[#This Row],[Статус]],COUNTIF($F$2:tblData[[#This Row],[Статус]],TRUE),\"\")","v":87},{"$f":"IFERROR(INDEX(tblData[Город],MATCH(ROWS($G$2:tblData[[#This Row],[Индекс]]),tblData[Индекс],0)),\"\")","v":"Великий Новгород "}]
[null,null,null,null,"Балашиха ",{"$f":"NOT(ISERROR(SEARCH($B$2,tblData[[#This Row],[Город]])))","v":true},{"$f":"IF(tblData[[#This Row],[Статус]],COUNTIF($F$2:tblData[[#This Row],[Статус]],TRUE),\"\")","v":88},{"$f":"IFERROR(INDEX(tblData[Город],MATCH(ROWS($G$2:tblData[[#This Row],[Индекс]]),tblData[Индекс],0)),\"\")","v":"Балашиха "}]
[null,null,null,null,"Благовещенск ",{"$f":"NOT(ISERROR(SEARCH($B$2,tblData[[#This Row],[Город]])))","v":true},{"$f":"IF(tblData[[#This Row],[Статус]],COUNTIF($F$2:tblData[[#This Row],[Статус]],TRUE),\"\")","v":89},{"$f":"IFERROR(INDEX(tblData[Город],MATCH(ROWS($G$2:tblData[[#This Row],[Индекс]]),tblData[Индекс],0)),\"\")","v":"Благовещенск "}]
[null,null,null,null,"Прокопьевск ",{"$f":"NOT(ISERROR(SEARCH($B$2,tblData[[#This Row],[Город]])))","v":true},{"$f":"IF(tblData[[#This Row],[Статус]],COUNTIF($F$2:tblData[[#This Row],[Статус]],TRUE),\"\")","v":90},{"$f":"IFERROR(INDEX(tblData[Город],MATCH(ROWS($G$2:tblData[[#This Row],[Индекс]]),tblData[Индекс],0)),\"\")","v":"Прокопьевск "}]
[null,null,null,null,"Бийск ",{"$f":"NOT(ISERROR(SEARCH($B$2,tblData[[#This Row],[Город]])))","v":true},{"$f":"IF(tblData[[#This Row],[Статус]],COUNTIF($F$2:tblData[[#This Row],[Статус]],TRUE),\"\")","v":91},{"$f":"IFERROR(INDEX(tblData[Город],MATCH(ROWS($G$2:tblData[[#This Row],[Индекс]]),tblData[Индекс],0)),\"\")","v":"Бийск "}]
[null,null,null,null,"Химки ",{"$f":"NOT(ISERROR(SEARCH($B$2,tblData[[#This Row],[Город]])))","v":true},{"$f":"IF(tblData[[#This Row],[Статус]],COUNTIF($F$2:tblData[[#This Row],[Статус]],TRUE),\"\")","v":92},{"$f":"IFERROR(INDEX(tblData[Город],MATCH(ROWS($G$2:tblData[[#This Row],[Индекс]]),tblData[Индекс],0)),\"\")","v":"Химки "}]
[null,null,null,null,"Псков ",{"$f":"NOT(ISERROR(SEARCH($B$2,tblData[[#This Row],[Город]])))","v":true},{"$f":"IF(tblData[[#This Row],[Статус]],COUNTIF($F$2:tblData[[#This Row],[Статус]],TRUE),\"\")","v":93},{"$f":"IFERROR(INDEX(tblData[Город],MATCH(ROWS($G$2:tblData[[#This Row],[Индекс]]),tblData[Индекс],0)),\"\")","v":"Псков "}]
[null,null,null,null,"Энгельс ",{"$f":"NOT(ISERROR(SEARCH($B$2,tblData[[#This Row],[Город]])))","v":true},{"$f":"IF(tblData[[#This Row],[Статус]],COUNTIF($F$2:tblData[[#This Row],[Статус]],TRUE),\"\")","v":94},{"$f":"IFERROR(INDEX(tblData[Город],MATCH(ROWS($G$2:tblData[[#This Row],[Индекс]]),tblData[Индекс],0)),\"\")","v":"Энгельс "}]
[null,null,null,null,"Рыбинск ",{"$f":"NOT(ISERROR(SEARCH($B$2,tblData[[#This Row],[Город]])))","v":true},{"$f":"IF(tblData[[#This Row],[Статус]],COUNTIF($F$2:tblData[[#This Row],[Статус]],TRUE),\"\")","v":95},{"$f":"IFERROR(INDEX(tblData[Город],MATCH(ROWS($G$2:tblData[[#This Row],[Индекс]]),tblData[Индекс],0)),\"\")","v":"Рыбинск "}]
[null,null,null,null,"Балаково ",{"$f":"NOT(ISERROR(SEARCH($B$2,tblData[[#This Row],[Город]])))","v":true},{"$f":"IF(tblData[[#This Row],[Статус]],COUNTIF($F$2:tblData[[#This Row],[Статус]],TRUE),\"\")","v":96},{"$f":"IFERROR(INDEX(tblData[Город],MATCH(ROWS($G$2:tblData[[#This Row],[Индекс]]),tblData[Индекс],0)),\"\")","v":"Балаково "}]
[null,null,null,null,"Северодвинск ",{"$f":"NOT(ISERROR(SEARCH($B$2,tblData[[#This Row],[Город]])))","v":true},{"$f":"IF(tblData[[#This Row],[Статус]],COUNTIF($F$2:tblData[[#This Row],[Статус]],TRUE),\"\")","v":97},{"$f":"IFERROR(INDEX(tblData[Город],MATCH(ROWS($G$2:tblData[[#This Row],[Индекс]]),tblData[Индекс],0)),\"\")","v":"Северодвинск "}]
[null,null,null,null,"Армавир ",{"$f":"NOT(ISERROR(SEARCH($B$2,tblData[[#This Row],[Город]])))","v":true},{"$f":"IF(tblData[[#This Row],[Статус]],COUNTIF($F$2:tblData[[#This Row],[Статус]],TRUE),\"\")","v":98},{"$f":"IFERROR(INDEX(tblData[Город],MATCH(ROWS($G$2:tblData[[#This Row],[Индекс]]),tblData[Индекс],0)),\"\")","v":"Армавир "}]
[null,null,null,null,"Подольск ",{"$f":"NOT(ISERROR(SEARCH($B$2,tblData[[#This Row],[Город]])))","v":true},{"$f":"IF(tblData[[#This Row],[Статус]],COUNTIF($F$2:tblData[[#This Row],[Статус]],TRUE),\"\")","v":99},{"$f":"IFERROR(INDEX(tblData[Город],MATCH(ROWS($G$2:tblData[[#This Row],[Индекс]]),tblData[Индекс],0)),\"\")","v":"Подольск "}]
[null,null,null,null,"Королёв ",{"$f":"NOT(ISERROR(SEARCH($B$2,tblData[[#This Row],[Город]])))","v":true},{"$f":"IF(tblData[[#This Row],[Статус]],COUNTIF($F$2:tblData[[#This Row],[Статус]],TRUE),\"\")","v":100},{"$f":"IFERROR(INDEX(tblData[Город],MATCH(ROWS($G$2:tblData[[#This Row],[Индекс]]),tblData[Индекс],0)),\"\")","v":"Королёв "}]
[null,null,null,null,"Южно-Сахалинск ",{"$f":"NOT(ISERROR(SEARCH($B$2,tblData[[#This Row],[Город]])))","v":true},{"$f":"IF(tblData[[#This Row],[Статус]],COUNTIF($F$2:tblData[[#This Row],[Статус]],TRUE),\"\")","v":101},{"$f":"IFERROR(INDEX(tblData[Город],MATCH(ROWS($G$2:tblData[[#This Row],[Индекс]]),tblData[Индекс],0)),\"\")","v":"Южно-Сахалинск "}]
[null,null,null,null,"Петропавловск-Камчатский ",{"$f":"NOT(ISERROR(SEARCH($B$2,tblData[[#This Row],[Город]])))","v":true},{"$f":"IF(tblData[[#This Row],[Статус]],COUNTIF($F$2:tblData[[#This Row],[Статус]],TRUE),\"\")","v":102},{"$f":"IFERROR(INDEX(tblData[Город],MATCH(ROWS($G$2:tblData[[#This Row],[Индекс]]),tblData[Индекс],0)),\"\")","v":"Петропавловск-Камчатский "}]
[null,null,null,null,"Сызрань ",{"$f":"NOT(ISERROR(SEARCH($B$2,tblData[[#This Row],[Город]])))","v":true},{"$f":"IF(tblData[[#This Row],[Статус]],COUNTIF($F$2:tblData[[#This Row],[Статус]],TRUE),\"\")","v":103},{"$f":"IFERROR(INDEX(tblData[Город],MATCH(ROWS($G$2:tblData[[#This Row],[Индекс]]),tblData[Индекс],0)),\"\")","v":"Сызрань "}]
[null,null,null,null,"Норильск ",{"$f":"NOT(ISERROR(SEARCH($B$2,tblData[[#This Row],[Город]])))","v":true},{"$f":"IF(tblData[[#This Row],[Статус]],COUNTIF($F$2:tblData[[#This Row],[Статус]],TRUE),\"\")","v":104},{"$f":"IFERROR(INDEX(tblData[Город],MATCH(ROWS($G$2:tblData[[#This Row],[Индекс]]),tblData[Индекс],0)),\"\")","v":"Норильск "}]
[null,null,null,null,"Златоуст ",{"$f":"NOT(ISERROR(SEARCH($B$2,tblData[[#This Row],[Город]])))","v":true},{"$f":"IF(tblData[[#This Row],[Статус]],COUNTIF($F$2:tblData[[#This Row],[Статус]],TRUE),\"\")","v":105},{"$f":"IFERROR(INDEX(tblData[Город],MATCH(ROWS($G$2:tblData[[#This Row],[Индекс]]),tblData[Индекс],0)),\"\")","v":"Златоуст "}]
[null,null,null,null,"Каменск-Уральский ",{"$f":"NOT(ISERROR(SEARCH($B$2,tblData[[#This Row],[Город]])))","v":true},{"$f":"IF(tblData[[#This Row],[Статус]],COUNTIF($F$2:tblData[[#This Row],[Статус]],TRUE),\"\")","v":106},{"$f":"IFERROR(INDEX(tblData[Город],MATCH(ROWS($G$2:tblData[[#This Row],[Индекс]]),tblData[Индекс],0)),\"\")","v":"Каменск-Уральский "}]
[null,null,null,null,"Мытищи ",{"$f":"NOT(ISERROR(SEARCH($B$2,tblData[[#This Row],[Город]])))","v":true},{"$f":"IF(tblData[[#This Row],[Статус]],COUNTIF($F$2:tblData[[#This Row],[Статус]],TRUE),\"\")","v":107},{"$f":"IFERROR(INDEX(tblData[Город],MATCH(ROWS($G$2:tblData[[#This Row],[Индекс]]),tblData[Индекс],0)),\"\")","v":"Мытищи "}]
[null,null,null,null,"Люберцы ",{"$f":"NOT(ISERROR(SEARCH($B$2,tblData[[#This Row],[Город]])))","v":true},{"$f":"IF(tblData[[#This Row],[Статус]],COUNTIF($F$2:tblData[[#This Row],[Статус]],TRUE),\"\")","v":108},{"$f":"IFERROR(INDEX(tblData[Город],MATCH(ROWS($G$2:tblData[[#This Row],[Индекс]]),tblData[Индекс],0)),\"\")","v":"Люберцы "}]
[null,null,null,null,"Волгодонск ",{"$f":"NOT(ISERROR(SEARCH($B$2,tblData[[#This Row],[Город]])))","v":true},{"$f":"IF(tblData[[#This Row],[Статус]],COUNTIF($F$2:tblData[[#This Row],[Статус]],TRUE),\"\")","v":109},{"$f":"IFERROR(INDEX(tblData[Город],MATCH(ROWS($G$2:tblData[[#This Row],[Индекс]]),tblData[Индекс],0)),\"\")","v":"Волгодонск "}]
[null,null,null,null,"Новочеркасск ",{"$f":"NOT(ISERROR(SEARCH($B$2,tblData[[#This Row],[Город]])))","v":true},{"$f":"IF(tblData[[#This Row],[Статус]],COUNTIF($F$2:tblData[[#This Row],[Статус]],TRUE),\"\")","v":110},{"$f":"IFERROR(INDEX(tblData[Город],MATCH(ROWS($G$2:tblData[[#This Row],[Индекс]]),tblData[Индекс],0)),\"\")","v":"Новочеркасск "}]
[null,null,null,null,"Абакан ",{"$f":"NOT(ISERROR(SEARCH($B$2,tblData[[#This Row],[Город]])))","v":true},{"$f":"IF(tblData[[#This Row],[Статус]],COUNTIF($F$2:tblData[[#This Row],[Статус]],TRUE),\"\")","v":111},{"$f":"IFERROR(INDEX(tblData[Город],MATCH(ROWS($G$2:tblData[[#This Row],[Индекс]]),tblData[Индекс],0)),\"\")","v":"Абакан "}]
[null,null,null,null,"Находка ",{"$f":"NOT(ISERROR(SEARCH($B$2,tblData[[#This Row],[Город]])))","v":true},{"$f":"IF(tblData[[#This Row],[Статус]],COUNTIF($F$2:tblData[[#This Row],[Статус]],TRUE),\"\")","v":112},{"$f":"IFERROR(INDEX(tblData[Город],MATCH(ROWS($G$2:tblData[[#This Row],[Индекс]]),tblData[Индекс],0)),\"\")","v":"Находка "}]
[null,null,null,null,"Уссурийск ",{"$f":"NOT(ISERROR(SEARCH($B$2,tblData[[#This Row],[Город]])))","v":true},{"$f":"IF(tblData[[#This Row],[Статус]],COUNTIF($F$2:tblData[[#This Row],[Статус]],TRUE),\"\")","v":113},{"$f":"IFERROR(INDEX(tblData[Город],MATCH(ROWS($G$2:tblData[[#This Row],[Индекс]]),tblData[Индекс],0)),\"\")","v":"Уссурийск "}]
[null,null,null,null,"Березники ",{"$f":"NOT(ISERROR(SEARCH($B$2,tblData[[#This Row],[Город]])))","v":true},{"$f":"IF(tblData[[#This Row],[Статус]],COUNTIF($F$2:tblData[[#This Row],[Статус]],TRUE),\"\")","v":114},{"$f":"IFERROR(INDEX(tblData[Город],MATCH(ROWS($G$2:tblData[[#This Row],[Индекс]]),tblData[Индекс],0)),\"\")","v":"Березники "}]
[null,null,null,null,"Салават ",{"$f":"NOT(ISERROR(SEARCH($B$2,tblData[[#This Row],[Город]])))","v":true},{"$f":"IF(tblData[[#This Row],[Статус]],COUNTIF($F$2:tblData[[#This Row],[Статус]],TRUE),\"\")","v":115},{"$f":"IFERROR(INDEX(tblData[Город],MATCH(ROWS($G$2:tblData[[#This Row],[Индекс]]),tblData[Индекс],0)),\"\")","v":"Салават "}]
[null,null,null,null,"Электросталь ",{"$f":"NOT(ISERROR(SEARCH($B$2,tblData[[#This Row],[Город]])))","v":true},{"$f":"IF(tblData[[#This Row],[Статус]],COUNTIF($F$2:tblData[[#This Row],[Статус]],TRUE),\"\")","v":116},{"$f":"IFERROR(INDEX(tblData[Город],MATCH(ROWS($G$2:tblData[[#This Row],[Индекс]]),tblData[Индекс],0)),\"\")","v":"Электросталь "}]
[null,null,null,null,"Миасс ",{"$f":"NOT(ISERROR(SEARCH($B$2,tblData[[#This Row],[Город]])))","v":true},{"$f":"IF(tblData[[#This Row],[Статус]],COUNTIF($F$2:tblData[[#This Row],[Статус]],TRUE),\"\")","v":117},{"$f":"IFERROR(INDEX(tblData[Город],MATCH(ROWS($G$2:tblData[[#This Row],[Индекс]]),tblData[Индекс],0)),\"\")","v":"Миасс "}]
[null,null,null,null,"Первоуральск ",{"$f":"NOT(ISERROR(SEARCH($B$2,tblData[[#This Row],[Город]])))","v":true},{"$f":"IF(tblData[[#This Row],[Статус]],COUNTIF($F$2:tblData[[#This Row],[Статус]],TRUE),\"\")","v":118},{"$f":"IFERROR(INDEX(tblData[Город],MATCH(ROWS($G$2:tblData[[#This Row],[Индекс]]),tblData[Индекс],0)),\"\")","v":"Первоуральск "}]
[null,null,null,null,"Рубцовск ",{"$f":"NOT(ISERROR(SEARCH($B$2,tblData[[#This Row],[Город]])))","v":true},{"$f":"IF(tblData[[#This Row],[Статус]],COUNTIF($F$2:tblData[[#This Row],[Статус]],TRUE),\"\")","v":119},{"$f":"IFERROR(INDEX(tblData[Город],MATCH(ROWS($G$2:tblData[[#This Row],[Индекс]]),tblData[Индекс],0)),\"\")","v":"Рубцовск "}]
[null,null,null,null,"Альметьевск ",{"$f":"NOT(ISERROR(SEARCH($B$2,tblData[[#This Row],[Город]])))","v":true},{"$f":"IF(tblData[[#This Row],[Статус]],COUNTIF($F$2:tblData[[#This Row],[Статус]],TRUE),\"\")","v":120},{"$f":"IFERROR(INDEX(tblData[Город],MATCH(ROWS($G$2:tblData[[#This Row],[Индекс]]),tblData[Индекс],0)),\"\")","v":"Альметьевск "}]
[null,null,null,null,"Ковров ",{"$f":"NOT(ISERROR(SEARCH($B$2,tblData[[#This Row],[Город]])))","v":true},{"$f":"IF(tblData[[#This Row],[Статус]],COUNTIF($F$2:tblData[[#This Row],[Статус]],TRUE),\"\")","v":121},{"$f":"IFERROR(INDEX(tblData[Город],MATCH(ROWS($G$2:tblData[[#This Row],[Индекс]]),tblData[Индекс],0)),\"\")","v":"Ковров "}]
[null,null,null,null,"Коломна ",{"$f":"NOT(ISERROR(SEARCH($B$2,tblData[[#This Row],[Город]])))","v":true},{"$f":"IF(tblData[[#This Row],[Статус]],COUNTIF($F$2:tblData[[#This Row],[Статус]],TRUE),\"\")","v":122},{"$f":"IFERROR(INDEX(tblData[Город],MATCH(ROWS($G$2:tblData[[#This Row],[Индекс]]),tblData[Индекс],0)),\"\")","v":"Коломна "}]
[null,null,null,null,"Керчь ",{"$f":"NOT(ISERROR(SEARCH($B$2,tblData[[#This Row],[Город]])))","v":true},{"$f":"IF(tblData[[#This Row],[Статус]],COUNTIF($F$2:tblData[[#This Row],[Статус]],TRUE),\"\")","v":123},{"$f":"IFERROR(INDEX(tblData[Город],MATCH(ROWS($G$2:tblData[[#This Row],[Индекс]]),tblData[Индекс],0)),\"\")","v":"Керчь "}]
[null,null,null,null,"Майкоп ",{"$f":"NOT(ISERROR(SEARCH($B$2,tblData[[#This Row],[Город]])))","v":true},{"$f":"IF(tblData[[#This Row],[Статус]],COUNTIF($F$2:tblData[[#This Row],[Статус]],TRUE),\"\")","v":124},{"$f":"IFERROR(INDEX(tblData[Город],MATCH(ROWS($G$2:tblData[[#This Row],[Индекс]]),tblData[Индекс],0)),\"\")","v":"Майкоп "}]
[null,null,null,null,"Пятигорск ",{"$f":"NOT(ISERROR(SEARCH($B$2,tblData[[#This Row],[Город]])))","v":true},{"$f":"IF(tblData[[#This Row],[Статус]],COUNTIF($F$2:tblData[[#This Row],[Статус]],TRUE),\"\")","v":125},{"$f":"IFERROR(INDEX(tblData[Город],MATCH(ROWS($G$2:tblData[[#This Row],[Индекс]]),tblData[Индекс],0)),\"\")","v":"Пятигорск "}]
[null,null,null,null,"Одинцово ",{"$f":"NOT(ISERROR(SEARCH($B$2,tblData[[#This Row],[Город]])))","v":true},{"$f":"IF(tblData[[#This Row],[Статус]],COUNTIF($F$2:tblData[[#This Row],[Статус]],TRUE),\"\")","v":126},{"$f":"IFERROR(INDEX(tblData[Город],MATCH(ROWS($G$2:tblData[[#This Row],[Индекс]]),tblData[Индекс],0)),\"\")","v":"Одинцово "}]
[null,null,null,null,"Колпино ",{"$f":"NOT(ISERROR(SEARCH($B$2,tblData[[#This Row],[Город]])))","v":true},{"$f":"IF(tblData[[#This Row],[Статус]],COUNTIF($F$2:tblData[[#This Row],[Статус]],TRUE),\"\")","v":127},{"$f":"IFERROR(INDEX(tblData[Город],MATCH(ROWS($G$2:tblData[[#This Row],[Индекс]]),tblData[Индекс],0)),\"\")","v":"Колпино "}]
[null,null,null,null,"Копейск ",{"$f":"NOT(ISERROR(SEARCH($B$2,tblData[[#This Row],[Город]])))","v":true},{"$f":"IF(tblData[[#This Row],[Статус]],COUNTIF($F$2:tblData[[#This Row],[Статус]],TRUE),\"\")","v":128},{"$f":"IFERROR(INDEX(tblData[Город],MATCH(ROWS($G$2:tblData[[#This Row],[Индекс]]),tblData[Индекс],0)),\"\")","v":"Копейск "}]
[null,null,null,null,"Хасавюрт ",{"$f":"NOT(ISERROR(SEARCH($B$2,tblData[[#This Row],[Город]])))","v":true},{"$f":"IF(tblData[[#This Row],[Статус]],COUNTIF($F$2:tblData[[#This Row],[Статус]],TRUE),\"\")","v":129},{"$f":"IFERROR(INDEX(tblData[Город],MATCH(ROWS($G$2:tblData[[#This Row],[Индекс]]),tblData[Индекс],0)),\"\")","v":"Хасавюрт "}]
[null,null,null,null,"Железнодорожный ",{"$f":"NOT(ISERROR(SEARCH($B$2,tblData[[#This Row],[Город]])))","v":true},{"$f":"IF(tblData[[#This Row],[Статус]],COUNTIF($F$2:tblData[[#This Row],[Статус]],TRUE),\"\")","v":130},{"$f":"IFERROR(INDEX(tblData[Город],MATCH(ROWS($G$2:tblData[[#This Row],[Индекс]]),tblData[Индекс],0)),\"\")","v":"Железнодорожный "}]
[null,null,null,null,"Новомосковск ",{"$f":"NOT(ISERROR(SEARCH($B$2,tblData[[#This Row],[Город]])))","v":true},{"$f":"IF(tblData[[#This Row],[Статус]],COUNTIF($F$2:tblData[[#This Row],[Статус]],TRUE),\"\")","v":131},{"$f":"IFERROR(INDEX(tblData[Город],MATCH(ROWS($G$2:tblData[[#This Row],[Индекс]]),tblData[Индекс],0)),\"\")","v":"Новомосковск "}]
[null,null,null,null,"Кисловодск ",{"$f":"NOT(ISERROR(SEARCH($B$2,tblData[[#This Row],[Город]])))","v":true},{"$f":"IF(tblData[[#This Row],[Статус]],COUNTIF($F$2:tblData[[#This Row],[Статус]],TRUE),\"\")","v":132},{"$f":"IFERROR(INDEX(tblData[Город],MATCH(ROWS($G$2:tblData[[#This Row],[Индекс]]),tblData[Индекс],0)),\"\")","v":"Кисловодск "}]
[null,null,null,null,"Серпухов ",{"$f":"NOT(ISERROR(SEARCH($B$2,tblData[[#This Row],[Город]])))","v":true},{"$f":"IF(tblData[[#This Row],[Статус]],COUNTIF($F$2:tblData[[#This Row],[Статус]],TRUE),\"\")","v":133},{"$f":"IFERROR(INDEX(tblData[Город],MATCH(ROWS($G$2:tblData[[#This Row],[Индекс]]),tblData[Индекс],0)),\"\")","v":"Серпухов "}]
[null,null,null,null,"Новочебоксарск ",{"$f":"NOT(ISERROR(SEARCH($B$2,tblData[[#This Row],[Город]])))","v":true},{"$f":"IF(tblData[[#This Row],[Статус]],COUNTIF($F$2:tblData[[#This Row],[Статус]],TRUE),\"\")","v":134},{"$f":"IFERROR(INDEX(tblData[Город],MATCH(ROWS($G$2:tblData[[#This Row],[Индекс]]),tblData[Индекс],0)),\"\")","v":"Новочебоксарск "}]
[null,null,null,null,"Нефтеюганск ",{"$f":"NOT(ISERROR(SEARCH($B$2,tblData[[#This Row],[Город]])))","v":true},{"$f":"IF(tblData[[#This Row],[Статус]],COUNTIF($F$2:tblData[[#This Row],[Статус]],TRUE),\"\")","v":135},{"$f":"IFERROR(INDEX(tblData[Город],MATCH(ROWS($G$2:tblData[[#This Row],[Индекс]]),tblData[Индекс],0)),\"\")","v":"Нефтеюганск "}]
[null,null,null,null,"Димитровград ",{"$f":"NOT(ISERROR(SEARCH($B$2,tblData[[#This Row],[Город]])))","v":true},{"$f":"IF(tblData[[#This Row],[Статус]],COUNTIF($F$2:tblData[[#This Row],[Статус]],TRUE),\"\")","v":136},{"$f":"IFERROR(INDEX(tblData[Город],MATCH(ROWS($G$2:tblData[[#This Row],[Индекс]]),tblData[Индекс],0)),\"\")","v":"Димитровград "}]
[null,null,null,null,"Нефтекамск ",{"$f":"NOT(ISERROR(SEARCH($B$2,tblData[[#This Row],[Город]])))","v":true},{"$f":"IF(tblData[[#This Row],[Статус]],COUNTIF($F$2:tblData[[#This Row],[Статус]],TRUE),\"\")","v":137},{"$f":"IFERROR(INDEX(tblData[Город],MATCH(ROWS($G$2:tblData[[#This Row],[Индекс]]),tblData[Индекс],0)),\"\")","v":"Нефтекамск "}]
[null,null,null,null,"Черкесск ",{"$f":"NOT(ISERROR(SEARCH($B$2,tblData[[#This Row],[Город]])))","v":true},{"$f":"IF(tblData[[#This Row],[Статус]],COUNTIF($F$2:tblData[[#This Row],[Статус]],TRUE),\"\")","v":138},{"$f":"IFERROR(INDEX(tblData[Город],MATCH(ROWS($G$2:tblData[[#This Row],[Индекс]]),tblData[Индекс],0)),\"\")","v":"Черкесск "}]
[null,null,null,null,"Орехово-Зуево ",{"$f":"NOT(ISERROR(SEARCH($B$2,tblData[[#This Row],[Город]])))","v":true},{"$f":"IF(tblData[[#This Row],[Статус]],COUNTIF($F$2:tblData[[#This Row],[Статус]],TRUE),\"\")","v":139},{"$f":"IFERROR(INDEX(tblData[Город],MATCH(ROWS($G$2:tblData[[#This Row],[Индекс]]),tblData[Индекс],0)),\"\")","v":"Орехово-Зуево "}]
[null,null,null,null,"Дербент ",{"$f":"NOT(ISERROR(SEARCH($B$2,tblData[[#This Row],[Город]])))","v":true},{"$f":"IF(tblData[[#This Row],[Статус]],COUNTIF($F$2:tblData[[#This Row],[Статус]],TRUE),\"\")","v":140},{"$f":"IFERROR(INDEX(tblData[Город],MATCH(ROWS($G$2:tblData[[#This Row],[Индекс]]),tblData[Индекс],0)),\"\")","v":"Дербент "}]
[null,null,null,null,"Камышин ",{"$f":"NOT(ISERROR(SEARCH($B$2,tblData[[#This Row],[Город]])))","v":true},{"$f":"IF(tblData[[#This Row],[Статус]],COUNTIF($F$2:tblData[[#This Row],[Статус]],TRUE),\"\")","v":141},{"$f":"IFERROR(INDEX(tblData[Город],MATCH(ROWS($G$2:tblData[[#This Row],[Индекс]]),tblData[Индекс],0)),\"\")","v":"Камышин "}]
[null,null,null,null,"Невинномысск ",{"$f":"NOT(ISERROR(SEARCH($B$2,tblData[[#This Row],[Город]])))","v":true},{"$f":"IF(tblData[[#This Row],[Статус]],COUNTIF($F$2:tblData[[#This Row],[Статус]],TRUE),\"\")","v":142},{"$f":"IFERROR(INDEX(tblData[Город],MATCH(ROWS($G$2:tblData[[#This Row],[Индекс]]),tblData[Индекс],0)),\"\")","v":"Невинномысск "}]
[null,null,null,null,"Красногорск ",{"$f":"NOT(ISERROR(SEARCH($B$2,tblData[[#This Row],[Город]])))","v":true},{"$f":"IF(tblData[[#This Row],[Статус]],COUNTIF($F$2:tblData[[#This Row],[Статус]],TRUE),\"\")","v":143},{"$f":"IFERROR(INDEX(tblData[Город],MATCH(ROWS($G$2:tblData[[#This Row],[Индекс]]),tblData[Индекс],0)),\"\")","v":"Красногорск "}]
[null,null,null,null,"Муром ",{"$f":"NOT(ISERROR(SEARCH($B$2,tblData[[#This Row],[Город]])))","v":true},{"$f":"IF(tblData[[#This Row],[Статус]],COUNTIF($F$2:tblData[[#This Row],[Статус]],TRUE),\"\")","v":144},{"$f":"IFERROR(INDEX(tblData[Город],MATCH(ROWS($G$2:tblData[[#This Row],[Индекс]]),tblData[Индекс],0)),\"\")","v":"Муром "}]
[null,null,null,null,"Батайск ",{"$f":"NOT(ISERROR(SEARCH($B$2,tblData[[#This Row],[Город]])))","v":true},{"$f":"IF(tblData[[#This Row],[Статус]],COUNTIF($F$2:tblData[[#This Row],[Статус]],TRUE),\"\")","v":145},{"$f":"IFERROR(INDEX(tblData[Город],MATCH(ROWS($G$2:tblData[[#This Row],[Индекс]]),tblData[Индекс],0)),\"\")","v":"Батайск "}]
[null,null,null,null,"Новошахтинск ",{"$f":"NOT(ISERROR(SEARCH($B$2,tblData[[#This Row],[Город]])))","v":true},{"$f":"IF(tblData[[#This Row],[Статус]],COUNTIF($F$2:tblData[[#This Row],[Статус]],TRUE),\"\")","v":146},{"$f":"IFERROR(INDEX(tblData[Город],MATCH(ROWS($G$2:tblData[[#This Row],[Индекс]]),tblData[Индекс],0)),\"\")","v":"Новошахтинск "}]
[null,null,null,null,"Сергиев Посад ",{"$f":"NOT(ISERROR(SEARCH($B$2,tblData[[#This Row],[Город]])))","v":true},{"$f":"IF(tblData[[#This Row],[Статус]],COUNTIF($F$2:tblData[[#This Row],[Статус]],TRUE),\"\")","v":147},{"$f":"IFERROR(INDEX(tblData[Город],MATCH(ROWS($G$2:tblData[[#This Row],[Индекс]]),tblData[Индекс],0)),\"\")","v":"Сергиев Посад "}]
[null,null,null,null,"Ноябрьск ",{"$f":"NOT(ISERROR(SEARCH($B$2,tblData[[#This Row],[Город]])))","v":true},{"$f":"IF(tblData[[#This Row],[Статус]],COUNTIF($F$2:tblData[[#This Row],[Статус]],TRUE),\"\")","v":148},{"$f":"IFERROR(INDEX(tblData[Город],MATCH(ROWS($G$2:tblData[[#This Row],[Индекс]]),tblData[Индекс],0)),\"\")","v":"Ноябрьск "}]
[null,null,null,null,"Щёлково ",{"$f":"NOT(ISERROR(SEARCH($B$2,tblData[[#This Row],[Город]])))","v":true},{"$f":"IF(tblData[[#This Row],[Статус]],COUNTIF($F$2:tblData[[#This Row],[Статус]],TRUE),\"\")","v":149},{"$f":"IFERROR(INDEX(tblData[Город],MATCH(ROWS($G$2:tblData[[#This Row],[Индекс]]),tblData[Индекс],0)),\"\")","v":"Щёлково "}]
[null,null,null,null,"Кызыл ",{"$f":"NOT(ISERROR(SEARCH($B$2,tblData[[#This Row],[Город]])))","v":true},{"$f":"IF(tblData[[#This Row],[Статус]],COUNTIF($F$2:tblData[[#This Row],[Статус]],TRUE),\"\")","v":150},{"$f":"IFERROR(INDEX(tblData[Город],MATCH(ROWS($G$2:tblData[[#This Row],[Индекс]]),tblData[Индекс],0)),\"\")","v":"Кызыл "}]
[null,null,null,null,"Октябрьский ",{"$f":"NOT(ISERROR(SEARCH($B$2,tblData[[#This Row],[Город]])))","v":true},{"$f":"IF(tblData[[#This Row],[Статус]],COUNTIF($F$2:tblData[[#This Row],[Статус]],TRUE),\"\")","v":151},{"$f":"IFERROR(INDEX(tblData[Город],MATCH(ROWS($G$2:tblData[[#This Row],[Индекс]]),tblData[Индекс],0)),\"\")","v":"Октябрьский "}]
[null,null,null,null,"Ачинск ",{"$f":"NOT(ISERROR(SEARCH($B$2,tblData[[#This Row],[Город]])))","v":true},{"$f":"IF(tblData[[#This Row],[Статус]],COUNTIF($F$2:tblData[[#This Row],[Статус]],TRUE),\"\")","v":152},{"$f":"IFERROR(INDEX(tblData[Город],MATCH(ROWS($G$2:tblData[[#This Row],[Индекс]]),tblData[Индекс],0)),\"\")","v":"Ачинск "}]
[null,null,null,null,"Северск ",{"$f":"NOT(ISERROR(SEARCH($B$2,tblData[[#This Row],[Город]])))","v":true},{"$f":"IF(tblData[[#This Row],[Статус]],COUNTIF($F$2:tblData[[#This Row],[Статус]],TRUE),\"\")","v":153},{"$f":"IFERROR(INDEX(tblData[Город],MATCH(ROWS($G$2:tblData[[#This Row],[Индекс]]),tblData[Индекс],0)),\"\")","v":"Северск "}]
[null,null,null,null,"Новокуйбышевск ",{"$f":"NOT(ISERROR(SEARCH($B$2,tblData[[#This Row],[Город]])))","v":true},{"$f":"IF(tblData[[#This Row],[Статус]],COUNTIF($F$2:tblData[[#This Row],[Статус]],TRUE),\"\")","v":154},{"$f":"IFERROR(INDEX(tblData[Город],MATCH(ROWS($G$2:tblData[[#This Row],[Индекс]]),tblData[Индекс],0)),\"\")","v":"Новокуйбышевск "}]
[null,null,null,null,"Елец ",{"$f":"NOT(ISERROR(SEARCH($B$2,tblData[[#This Row],[Город]])))","v":true},{"$f":"IF(tblData[[#This Row],[Статус]],COUNTIF($F$2:tblData[[#This Row],[Статус]],TRUE),\"\")","v":155},{"$f":"IFERROR(INDEX(tblData[Город],MATCH(ROWS($G$2:tblData[[#This Row],[Индекс]]),tblData[Индекс],0)),\"\")","v":"Елец "}]
[null,null,null,null,"Евпатория ",{"$f":"NOT(ISERROR(SEARCH($B$2,tblData[[#This Row],[Город]])))","v":true},{"$f":"IF(tblData[[#This Row],[Статус]],COUNTIF($F$2:tblData[[#This Row],[Статус]],TRUE),\"\")","v":156},{"$f":"IFERROR(INDEX(tblData[Город],MATCH(ROWS($G$2:tblData[[#This Row],[Индекс]]),tblData[Индекс],0)),\"\")","v":"Евпатория "}]
[null,null,null,null,"Арзамас ",{"$f":"NOT(ISERROR(SEARCH($B$2,tblData[[#This Row],[Город]])))","v":true},{"$f":"IF(tblData[[#This Row],[Статус]],COUNTIF($F$2:tblData[[#This Row],[Статус]],TRUE),\"\")","v":157},{"$f":"IFERROR(INDEX(tblData[Город],MATCH(ROWS($G$2:tblData[[#This Row],[Индекс]]),tblData[Индекс],0)),\"\")","v":"Арзамас "}]
[null,null,null,null,"Обнинск ",{"$f":"NOT(ISERROR(SEARCH($B$2,tblData[[#This Row],[Город]])))","v":true},{"$f":"IF(tblData[[#This Row],[Статус]],COUNTIF($F$2:tblData[[#This Row],[Статус]],TRUE),\"\")","v":158},{"$f":"IFERROR(INDEX(tblData[Город],MATCH(ROWS($G$2:tblData[[#This Row],[Индекс]]),tblData[Индекс],0)),\"\")","v":"Обнинск "}]
[null,null,null,null,"Новый Уренгой ",{"$f":"NOT(ISERROR(SEARCH($B$2,tblData[[#This Row],[Город]])))","v":true},{"$f":"IF(tblData[[#This Row],[Статус]],COUNTIF($F$2:tblData[[#This Row],[Статус]],TRUE),\"\")","v":159},{"$f":"IFERROR(INDEX(tblData[Город],MATCH(ROWS($G$2:tblData[[#This Row],[Индекс]]),tblData[Индекс],0)),\"\")","v":"Новый Уренгой "}]
[null,null,null,null,"Каспийск ",{"$f":"NOT(ISERROR(SEARCH($B$2,tblData[[#This Row],[Город]])))","v":true},{"$f":"IF(tblData[[#This Row],[Статус]],COUNTIF($F$2:tblData[[#This Row],[Статус]],TRUE),\"\")","v":160},{"$f":"IFERROR(INDEX(tblData[Город],MATCH(ROWS($G$2:tblData[[#This Row],[Индекс]]),tblData[Индекс],0)),\"\")","v":"Каспийск "}]
[null,null,null,null,"Элиста ",{"$f":"NOT(ISERROR(SEARCH($B$2,tblData[[#This Row],[Город]])))","v":true},{"$f":"IF(tblData[[#This Row],[Статус]],COUNTIF($F$2:tblData[[#This Row],[Статус]],TRUE),\"\")","v":161},{"$f":"IFERROR(INDEX(tblData[Город],MATCH(ROWS($G$2:tblData[[#This Row],[Индекс]]),tblData[Индекс],0)),\"\")","v":"Элиста "}]
[null,null,null,null,"Пушкино ",{"$f":"NOT(ISERROR(SEARCH($B$2,tblData[[#This Row],[Город]])))","v":true},{"$f":"IF(tblData[[#This Row],[Статус]],COUNTIF($F$2:tblData[[#This Row],[Статус]],TRUE),\"\")","v":162},{"$f":"IFERROR(INDEX(tblData[Город],MATCH(ROWS($G$2:tblData[[#This Row],[Индекс]]),tblData[Индекс],0)),\"\")","v":"Пушкино "}]
[null,null,null,null,"Жуковский ",{"$f":"NOT(ISERROR(SEARCH($B$2,tblData[[#This Row],[Город]])))","v":true},{"$f":"IF(tblData[[#This Row],[Статус]],COUNTIF($F$2:tblData[[#This Row],[Статус]],TRUE),\"\")","v":163},{"$f":"IFERROR(INDEX(tblData[Город],MATCH(ROWS($G$2:tblData[[#This Row],[Индекс]]),tblData[Индекс],0)),\"\")","v":"Жуковский "}]
[null,null,null,null,"Артём ",{"$f":"NOT(ISERROR(SEARCH($B$2,tblData[[#This Row],[Город]])))","v":true},{"$f":"IF(tblData[[#This Row],[Статус]],COUNTIF($F$2:tblData[[#This Row],[Статус]],TRUE),\"\")","v":164},{"$f":"IFERROR(INDEX(tblData[Город],MATCH(ROWS($G$2:tblData[[#This Row],[Индекс]]),tblData[Индекс],0)),\"\")","v":"Артём "}]
[null,null,null,null,"Междуреченск ",{"$f":"NOT(ISERROR(SEARCH($B$2,tblData[[#This Row],[Город]])))","v":true},{"$f":"IF(tblData[[#This Row],[Статус]],COUNTIF($F$2:tblData[[#This Row],[Статус]],TRUE),\"\")","v":165},{"$f":"IFERROR(INDEX(tblData[Город],MATCH(ROWS($G$2:tblData[[#This Row],[Индекс]]),tblData[Индекс],0)),\"\")","v":"Междуреченск "}]
[null,null,null,null,"Ленинск-Кузнецкий ",{"$f":"NOT(ISERROR(SEARCH($B$2,tblData[[#This Row],[Город]])))","v":true},{"$f":"IF(tblData[[#This Row],[Статус]],COUNTIF($F$2:tblData[[#This Row],[Статус]],TRUE),\"\")","v":166},{"$f":"IFERROR(INDEX(tblData[Город],MATCH(ROWS($G$2:tblData[[#This Row],[Индекс]]),tblData[Индекс],0)),\"\")","v":"Ленинск-Кузнецкий "}]
[null,null,null,null,"Сарапул ",{"$f":"NOT(ISERROR(SEARCH($B$2,tblData[[#This Row],[Город]])))","v":true},{"$f":"IF(tblData[[#This Row],[Статус]],COUNTIF($F$2:tblData[[#This Row],[Статус]],TRUE),\"\")","v":167},{"$f":"IFERROR(INDEX(tblData[Город],MATCH(ROWS($G$2:tblData[[#This Row],[Индекс]]),tblData[Индекс],0)),\"\")","v":"Сарапул "}]
[null,null,null,null,"Ессентуки ",{"$f":"NOT(ISERROR(SEARCH($B$2,tblData[[#This Row],[Город]])))","v":true},{"$f":"IF(tblData[[#This Row],[Статус]],COUNTIF($F$2:tblData[[#This Row],[Статус]],TRUE),\"\")","v":168},{"$f":"IFERROR(INDEX(tblData[Город],MATCH(ROWS($G$2:tblData[[#This Row],[Индекс]]),tblData[Индекс],0)),\"\")","v":"Ессентуки "}]
[null,null,null,null,"Воткинск ",{"$f":"NOT(ISERROR(SEARCH($B$2,tblData[[#This Row],[Город]])))","v":true},{"$f":"IF(tblData[[#This Row],[Статус]],COUNTIF($F$2:tblData[[#This Row],[Статус]],TRUE),\"\")","v":169},{"$f":"IFERROR(INDEX(tblData[Город],MATCH(ROWS($G$2:tblData[[#This Row],[Индекс]]),tblData[Индекс],0)),\"\")","v":"Воткинск "}]
[null,null,null,null,"Ногинск ",{"$f":"NOT(ISERROR(SEARCH($B$2,tblData[[#This Row],[Город]])))","v":true},{"$f":"IF(tblData[[#This Row],[Статус]],COUNTIF($F$2:tblData[[#This Row],[Статус]],TRUE),\"\")","v":170},{"$f":"IFERROR(INDEX(tblData[Город],MATCH(ROWS($G$2:tblData[[#This Row],[Индекс]]),tblData[Индекс],0)),\"\")","v":"Ногинск "}]
[null,null,null,null,"Тобольск ",{"$f":"NOT(ISERROR(SEARCH($B$2,tblData[[#This Row],[Город]])))","v":true},{"$f":"IF(tblData[[#This Row],[Статус]],COUNTIF($F$2:tblData[[#This Row],[Статус]],TRUE),\"\")","v":171},{"$f":"IFERROR(INDEX(tblData[Город],MATCH(ROWS($G$2:tblData[[#This Row],[Индекс]]),tblData[Индекс],0)),\"\")","v":"Тобольск "}]
[null,null,null,null,"Ухта ",{"$f":"NOT(ISERROR(SEARCH($B$2,tblData[[#This Row],[Город]])))","v":true},{"$f":"IF(tblData[[#This Row],[Статус]],COUNTIF($F$2:tblData[[#This Row],[Статус]],TRUE),\"\")","v":172},{"$f":"IFERROR(INDEX(tblData[Город],MATCH(ROWS($G$2:tblData[[#This Row],[Индекс]]),tblData[Индекс],0)),\"\")","v":"Ухта "}]
[null,null,null,null,"Серов ",{"$f":"NOT(ISERROR(SEARCH($B$2,tblData[[#This Row],[Город]])))","v":true},{"$f":"IF(tblData[[#This Row],[Статус]],COUNTIF($F$2:tblData[[#This Row],[Статус]],TRUE),\"\")","v":173},{"$f":"IFERROR(INDEX(tblData[Город],MATCH(ROWS($G$2:tblData[[#This Row],[Индекс]]),tblData[Индекс],0)),\"\")","v":"Серов "}]
[null,null,null,null,"Бердск ",{"$f":"NOT(ISERROR(SEARCH($B$2,tblData[[#This Row],[Город]])))","v":true},{"$f":"IF(tblData[[#This Row],[Статус]],COUNTIF($F$2:tblData[[#This Row],[Статус]],TRUE),\"\")","v":174},{"$f":"IFERROR(INDEX(tblData[Город],MATCH(ROWS($G$2:tblData[[#This Row],[Индекс]]),tblData[Индекс],0)),\"\")","v":"Бердск "}]
[null,null,null,null,"Великие Луки ",{"$f":"NOT(ISERROR(SEARCH($B$2,tblData[[#This Row],[Город]])))","v":true},{"$f":"IF(tblData[[#This Row],[Статус]],COUNTIF($F$2:tblData[[#This Row],[Статус]],TRUE),\"\")","v":175},{"$f":"IFERROR(INDEX(tblData[Город],MATCH(ROWS($G$2:tblData[[#This Row],[Индекс]]),tblData[Индекс],0)),\"\")","v":"Великие Луки "}]
[null,null,null,null,"Мичуринск ",{"$f":"NOT(ISERROR(SEARCH($B$2,tblData[[#This Row],[Город]])))","v":true},{"$f":"IF(tblData[[#This Row],[Статус]],COUNTIF($F$2:tblData[[#This Row],[Статус]],TRUE),\"\")","v":176},{"$f":"IFERROR(INDEX(tblData[Город],MATCH(ROWS($G$2:tblData[[#This Row],[Индекс]]),tblData[Индекс],0)),\"\")","v":"Мичуринск "}]
[null,null,null,null,"Киселёвск ",{"$f":"NOT(ISERROR(SEARCH($B$2,tblData[[#This Row],[Город]])))","v":true},{"$f":"IF(tblData[[#This Row],[Статус]],COUNTIF($F$2:tblData[[#This Row],[Статус]],TRUE),\"\")","v":177},{"$f":"IFERROR(INDEX(tblData[Город],MATCH(ROWS($G$2:tblData[[#This Row],[Индекс]]),tblData[Индекс],0)),\"\")","v":"Киселёвск "}]
[null,null,null,null,"Новотроицк ",{"$f":"NOT(ISERROR(SEARCH($B$2,tblData[[#This Row],[Город]])))","v":true},{"$f":"IF(tblData[[#This Row],[Статус]],COUNTIF($F$2:tblData[[#This Row],[Статус]],TRUE),\"\")","v":178},{"$f":"IFERROR(INDEX(tblData[Город],MATCH(ROWS($G$2:tblData[[#This Row],[Индекс]]),tblData[Индекс],0)),\"\")","v":"Новотроицк "}]
[null,null,null,null,"Зеленодольск ",{"$f":"NOT(ISERROR(SEARCH($B$2,tblData[[#This Row],[Город]])))","v":true},{"$f":"IF(tblData[[#This Row],[Статус]],COUNTIF($F$2:tblData[[#This Row],[Статус]],TRUE),\"\")","v":179},{"$f":"IFERROR(INDEX(tblData[Город],MATCH(ROWS($G$2:tblData[[#This Row],[Индекс]]),tblData[Индекс],0)),\"\")","v":"Зеленодольск "}]
[null,null,null,null,"Соликамск ",{"$f":"NOT(ISERROR(SEARCH($B$2,tblData[[#This Row],[Город]])))","v":true},{"$f":"IF(tblData[[#This Row],[Статус]],COUNTIF($F$2:tblData[[#This Row],[Статус]],TRUE),\"\")","v":180},{"$f":"IFERROR(INDEX(tblData[Город],MATCH(ROWS($G$2:tblData[[#This Row],[Индекс]]),tblData[Индекс],0)),\"\")","v":"Соликамск "}]
[null,null,null,null,"Раменское ",{"$f":"NOT(ISERROR(SEARCH($B$2,tblData[[#This Row],[Город]])))","v":true},{"$f":"IF(tblData[[#This Row],[Статус]],COUNTIF($F$2:tblData[[#This Row],[Статус]],TRUE),\"\")","v":181},{"$f":"IFERROR(INDEX(tblData[Город],MATCH(ROWS($G$2:tblData[[#This Row],[Индекс]]),tblData[Индекс],0)),\"\")","v":"Раменское "}]
[null,null,null,null,"Домодедово ",{"$f":"NOT(ISERROR(SEARCH($B$2,tblData[[#This Row],[Город]])))","v":true},{"$f":"IF(tblData[[#This Row],[Статус]],COUNTIF($F$2:tblData[[#This Row],[Статус]],TRUE),\"\")","v":182},{"$f":"IFERROR(INDEX(tblData[Город],MATCH(ROWS($G$2:tblData[[#This Row],[Индекс]]),tblData[Индекс],0)),\"\")","v":"Домодедово "}]
[null,null,null,null,"Магадан ",{"$f":"NOT(ISERROR(SEARCH($B$2,tblData[[#This Row],[Город]])))","v":true},{"$f":"IF(tblData[[#This Row],[Статус]],COUNTIF($F$2:tblData[[#This Row],[Статус]],TRUE),\"\")","v":183},{"$f":"IFERROR(INDEX(tblData[Город],MATCH(ROWS($G$2:tblData[[#This Row],[Индекс]]),tblData[Индекс],0)),\"\")","v":"Магадан "}]
[null,null,null,null,"Глазов ",{"$f":"NOT(ISERROR(SEARCH($B$2,tblData[[#This Row],[Город]])))","v":true},{"$f":"IF(tblData[[#This Row],[Статус]],COUNTIF($F$2:tblData[[#This Row],[Статус]],TRUE),\"\")","v":184},{"$f":"IFERROR(INDEX(tblData[Город],MATCH(ROWS($G$2:tblData[[#This Row],[Индекс]]),tblData[Индекс],0)),\"\")","v":"Глазов "}]
[null,null,null,null,"Каменск-Шахтинский ",{"$f":"NOT(ISERROR(SEARCH($B$2,tblData[[#This Row],[Город]])))","v":true},{"$f":"IF(tblData[[#This Row],[Статус]],COUNTIF($F$2:tblData[[#This Row],[Статус]],TRUE),\"\")","v":185},{"$f":"IFERROR(INDEX(tblData[Город],MATCH(ROWS($G$2:tblData[[#This Row],[Индекс]]),tblData[Индекс],0)),\"\")","v":"Каменск-Шахтинский "}]
[null,null,null,null,"Железногорск ",{"$f":"NOT(ISERROR(SEARCH($B$2,tblData[[#This Row],[Город]])))","v":true},{"$f":"IF(tblData[[#This Row],[Статус]],COUNTIF($F$2:tblData[[#This Row],[Статус]],TRUE),\"\")","v":186},{"$f":"IFERROR(INDEX(tblData[Город],MATCH(ROWS($G$2:tblData[[#This Row],[Индекс]]),tblData[Индекс],0)),\"\")","v":"Железногорск "}]
[null,null,null,null,"Канск ",{"$f":"NOT(ISERROR(SEARCH($B$2,tblData[[#This Row],[Город]])))","v":true},{"$f":"IF(tblData[[#This Row],[Статус]],COUNTIF($F$2:tblData[[#This Row],[Статус]],TRUE),\"\")","v":187},{"$f":"IFERROR(INDEX(tblData[Город],MATCH(ROWS($G$2:tblData[[#This Row],[Индекс]]),tblData[Индекс],0)),\"\")","v":"Канск "}]
[null,null,null,null,"Назрань ",{"$f":"NOT(ISERROR(SEARCH($B$2,tblData[[#This Row],[Город]])))","v":true},{"$f":"IF(tblData[[#This Row],[Статус]],COUNTIF($F$2:tblData[[#This Row],[Статус]],TRUE),\"\")","v":188},{"$f":"IFERROR(INDEX(tblData[Город],MATCH(ROWS($G$2:tblData[[#This Row],[Индекс]]),tblData[Индекс],0)),\"\")","v":"Назрань "}]
[null,null,null,null,"Пушкин ",{"$f":"NOT(ISERROR(SEARCH($B$2,tblData[[#This Row],[Город]])))","v":true},{"$f":"IF(tblData[[#This Row],[Статус]],COUNTIF($F$2:tblData[[#This Row],[Статус]],TRUE),\"\")","v":189},{"$f":"IFERROR(INDEX(tblData[Город],MATCH(ROWS($G$2:tblData[[#This Row],[Индекс]]),tblData[Индекс],0)),\"\")","v":"Пушкин "}]
[null,null,null,null,"Гатчина ",{"$f":"NOT(ISERROR(SEARCH($B$2,tblData[[#This Row],[Город]])))","v":true},{"$f":"IF(tblData[[#This Row],[Статус]],COUNTIF($F$2:tblData[[#This Row],[Статус]],TRUE),\"\")","v":190},{"$f":"IFERROR(INDEX(tblData[Город],MATCH(ROWS($G$2:tblData[[#This Row],[Индекс]]),tblData[Индекс],0)),\"\")","v":"Гатчина "}]
[null,null,null,null,"Саров ",{"$f":"NOT(ISERROR(SEARCH($B$2,tblData[[#This Row],[Город]])))","v":true},{"$f":"IF(tblData[[#This Row],[Статус]],COUNTIF($F$2:tblData[[#This Row],[Статус]],TRUE),\"\")","v":191},{"$f":"IFERROR(INDEX(tblData[Город],MATCH(ROWS($G$2:tblData[[#This Row],[Индекс]]),tblData[Индекс],0)),\"\")","v":"Саров "}]
[null,null,null,null,"Новоуральск ",{"$f":"NOT(ISERROR(SEARCH($B$2,tblData[[#This Row],[Город]])))","v":true},{"$f":"IF(tblData[[#This Row],[Статус]],COUNTIF($F$2:tblData[[#This Row],[Статус]],TRUE),\"\")","v":192},{"$f":"IFERROR(INDEX(tblData[Город],MATCH(ROWS($G$2:tblData[[#This Row],[Индекс]]),tblData[Индекс],0)),\"\")","v":"Новоуральск "}]
[null,null,null,null,"Воскресенск ",{"$f":"NOT(ISERROR(SEARCH($B$2,tblData[[#This Row],[Город]])))","v":true},{"$f":"IF(tblData[[#This Row],[Статус]],COUNTIF($F$2:tblData[[#This Row],[Статус]],TRUE),\"\")","v":193},{"$f":"IFERROR(INDEX(tblData[Город],MATCH(ROWS($G$2:tblData[[#This Row],[Индекс]]),tblData[Индекс],0)),\"\")","v":"Воскресенск "}]
[null,null,null,null,"Долгопрудный ",{"$f":"NOT(ISERROR(SEARCH($B$2,tblData[[#This Row],[Город]])))","v":true},{"$f":"IF(tblData[[#This Row],[Статус]],COUNTIF($F$2:tblData[[#This Row],[Статус]],TRUE),\"\")","v":194},{"$f":"IFERROR(INDEX(tblData[Город],MATCH(ROWS($G$2:tblData[[#This Row],[Индекс]]),tblData[Индекс],0)),\"\")","v":"Долгопрудный "}]
[null,null,null,null,"Бугульма ",{"$f":"NOT(ISERROR(SEARCH($B$2,tblData[[#This Row],[Город]])))","v":true},{"$f":"IF(tblData[[#This Row],[Статус]],COUNTIF($F$2:tblData[[#This Row],[Статус]],TRUE),\"\")","v":195},{"$f":"IFERROR(INDEX(tblData[Город],MATCH(ROWS($G$2:tblData[[#This Row],[Индекс]]),tblData[Индекс],0)),\"\")","v":"Бугульма "}]
[null,null,null,null,"Кузнецк ",{"$f":"NOT(ISERROR(SEARCH($B$2,tblData[[#This Row],[Город]])))","v":true},{"$f":"IF(tblData[[#This Row],[Статус]],COUNTIF($F$2:tblData[[#This Row],[Статус]],TRUE),\"\")","v":196},{"$f":"IFERROR(INDEX(tblData[Город],MATCH(ROWS($G$2:tblData[[#This Row],[Индекс]]),tblData[Индекс],0)),\"\")","v":"Кузнецк "}]
[null,null,null,null,"Губкин ",{"$f":"NOT(ISERROR(SEARCH($B$2,tblData[[#This Row],[Город]])))","v":true},{"$f":"IF(tblData[[#This Row],[Статус]],COUNTIF($F$2:tblData[[#This Row],[Статус]],TRUE),\"\")","v":197},{"$f":"IFERROR(INDEX(tblData[Город],MATCH(ROWS($G$2:tblData[[#This Row],[Индекс]]),tblData[Индекс],0)),\"\")","v":"Губкин "}]
[null,null,null,null,"Кинешма ",{"$f":"NOT(ISERROR(SEARCH($B$2,tblData[[#This Row],[Город]])))","v":true},{"$f":"IF(tblData[[#This Row],[Статус]],COUNTIF($F$2:tblData[[#This Row],[Статус]],TRUE),\"\")","v":198},{"$f":"IFERROR(INDEX(tblData[Город],MATCH(ROWS($G$2:tblData[[#This Row],[Индекс]]),tblData[Индекс],0)),\"\")","v":"Кинешма "}]
[null,null,null,null,"Ейск ",{"$f":"NOT(ISERROR(SEARCH($B$2,tblData[[#This Row],[Город]])))","v":true},{"$f":"IF(tblData[[#This Row],[Статус]],COUNTIF($F$2:tblData[[#This Row],[Статус]],TRUE),\"\")","v":199},{"$f":"IFERROR(INDEX(tblData[Город],MATCH(ROWS($G$2:tblData[[#This Row],[Индекс]]),tblData[Индекс],0)),\"\")","v":"Ейск "}]
[null,null,null,null,"Реутов ",{"$f":"NOT(ISERROR(SEARCH($B$2,tblData[[#This Row],[Город]])))","v":true},{"$f":"IF(tblData[[#This Row],[Статус]],COUNTIF($F$2:tblData[[#This Row],[Статус]],TRUE),\"\")","v":200},{"$f":"IFERROR(INDEX(tblData[Город],MATCH(ROWS($G$2:tblData[[#This Row],[Индекс]]),tblData[Индекс],0)),\"\")","v":"Реутов "}]
[null,null,null,null,"Усть-Илимск ",{"$f":"NOT(ISERROR(SEARCH($B$2,tblData[[#This Row],[Город]])))","v":true},{"$f":"IF(tblData[[#This Row],[Статус]],COUNTIF($F$2:tblData[[#This Row],[Статус]],TRUE),\"\")","v":201},{"$f":"IFERROR(INDEX(tblData[Город],MATCH(ROWS($G$2:tblData[[#This Row],[Индекс]]),tblData[Индекс],0)),\"\")","v":"Усть-Илимск "}]
[null,null,null,null,"Железногорск ",{"$f":"NOT(ISERROR(SEARCH($B$2,tblData[[#This Row],[Город]])))","v":true},{"$f":"IF(tblData[[#This Row],[Статус]],COUNTIF($F$2:tblData[[#This Row],[Статус]],TRUE),\"\")","v":202},{"$f":"IFERROR(INDEX(tblData[Город],MATCH(ROWS($G$2:tblData[[#This Row],[Индекс]]),tblData[Индекс],0)),\"\")","v":"Железногорск "}]
[null,null,null,null,"Усолье-Сибирское ",{"$f":"NOT(ISERROR(SEARCH($B$2,tblData[[#This Row],[Город]])))","v":true},{"$f":"IF(tblData[[#This Row],[Статус]],COUNTIF($F$2:tblData[[#This Row],[Статус]],TRUE),\"\")","v":203},{"$f":"IFERROR(INDEX(tblData[Город],MATCH(ROWS($G$2:tblData[[#This Row],[Индекс]]),tblData[Индекс],0)),\"\")","v":"Усолье-Сибирское "}]
[null,null,null,null,"Чайковский ",{"$f":"NOT(ISERROR(SEARCH($B$2,tblData[[#This Row],[Город]])))","v":true},{"$f":"IF(tblData[[#This Row],[Статус]],COUNTIF($F$2:tblData[[#This Row],[Статус]],TRUE),\"\")","v":204},{"$f":"IFERROR(INDEX(tblData[Город],MATCH(ROWS($G$2:tblData[[#This Row],[Индекс]]),tblData[Индекс],0)),\"\")","v":"Чайковский "}]
[null,null,null,null,"Азов ",{"$f":"NOT(ISERROR(SEARCH($B$2,tblData[[#This Row],[Город]])))","v":true},{"$f":"IF(tblData[[#This Row],[Статус]],COUNTIF($F$2:tblData[[#This Row],[Статус]],TRUE),\"\")","v":205},{"$f":"IFERROR(INDEX(tblData[Город],MATCH(ROWS($G$2:tblData[[#This Row],[Индекс]]),tblData[Индекс],0)),\"\")","v":"Азов "}]
[null,null,null,null,"Бузулук ",{"$f":"NOT(ISERROR(SEARCH($B$2,tblData[[#This Row],[Город]])))","v":true},{"$f":"IF(tblData[[#This Row],[Статус]],COUNTIF($F$2:tblData[[#This Row],[Статус]],TRUE),\"\")","v":206},{"$f":"IFERROR(INDEX(tblData[Город],MATCH(ROWS($G$2:tblData[[#This Row],[Индекс]]),tblData[Индекс],0)),\"\")","v":"Бузулук "}]
[null,null,null,null,"Озёрск ",{"$f":"NOT(ISERROR(SEARCH($B$2,tblData[[#This Row],[Город]])))","v":true},{"$f":"IF(tblData[[#This Row],[Статус]],COUNTIF($F$2:tblData[[#This Row],[Статус]],TRUE),\"\")","v":207},{"$f":"IFERROR(INDEX(tblData[Город],MATCH(ROWS($G$2:tblData[[#This Row],[Индекс]]),tblData[Индекс],0)),\"\")","v":"Озёрск "}]
[null,null,null,null,"Балашов ",{"$f":"NOT(ISERROR(SEARCH($B$2,tblData[[#This Row],[Город]])))","v":true},{"$f":"IF(tblData[[#This Row],[Статус]],COUNTIF($F$2:tblData[[#This Row],[Статус]],TRUE),\"\")","v":208},{"$f":"IFERROR(INDEX(tblData[Город],MATCH(ROWS($G$2:tblData[[#This Row],[Индекс]]),tblData[Индекс],0)),\"\")","v":"Балашов "}]
[null,null,null,null,"Юрга ",{"$f":"NOT(ISERROR(SEARCH($B$2,tblData[[#This Row],[Город]])))","v":true},{"$f":"IF(tblData[[#This Row],[Статус]],COUNTIF($F$2:tblData[[#This Row],[Статус]],TRUE),\"\")","v":209},{"$f":"IFERROR(INDEX(tblData[Город],MATCH(ROWS($G$2:tblData[[#This Row],[Индекс]]),tblData[Индекс],0)),\"\")","v":"Юрга "}]
[null,null,null,null,"Кирово-Чепецк ",{"$f":"NOT(ISERROR(SEARCH($B$2,tblData[[#This Row],[Город]])))","v":true},{"$f":"IF(tblData[[#This Row],[Статус]],COUNTIF($F$2:tblData[[#This Row],[Статус]],TRUE),\"\")","v":210},{"$f":"IFERROR(INDEX(tblData[Город],MATCH(ROWS($G$2:tblData[[#This Row],[Индекс]]),tblData[Индекс],0)),\"\")","v":"Кирово-Чепецк "}]
[null,null,null,null,"Кропоткин ",{"$f":"NOT(ISERROR(SEARCH($B$2,tblData[[#This Row],[Город]])))","v":true},{"$f":"IF(tblData[[#This Row],[Статус]],COUNTIF($F$2:tblData[[#This Row],[Статус]],TRUE),\"\")","v":211},{"$f":"IFERROR(INDEX(tblData[Город],MATCH(ROWS($G$2:tblData[[#This Row],[Индекс]]),tblData[Индекс],0)),\"\")","v":"Кропоткин "}]
[null,null,null,null,"Клин ",{"$f":"NOT(ISERROR(SEARCH($B$2,tblData[[#This Row],[Город]])))","v":true},{"$f":"IF(tblData[[#This Row],[Статус]],COUNTIF($F$2:tblData[[#This Row],[Статус]],TRUE),\"\")","v":212},{"$f":"IFERROR(INDEX(tblData[Город],MATCH(ROWS($G$2:tblData[[#This Row],[Индекс]]),tblData[Индекс],0)),\"\")","v":"Клин "}]
[null,null,null,null,"Красноуфимск ",{"$f":"NOT(ISERROR(SEARCH($B$2,tblData[[#This Row],[Город]])))","v":true},{"$f":"IF(tblData[[#This Row],[Статус]],COUNTIF($F$2:tblData[[#This Row],[Статус]],TRUE),\"\")","v":213},{"$f":"IFERROR(INDEX(tblData[Город],MATCH(ROWS($G$2:tblData[[#This Row],[Индекс]]),tblData[Индекс],0)),\"\")","v":"Красноуфимск "}]
[null,null,null,null,"Выборг ",{"$f":"NOT(ISERROR(SEARCH($B$2,tblData[[#This Row],[Город]])))","v":true},{"$f":"IF(tblData[[#This Row],[Статус]],COUNTIF($F$2:tblData[[#This Row],[Статус]],TRUE),\"\")","v":214},{"$f":"IFERROR(INDEX(tblData[Город],MATCH(ROWS($G$2:tblData[[#This Row],[Индекс]]),tblData[Индекс],0)),\"\")","v":"Выборг "}]
[null,null,null,null,"Ханты-Мансийск ",{"$f":"NOT(ISERROR(SEARCH($B$2,tblData[[#This Row],[Город]])))","v":true},{"$f":"IF(tblData[[#This Row],[Статус]],COUNTIF($F$2:tblData[[#This Row],[Статус]],TRUE),\"\")","v":215},{"$f":"IFERROR(INDEX(tblData[Город],MATCH(ROWS($G$2:tblData[[#This Row],[Индекс]]),tblData[Индекс],0)),\"\")","v":"Ханты-Мансийск "}]
[null,null,null,null,"Троицк ",{"$f":"NOT(ISERROR(SEARCH($B$2,tblData[[#This Row],[Город]])))","v":true},{"$f":"IF(tblData[[#This Row],[Статус]],COUNTIF($F$2:tblData[[#This Row],[Статус]],TRUE),\"\")","v":216},{"$f":"IFERROR(INDEX(tblData[Город],MATCH(ROWS($G$2:tblData[[#This Row],[Индекс]]),tblData[Индекс],0)),\"\")","v":"Троицк "}]
[null,null,null,null,"Бор ",{"$f":"NOT(ISERROR(SEARCH($B$2,tblData[[#This Row],[Город]])))","v":true},{"$f":"IF(tblData[[#This Row],[Статус]],COUNTIF($F$2:tblData[[#This Row],[Статус]],TRUE),\"\")","v":217},{"$f":"IFERROR(INDEX(tblData[Город],MATCH(ROWS($G$2:tblData[[#This Row],[Индекс]]),tblData[Индекс],0)),\"\")","v":"Бор "}]
[null,null,null,null,"Ялта ",{"$f":"NOT(ISERROR(SEARCH($B$2,tblData[[#This Row],[Город]])))","v":true},{"$f":"IF(tblData[[#This Row],[Статус]],COUNTIF($F$2:tblData[[#This Row],[Статус]],TRUE),\"\")","v":218},{"$f":"IFERROR(INDEX(tblData[Город],MATCH(ROWS($G$2:tblData[[#This Row],[Индекс]]),tblData[Индекс],0)),\"\")","v":"Ялта "}]
[null,null,null,null,"Шадринск ",{"$f":"NOT(ISERROR(SEARCH($B$2,tblData[[#This Row],[Город]])))","v":true},{"$f":"IF(tblData[[#This Row],[Статус]],COUNTIF($F$2:tblData[[#This Row],[Статус]],TRUE),\"\")","v":219},{"$f":"IFERROR(INDEX(tblData[Город],MATCH(ROWS($G$2:tblData[[#This Row],[Индекс]]),tblData[Индекс],0)),\"\")","v":"Шадринск "}]
[null,null,null,null,"Белово ",{"$f":"NOT(ISERROR(SEARCH($B$2,tblData[[#This Row],[Город]])))","v":true},{"$f":"IF(tblData[[#This Row],[Статус]],COUNTIF($F$2:tblData[[#This Row],[Статус]],TRUE),\"\")","v":220},{"$f":"IFERROR(INDEX(tblData[Город],MATCH(ROWS($G$2:tblData[[#This Row],[Индекс]]),tblData[Индекс],0)),\"\")","v":"Белово "}]
[null,null,null,null,"Минеральные Воды ",{"$f":"NOT(ISERROR(SEARCH($B$2,tblData[[#This Row],[Город]])))","v":true},{"$f":"IF(tblData[[#This Row],[Статус]],COUNTIF($F$2:tblData[[#This Row],[Статус]],TRUE),\"\")","v":221},{"$f":"IFERROR(INDEX(tblData[Город],MATCH(ROWS($G$2:tblData[[#This Row],[Индекс]]),tblData[Индекс],0)),\"\")","v":"Минеральные Воды "}]
[null,null,null,null,"Анжеро-Судженск ",{"$f":"NOT(ISERROR(SEARCH($B$2,tblData[[#This Row],[Город]])))","v":true},{"$f":"IF(tblData[[#This Row],[Статус]],COUNTIF($F$2:tblData[[#This Row],[Статус]],TRUE),\"\")","v":222},{"$f":"IFERROR(INDEX(tblData[Город],MATCH(ROWS($G$2:tblData[[#This Row],[Индекс]]),tblData[Индекс],0)),\"\")","v":"Анжеро-Судженск "}]
[null,null,null,null,"Биробиджан ",{"$f":"NOT(ISERROR(SEARCH($B$2,tblData[[#This Row],[Город]])))","v":true},{"$f":"IF(tblData[[#This Row],[Статус]],COUNTIF($F$2:tblData[[#This Row],[Статус]],TRUE),\"\")","v":223},{"$f":"IFERROR(INDEX(tblData[Город],MATCH(ROWS($G$2:tblData[[#This Row],[Индекс]]),tblData[Индекс],0)),\"\")","v":"Биробиджан "}]
[null,null,null,null,"Лобня ",{"$f":"NOT(ISERROR(SEARCH($B$2,tblData[[#This Row],[Город]])))","v":true},{"$f":"IF(tblData[[#This Row],[Статус]],COUNTIF($F$2:tblData[[#This Row],[Статус]],TRUE),\"\")","v":224},{"$f":"IFERROR(INDEX(tblData[Город],MATCH(ROWS($G$2:tblData[[#This Row],[Индекс]]),tblData[Индекс],0)),\"\")","v":"Лобня "}]
[null,null,null,null,"Петергоф ",{"$f":"NOT(ISERROR(SEARCH($B$2,tblData[[#This Row],[Город]])))","v":true},{"$f":"IF(tblData[[#This Row],[Статус]],COUNTIF($F$2:tblData[[#This Row],[Статус]],TRUE),\"\")","v":225},{"$f":"IFERROR(INDEX(tblData[Город],MATCH(ROWS($G$2:tblData[[#This Row],[Индекс]]),tblData[Индекс],0)),\"\")","v":"Петергоф "}]
[null,null,null,null,"Чапаевск ",{"$f":"NOT(ISERROR(SEARCH($B$2,tblData[[#This Row],[Город]])))","v":true},{"$f":"IF(tblData[[#This Row],[Статус]],COUNTIF($F$2:tblData[[#This Row],[Статус]],TRUE),\"\")","v":226},{"$f":"IFERROR(INDEX(tblData[Город],MATCH(ROWS($G$2:tblData[[#This Row],[Индекс]]),tblData[Индекс],0)),\"\")","v":"Чапаевск "}]
[null,null,null,null,"Георгиевск ",{"$f":"NOT(ISERROR(SEARCH($B$2,tblData[[#This Row],[Город]])))","v":true},{"$f":"IF(tblData[[#This Row],[Статус]],COUNTIF($F$2:tblData[[#This Row],[Статус]],TRUE),\"\")","v":227},{"$f":"IFERROR(INDEX(tblData[Город],MATCH(ROWS($G$2:tblData[[#This Row],[Индекс]]),tblData[Индекс],0)),\"\")","v":"Георгиевск "}]
[null,null,null,null,"Черногорск ",{"$f":"NOT(ISERROR(SEARCH($B$2,tblData[[#This Row],[Город]])))","v":true},{"$f":"IF(tblData[[#This Row],[Статус]],COUNTIF($F$2:tblData[[#This Row],[Статус]],TRUE),\"\")","v":228},{"$f":"IFERROR(INDEX(tblData[Город],MATCH(ROWS($G$2:tblData[[#This Row],[Индекс]]),tblData[Индекс],0)),\"\")","v":"Черногорск "}]
[null,null,null,null,"Минусинск ",{"$f":"NOT(ISERROR(SEARCH($B$2,tblData[[#This Row],[Город]])))","v":true},{"$f":"IF(tblData[[#This Row],[Статус]],COUNTIF($F$2:tblData[[#This Row],[Статус]],TRUE),\"\")","v":229},{"$f":"IFERROR(INDEX(tblData[Город],MATCH(ROWS($G$2:tblData[[#This Row],[Индекс]]),tblData[Индекс],0)),\"\")","v":"Минусинск "}]
[null,null,null,null,"Михайловск ",{"$f":"NOT(ISERROR(SEARCH($B$2,tblData[[#This Row],[Город]])))","v":true},{"$f":"IF(tblData[[#This Row],[Статус]],COUNTIF($F$2:tblData[[#This Row],[Статус]],TRUE),\"\")","v":230},{"$f":"IFERROR(INDEX(tblData[Город],MATCH(ROWS($G$2:tblData[[#This Row],[Индекс]]),tblData[Индекс],0)),\"\")","v":"Михайловск "}]
[null,null,null,null,"Елабуга ",{"$f":"NOT(ISERROR(SEARCH($B$2,tblData[[#This Row],[Город]])))","v":true},{"$f":"IF(tblData[[#This Row],[Статус]],COUNTIF($F$2:tblData[[#This Row],[Статус]],TRUE),\"\")","v":231},{"$f":"IFERROR(INDEX(tblData[Город],MATCH(ROWS($G$2:tblData[[#This Row],[Индекс]]),tblData[Индекс],0)),\"\")","v":"Елабуга "}]
[null,null,null,null,"Дубна ",{"$f":"NOT(ISERROR(SEARCH($B$2,tblData[[#This Row],[Город]])))","v":true},{"$f":"IF(tblData[[#This Row],[Статус]],COUNTIF($F$2:tblData[[#This Row],[Статус]],TRUE),\"\")","v":232},{"$f":"IFERROR(INDEX(tblData[Город],MATCH(ROWS($G$2:tblData[[#This Row],[Индекс]]),tblData[Индекс],0)),\"\")","v":"Дубна "}]
[null,null,null,null,"Воркута ",{"$f":"NOT(ISERROR(SEARCH($B$2,tblData[[#This Row],[Город]])))","v":true},{"$f":"IF(tblData[[#This Row],[Статус]],COUNTIF($F$2:tblData[[#This Row],[Статус]],TRUE),\"\")","v":233},{"$f":"IFERROR(INDEX(tblData[Город],MATCH(ROWS($G$2:tblData[[#This Row],[Индекс]]),tblData[Индекс],0)),\"\")","v":"Воркута "}]
[null,null,null,null,"Новоалтайск ",{"$f":"NOT(ISERROR(SEARCH($B$2,tblData[[#This Row],[Город]])))","v":true},{"$f":"IF(tblData[[#This Row],[Статус]],COUNTIF($F$2:tblData[[#This Row],[Статус]],TRUE),\"\")","v":234},{"$f":"IFERROR(INDEX(tblData[Город],MATCH(ROWS($G$2:tblData[[#This Row],[Индекс]]),tblData[Индекс],0)),\"\")","v":"Новоалтайск "}]
[null,null,null,null,"Егорьевск ",{"$f":"NOT(ISERROR(SEARCH($B$2,tblData[[#This Row],[Город]])))","v":true},{"$f":"IF(tblData[[#This Row],[Статус]],COUNTIF($F$2:tblData[[#This Row],[Статус]],TRUE),\"\")","v":235},{"$f":"IFERROR(INDEX(tblData[Город],MATCH(ROWS($G$2:tblData[[#This Row],[Индекс]]),tblData[Индекс],0)),\"\")","v":"Егорьевск "}]
[null,null,null,null,"Асбест ",{"$f":"NOT(ISERROR(SEARCH($B$2,tblData[[#This Row],[Город]])))","v":true},{"$f":"IF(tblData[[#This Row],[Статус]],COUNTIF($F$2:tblData[[#This Row],[Статус]],TRUE),\"\")","v":236},{"$f":"IFERROR(INDEX(tblData[Город],MATCH(ROWS($G$2:tblData[[#This Row],[Индекс]]),tblData[Индекс],0)),\"\")","v":"Асбест "}]
[null,null,null,null,"Феодосия ",{"$f":"NOT(ISERROR(SEARCH($B$2,tblData[[#This Row],[Город]])))","v":true},{"$f":"IF(tblData[[#This Row],[Статус]],COUNTIF($F$2:tblData[[#This Row],[Статус]],TRUE),\"\")","v":237},{"$f":"IFERROR(INDEX(tblData[Город],MATCH(ROWS($G$2:tblData[[#This Row],[Индекс]]),tblData[Индекс],0)),\"\")","v":"Феодосия "}]
[null,null,null,null,"Ишим ",{"$f":"NOT(ISERROR(SEARCH($B$2,tblData[[#This Row],[Город]])))","v":true},{"$f":"IF(tblData[[#This Row],[Статус]],COUNTIF($F$2:tblData[[#This Row],[Статус]],TRUE),\"\")","v":238},{"$f":"IFERROR(INDEX(tblData[Город],MATCH(ROWS($G$2:tblData[[#This Row],[Индекс]]),tblData[Индекс],0)),\"\")","v":"Ишим "}]
[null,null,null,null,"Белорецк ",{"$f":"NOT(ISERROR(SEARCH($B$2,tblData[[#This Row],[Город]])))","v":true},{"$f":"IF(tblData[[#This Row],[Статус]],COUNTIF($F$2:tblData[[#This Row],[Статус]],TRUE),\"\")","v":239},{"$f":"IFERROR(INDEX(tblData[Город],MATCH(ROWS($G$2:tblData[[#This Row],[Индекс]]),tblData[Индекс],0)),\"\")","v":"Белорецк "}]
[null,null,null,null,"Белогорск ",{"$f":"NOT(ISERROR(SEARCH($B$2,tblData[[#This Row],[Город]])))","v":true},{"$f":"IF(tblData[[#This Row],[Статус]],COUNTIF($F$2:tblData[[#This Row],[Статус]],TRUE),\"\")","v":240},{"$f":"IFERROR(INDEX(tblData[Город],MATCH(ROWS($G$2:tblData[[#This Row],[Индекс]]),tblData[Индекс],0)),\"\")","v":"Белогорск "}]
[null,null,null,null,"Кунгур ",{"$f":"NOT(ISERROR(SEARCH($B$2,tblData[[#This Row],[Город]])))","v":true},{"$f":"IF(tblData[[#This Row],[Статус]],COUNTIF($F$2:tblData[[#This Row],[Статус]],TRUE),\"\")","v":241},{"$f":"IFERROR(INDEX(tblData[Город],MATCH(ROWS($G$2:tblData[[#This Row],[Индекс]]),tblData[Индекс],0)),\"\")","v":"Кунгур "}]
[null,null,null,null,"Лысьва ",{"$f":"NOT(ISERROR(SEARCH($B$2,tblData[[#This Row],[Город]])))","v":true},{"$f":"IF(tblData[[#This Row],[Статус]],COUNTIF($F$2:tblData[[#This Row],[Статус]],TRUE),\"\")","v":242},{"$f":"IFERROR(INDEX(tblData[Город],MATCH(ROWS($G$2:tblData[[#This Row],[Индекс]]),tblData[Индекс],0)),\"\")","v":"Лысьва "}]
[null,null,null,null,"Гуково ",{"$f":"NOT(ISERROR(SEARCH($B$2,tblData[[#This Row],[Город]])))","v":true},{"$f":"IF(tblData[[#This Row],[Статус]],COUNTIF($F$2:tblData[[#This Row],[Статус]],TRUE),\"\")","v":243},{"$f":"IFERROR(INDEX(tblData[Город],MATCH(ROWS($G$2:tblData[[#This Row],[Индекс]]),tblData[Индекс],0)),\"\")","v":"Гуково "}]
[null,null,null,null,"Ступино ",{"$f":"NOT(ISERROR(SEARCH($B$2,tblData[[#This Row],[Город]])))","v":true},{"$f":"IF(tblData[[#This Row],[Статус]],COUNTIF($F$2:tblData[[#This Row],[Статус]],TRUE),\"\")","v":244},{"$f":"IFERROR(INDEX(tblData[Город],MATCH(ROWS($G$2:tblData[[#This Row],[Индекс]]),tblData[Индекс],0)),\"\")","v":"Ступино "}]
[null,null,null,null,"Туймазы ",{"$f":"NOT(ISERROR(SEARCH($B$2,tblData[[#This Row],[Город]])))","v":true},{"$f":"IF(tblData[[#This Row],[Статус]],COUNTIF($F$2:tblData[[#This Row],[Статус]],TRUE),\"\")","v":245},{"$f":"IFERROR(INDEX(tblData[Город],MATCH(ROWS($G$2:tblData[[#This Row],[Индекс]]),tblData[Индекс],0)),\"\")","v":"Туймазы "}]
[null,null,null,null,"Кстово ",{"$f":"NOT(ISERROR(SEARCH($B$2,tblData[[#This Row],[Город]])))","v":true},{"$f":"IF(tblData[[#This Row],[Статус]],COUNTIF($F$2:tblData[[#This Row],[Статус]],TRUE),\"\")","v":246},{"$f":"IFERROR(INDEX(tblData[Город],MATCH(ROWS($G$2:tblData[[#This Row],[Индекс]]),tblData[Индекс],0)),\"\")","v":"Кстово "}]
[null,null,null,null,"Вольск ",{"$f":"NOT(ISERROR(SEARCH($B$2,tblData[[#This Row],[Город]])))","v":true},{"$f":"IF(tblData[[#This Row],[Статус]],COUNTIF($F$2:tblData[[#This Row],[Статус]],TRUE),\"\")","v":247},{"$f":"IFERROR(INDEX(tblData[Город],MATCH(ROWS($G$2:tblData[[#This Row],[Индекс]]),tblData[Индекс],0)),\"\")","v":"Вольск "}]
[null,null,null,null,"Ишимбай ",{"$f":"NOT(ISERROR(SEARCH($B$2,tblData[[#This Row],[Город]])))","v":true},{"$f":"IF(tblData[[#This Row],[Статус]],COUNTIF($F$2:tblData[[#This Row],[Статус]],TRUE),\"\")","v":248},{"$f":"IFERROR(INDEX(tblData[Город],MATCH(ROWS($G$2:tblData[[#This Row],[Индекс]]),tblData[Индекс],0)),\"\")","v":"Ишимбай "}]
[null,null,null,null,"Зеленогорск ",{"$f":"NOT(ISERROR(SEARCH($B$2,tblData[[#This Row],[Город]])))","v":true},{"$f":"IF(tblData[[#This Row],[Статус]],COUNTIF($F$2:tblData[[#This Row],[Статус]],TRUE),\"\")","v":249},{"$f":"IFERROR(INDEX(tblData[Город],MATCH(ROWS($G$2:tblData[[#This Row],[Индекс]]),tblData[Индекс],0)),\"\")","v":"Зеленогорск "}]
[null,null,null,null,"Сосновый Бор ",{"$f":"NOT(ISERROR(SEARCH($B$2,tblData[[#This Row],[Город]])))","v":true},{"$f":"IF(tblData[[#This Row],[Статус]],COUNTIF($F$2:tblData[[#This Row],[Статус]],TRUE),\"\")","v":250},{"$f":"IFERROR(INDEX(tblData[Город],MATCH(ROWS($G$2:tblData[[#This Row],[Индекс]]),tblData[Индекс],0)),\"\")","v":"Сосновый Бор "}]
[null,null,null,null,"Буйнакск ",{"$f":"NOT(ISERROR(SEARCH($B$2,tblData[[#This Row],[Город]])))","v":true},{"$f":"IF(tblData[[#This Row],[Статус]],COUNTIF($F$2:tblData[[#This Row],[Статус]],TRUE),\"\")","v":251},{"$f":"IFERROR(INDEX(tblData[Город],MATCH(ROWS($G$2:tblData[[#This Row],[Индекс]]),tblData[Индекс],0)),\"\")","v":"Буйнакск "}]
[null,null,null,null,"Борисоглебск ",{"$f":"NOT(ISERROR(SEARCH($B$2,tblData[[#This Row],[Город]])))","v":true},{"$f":"IF(tblData[[#This Row],[Статус]],COUNTIF($F$2:tblData[[#This Row],[Статус]],TRUE),\"\")","v":252},{"$f":"IFERROR(INDEX(tblData[Город],MATCH(ROWS($G$2:tblData[[#This Row],[Индекс]]),tblData[Индекс],0)),\"\")","v":"Борисоглебск "}]
[null,null,null,null,"Наро-Фоминск ",{"$f":"NOT(ISERROR(SEARCH($B$2,tblData[[#This Row],[Город]])))","v":true},{"$f":"IF(tblData[[#This Row],[Статус]],COUNTIF($F$2:tblData[[#This Row],[Статус]],TRUE),\"\")","v":253},{"$f":"IFERROR(INDEX(tblData[Город],MATCH(ROWS($G$2:tblData[[#This Row],[Индекс]]),tblData[Индекс],0)),\"\")","v":"Наро-Фоминск "}]
[null,null,null,null,"Будённовск ",{"$f":"NOT(ISERROR(SEARCH($B$2,tblData[[#This Row],[Город]])))","v":true},{"$f":"IF(tblData[[#This Row],[Статус]],COUNTIF($F$2:tblData[[#This Row],[Статус]],TRUE),\"\")","v":254},{"$f":"IFERROR(INDEX(tblData[Город],MATCH(ROWS($G$2:tblData[[#This Row],[Индекс]]),tblData[Индекс],0)),\"\")","v":"Будённовск "}]
[null,null,null,null,"Донской ",{"$f":"NOT(ISERROR(SEARCH($B$2,tblData[[#This Row],[Город]])))","v":true},{"$f":"IF(tblData[[#This Row],[Статус]],COUNTIF($F$2:tblData[[#This Row],[Статус]],TRUE),\"\")","v":255},{"$f":"IFERROR(INDEX(tblData[Город],MATCH(ROWS($G$2:tblData[[#This Row],[Индекс]]),tblData[Индекс],0)),\"\")","v":"Донской "}]
[null,null,null,null,"Полевской ",{"$f":"NOT(ISERROR(SEARCH($B$2,tblData[[#This Row],[Город]])))","v":true},{"$f":"IF(tblData[[#This Row],[Статус]],COUNTIF($F$2:tblData[[#This Row],[Статус]],TRUE),\"\")","v":256},{"$f":"IFERROR(INDEX(tblData[Город],MATCH(ROWS($G$2:tblData[[#This Row],[Индекс]]),tblData[Индекс],0)),\"\")","v":"Полевской "}]
[null,null,null,null,"Лениногорск ",{"$f":"NOT(ISERROR(SEARCH($B$2,tblData[[#This Row],[Город]])))","v":true},{"$f":"IF(tblData[[#This Row],[Статус]],COUNTIF($F$2:tblData[[#This Row],[Статус]],TRUE),\"\")","v":257},{"$f":"IFERROR(INDEX(tblData[Город],MATCH(ROWS($G$2:tblData[[#This Row],[Индекс]]),tblData[Индекс],0)),\"\")","v":"Лениногорск "}]
[null,null,null,null,"Павловский Посад ",{"$f":"NOT(ISERROR(SEARCH($B$2,tblData[[#This Row],[Город]])))","v":true},{"$f":"IF(tblData[[#This Row],[Статус]],COUNTIF($F$2:tblData[[#This Row],[Статус]],TRUE),\"\")","v":258},{"$f":"IFERROR(INDEX(tblData[Город],MATCH(ROWS($G$2:tblData[[#This Row],[Индекс]]),tblData[Индекс],0)),\"\")","v":"Павловский Посад "}]
[null,null,null,null,"Славянск-на-Кубани ",{"$f":"NOT(ISERROR(SEARCH($B$2,tblData[[#This Row],[Город]])))","v":true},{"$f":"IF(tblData[[#This Row],[Статус]],COUNTIF($F$2:tblData[[#This Row],[Статус]],TRUE),\"\")","v":259},{"$f":"IFERROR(INDEX(tblData[Город],MATCH(ROWS($G$2:tblData[[#This Row],[Индекс]]),tblData[Индекс],0)),\"\")","v":"Славянск-на-Кубани "}]
[null,null,null,null,"Заречный ",{"$f":"NOT(ISERROR(SEARCH($B$2,tblData[[#This Row],[Город]])))","v":true},{"$f":"IF(tblData[[#This Row],[Статус]],COUNTIF($F$2:tblData[[#This Row],[Статус]],TRUE),\"\")","v":260},{"$f":"IFERROR(INDEX(tblData[Город],MATCH(ROWS($G$2:tblData[[#This Row],[Индекс]]),tblData[Индекс],0)),\"\")","v":"Заречный "}]
[null,null,null,null,"Туапсе ",{"$f":"NOT(ISERROR(SEARCH($B$2,tblData[[#This Row],[Город]])))","v":true},{"$f":"IF(tblData[[#This Row],[Статус]],COUNTIF($F$2:tblData[[#This Row],[Статус]],TRUE),\"\")","v":261},{"$f":"IFERROR(INDEX(tblData[Город],MATCH(ROWS($G$2:tblData[[#This Row],[Индекс]]),tblData[Индекс],0)),\"\")","v":"Туапсе "}]
[null,null,null,null,"Россошь ",{"$f":"NOT(ISERROR(SEARCH($B$2,tblData[[#This Row],[Город]])))","v":true},{"$f":"IF(tblData[[#This Row],[Статус]],COUNTIF($F$2:tblData[[#This Row],[Статус]],TRUE),\"\")","v":262},{"$f":"IFERROR(INDEX(tblData[Город],MATCH(ROWS($G$2:tblData[[#This Row],[Индекс]]),tblData[Индекс],0)),\"\")","v":"Россошь "}]
[null,null,null,null,"Кумертау ",{"$f":"NOT(ISERROR(SEARCH($B$2,tblData[[#This Row],[Город]])))","v":true},{"$f":"IF(tblData[[#This Row],[Статус]],COUNTIF($F$2:tblData[[#This Row],[Статус]],TRUE),\"\")","v":263},{"$f":"IFERROR(INDEX(tblData[Город],MATCH(ROWS($G$2:tblData[[#This Row],[Индекс]]),tblData[Индекс],0)),\"\")","v":"Кумертау "}]
[null,null,null,null,"Лабинск ",{"$f":"NOT(ISERROR(SEARCH($B$2,tblData[[#This Row],[Город]])))","v":true},{"$f":"IF(tblData[[#This Row],[Статус]],COUNTIF($F$2:tblData[[#This Row],[Статус]],TRUE),\"\")","v":264},{"$f":"IFERROR(INDEX(tblData[Город],MATCH(ROWS($G$2:tblData[[#This Row],[Индекс]]),tblData[Индекс],0)),\"\")","v":"Лабинск "}]
[null,null,null,null,"Сибай ",{"$f":"NOT(ISERROR(SEARCH($B$2,tblData[[#This Row],[Город]])))","v":true},{"$f":"IF(tblData[[#This Row],[Статус]],COUNTIF($F$2:tblData[[#This Row],[Статус]],TRUE),\"\")","v":265},{"$f":"IFERROR(INDEX(tblData[Город],MATCH(ROWS($G$2:tblData[[#This Row],[Индекс]]),tblData[Индекс],0)),\"\")","v":"Сибай "}]
[null,null,null,null,"Клинцы ",{"$f":"NOT(ISERROR(SEARCH($B$2,tblData[[#This Row],[Город]])))","v":true},{"$f":"IF(tblData[[#This Row],[Статус]],COUNTIF($F$2:tblData[[#This Row],[Статус]],TRUE),\"\")","v":266},{"$f":"IFERROR(INDEX(tblData[Город],MATCH(ROWS($G$2:tblData[[#This Row],[Индекс]]),tblData[Индекс],0)),\"\")","v":"Клинцы "}]
[null,null,null,null,"Ржев ",{"$f":"NOT(ISERROR(SEARCH($B$2,tblData[[#This Row],[Город]])))","v":true},{"$f":"IF(tblData[[#This Row],[Статус]],COUNTIF($F$2:tblData[[#This Row],[Статус]],TRUE),\"\")","v":267},{"$f":"IFERROR(INDEX(tblData[Город],MATCH(ROWS($G$2:tblData[[#This Row],[Индекс]]),tblData[Индекс],0)),\"\")","v":"Ржев "}]
[null,null,null,null,"Тихорецк ",{"$f":"NOT(ISERROR(SEARCH($B$2,tblData[[#This Row],[Город]])))","v":true},{"$f":"IF(tblData[[#This Row],[Статус]],COUNTIF($F$2:tblData[[#This Row],[Статус]],TRUE),\"\")","v":268},{"$f":"IFERROR(INDEX(tblData[Город],MATCH(ROWS($G$2:tblData[[#This Row],[Индекс]]),tblData[Индекс],0)),\"\")","v":"Тихорецк "}]
[null,null,null,null,"Нерюнгри ",{"$f":"NOT(ISERROR(SEARCH($B$2,tblData[[#This Row],[Город]])))","v":true},{"$f":"IF(tblData[[#This Row],[Статус]],COUNTIF($F$2:tblData[[#This Row],[Статус]],TRUE),\"\")","v":269},{"$f":"IFERROR(INDEX(tblData[Город],MATCH(ROWS($G$2:tblData[[#This Row],[Индекс]]),tblData[Индекс],0)),\"\")","v":"Нерюнгри "}]
[null,null,null,null,"Алексин ",{"$f":"NOT(ISERROR(SEARCH($B$2,tblData[[#This Row],[Город]])))","v":true},{"$f":"IF(tblData[[#This Row],[Статус]],COUNTIF($F$2:tblData[[#This Row],[Статус]],TRUE),\"\")","v":270},{"$f":"IFERROR(INDEX(tblData[Город],MATCH(ROWS($G$2:tblData[[#This Row],[Индекс]]),tblData[Индекс],0)),\"\")","v":"Алексин "}]
[null,null,null,null,"Ревда ",{"$f":"NOT(ISERROR(SEARCH($B$2,tblData[[#This Row],[Город]])))","v":true},{"$f":"IF(tblData[[#This Row],[Статус]],COUNTIF($F$2:tblData[[#This Row],[Статус]],TRUE),\"\")","v":271},{"$f":"IFERROR(INDEX(tblData[Город],MATCH(ROWS($G$2:tblData[[#This Row],[Индекс]]),tblData[Индекс],0)),\"\")","v":"Ревда "}]
[null,null,null,null,"Александров ",{"$f":"NOT(ISERROR(SEARCH($B$2,tblData[[#This Row],[Город]])))","v":true},{"$f":"IF(tblData[[#This Row],[Статус]],COUNTIF($F$2:tblData[[#This Row],[Статус]],TRUE),\"\")","v":272},{"$f":"IFERROR(INDEX(tblData[Город],MATCH(ROWS($G$2:tblData[[#This Row],[Индекс]]),tblData[Индекс],0)),\"\")","v":"Александров "}]
[null,null,null,null,"Дмитров ",{"$f":"NOT(ISERROR(SEARCH($B$2,tblData[[#This Row],[Город]])))","v":true},{"$f":"IF(tblData[[#This Row],[Статус]],COUNTIF($F$2:tblData[[#This Row],[Статус]],TRUE),\"\")","v":273},{"$f":"IFERROR(INDEX(tblData[Город],MATCH(ROWS($G$2:tblData[[#This Row],[Индекс]]),tblData[Индекс],0)),\"\")","v":"Дмитров "}]
[null,null,null,null,"Мелеуз ",{"$f":"NOT(ISERROR(SEARCH($B$2,tblData[[#This Row],[Город]])))","v":true},{"$f":"IF(tblData[[#This Row],[Статус]],COUNTIF($F$2:tblData[[#This Row],[Статус]],TRUE),\"\")","v":274},{"$f":"IFERROR(INDEX(tblData[Город],MATCH(ROWS($G$2:tblData[[#This Row],[Индекс]]),tblData[Индекс],0)),\"\")","v":"Мелеуз "}]
[null,null,null,null,"Сальск ",{"$f":"NOT(ISERROR(SEARCH($B$2,tblData[[#This Row],[Город]])))","v":true},{"$f":"IF(tblData[[#This Row],[Статус]],COUNTIF($F$2:tblData[[#This Row],[Статус]],TRUE),\"\")","v":275},{"$f":"IFERROR(INDEX(tblData[Город],MATCH(ROWS($G$2:tblData[[#This Row],[Индекс]]),tblData[Индекс],0)),\"\")","v":"Сальск "}]
[null,null,null,null,"Лесосибирск ",{"$f":"NOT(ISERROR(SEARCH($B$2,tblData[[#This Row],[Город]])))","v":true},{"$f":"IF(tblData[[#This Row],[Статус]],COUNTIF($F$2:tblData[[#This Row],[Статус]],TRUE),\"\")","v":276},{"$f":"IFERROR(INDEX(tblData[Город],MATCH(ROWS($G$2:tblData[[#This Row],[Индекс]]),tblData[Индекс],0)),\"\")","v":"Лесосибирск "}]
[null,null,null,null,"Гусь-Хрустальный ",{"$f":"NOT(ISERROR(SEARCH($B$2,tblData[[#This Row],[Город]])))","v":true},{"$f":"IF(tblData[[#This Row],[Статус]],COUNTIF($F$2:tblData[[#This Row],[Статус]],TRUE),\"\")","v":277},{"$f":"IFERROR(INDEX(tblData[Город],MATCH(ROWS($G$2:tblData[[#This Row],[Индекс]]),tblData[Индекс],0)),\"\")","v":"Гусь-Хрустальный "}]
[null,null,null,null,"Чистополь ",{"$f":"NOT(ISERROR(SEARCH($B$2,tblData[[#This Row],[Город]])))","v":true},{"$f":"IF(tblData[[#This Row],[Статус]],COUNTIF($F$2:tblData[[#This Row],[Статус]],TRUE),\"\")","v":278},{"$f":"IFERROR(INDEX(tblData[Город],MATCH(ROWS($G$2:tblData[[#This Row],[Индекс]]),tblData[Индекс],0)),\"\")","v":"Чистополь "}]
[null,null,null,null,"Павлово ",{"$f":"NOT(ISERROR(SEARCH($B$2,tblData[[#This Row],[Город]])))","v":true},{"$f":"IF(tblData[[#This Row],[Статус]],COUNTIF($F$2:tblData[[#This Row],[Статус]],TRUE),\"\")","v":279},{"$f":"IFERROR(INDEX(tblData[Город],MATCH(ROWS($G$2:tblData[[#This Row],[Индекс]]),tblData[Индекс],0)),\"\")","v":"Павлово "}]
[null,null,null,null,"Чехов ",{"$f":"NOT(ISERROR(SEARCH($B$2,tblData[[#This Row],[Город]])))","v":true},{"$f":"IF(tblData[[#This Row],[Статус]],COUNTIF($F$2:tblData[[#This Row],[Статус]],TRUE),\"\")","v":280},{"$f":"IFERROR(INDEX(tblData[Город],MATCH(ROWS($G$2:tblData[[#This Row],[Индекс]]),tblData[Индекс],0)),\"\")","v":"Чехов "}]
[null,null,null,null,"Котлас ",{"$f":"NOT(ISERROR(SEARCH($B$2,tblData[[#This Row],[Город]])))","v":true},{"$f":"IF(tblData[[#This Row],[Статус]],COUNTIF($F$2:tblData[[#This Row],[Статус]],TRUE),\"\")","v":281},{"$f":"IFERROR(INDEX(tblData[Город],MATCH(ROWS($G$2:tblData[[#This Row],[Индекс]]),tblData[Индекс],0)),\"\")","v":"Котлас "}]
[null,null,null,null,"Белебей ",{"$f":"NOT(ISERROR(SEARCH($B$2,tblData[[#This Row],[Город]])))","v":true},{"$f":"IF(tblData[[#This Row],[Статус]],COUNTIF($F$2:tblData[[#This Row],[Статус]],TRUE),\"\")","v":282},{"$f":"IFERROR(INDEX(tblData[Город],MATCH(ROWS($G$2:tblData[[#This Row],[Индекс]]),tblData[Индекс],0)),\"\")","v":"Белебей "}]
[null,null,null,null,"Искитим ",{"$f":"NOT(ISERROR(SEARCH($B$2,tblData[[#This Row],[Город]])))","v":true},{"$f":"IF(tblData[[#This Row],[Статус]],COUNTIF($F$2:tblData[[#This Row],[Статус]],TRUE),\"\")","v":283},{"$f":"IFERROR(INDEX(tblData[Город],MATCH(ROWS($G$2:tblData[[#This Row],[Индекс]]),tblData[Индекс],0)),\"\")","v":"Искитим "}]
[null,null,null,null,"Краснотурьинск ",{"$f":"NOT(ISERROR(SEARCH($B$2,tblData[[#This Row],[Город]])))","v":true},{"$f":"IF(tblData[[#This Row],[Статус]],COUNTIF($F$2:tblData[[#This Row],[Статус]],TRUE),\"\")","v":284},{"$f":"IFERROR(INDEX(tblData[Город],MATCH(ROWS($G$2:tblData[[#This Row],[Индекс]]),tblData[Индекс],0)),\"\")","v":"Краснотурьинск "}]
[null,null,null,null,"Апатиты ",{"$f":"NOT(ISERROR(SEARCH($B$2,tblData[[#This Row],[Город]])))","v":true},{"$f":"IF(tblData[[#This Row],[Статус]],COUNTIF($F$2:tblData[[#This Row],[Статус]],TRUE),\"\")","v":285},{"$f":"IFERROR(INDEX(tblData[Город],MATCH(ROWS($G$2:tblData[[#This Row],[Индекс]]),tblData[Индекс],0)),\"\")","v":"Апатиты "}]
[null,null,null,null,"Всеволожск ",{"$f":"NOT(ISERROR(SEARCH($B$2,tblData[[#This Row],[Город]])))","v":true},{"$f":"IF(tblData[[#This Row],[Статус]],COUNTIF($F$2:tblData[[#This Row],[Статус]],TRUE),\"\")","v":286},{"$f":"IFERROR(INDEX(tblData[Город],MATCH(ROWS($G$2:tblData[[#This Row],[Индекс]]),tblData[Индекс],0)),\"\")","v":"Всеволожск "}]
[null,null,null,null,"Прохладный ",{"$f":"NOT(ISERROR(SEARCH($B$2,tblData[[#This Row],[Город]])))","v":true},{"$f":"IF(tblData[[#This Row],[Статус]],COUNTIF($F$2:tblData[[#This Row],[Статус]],TRUE),\"\")","v":287},{"$f":"IFERROR(INDEX(tblData[Город],MATCH(ROWS($G$2:tblData[[#This Row],[Индекс]]),tblData[Индекс],0)),\"\")","v":"Прохладный "}]
[null,null,null,null,"Михайловка ",{"$f":"NOT(ISERROR(SEARCH($B$2,tblData[[#This Row],[Город]])))","v":true},{"$f":"IF(tblData[[#This Row],[Статус]],COUNTIF($F$2:tblData[[#This Row],[Статус]],TRUE),\"\")","v":288},{"$f":"IFERROR(INDEX(tblData[Город],MATCH(ROWS($G$2:tblData[[#This Row],[Индекс]]),tblData[Индекс],0)),\"\")","v":"Михайловка "}]
[null,null,null,null,"Анапа ",{"$f":"NOT(ISERROR(SEARCH($B$2,tblData[[#This Row],[Город]])))","v":true},{"$f":"IF(tblData[[#This Row],[Статус]],COUNTIF($F$2:tblData[[#This Row],[Статус]],TRUE),\"\")","v":289},{"$f":"IFERROR(INDEX(tblData[Город],MATCH(ROWS($G$2:tblData[[#This Row],[Индекс]]),tblData[Индекс],0)),\"\")","v":"Анапа "}]
[null,null,null,null,"Тихвин ",{"$f":"NOT(ISERROR(SEARCH($B$2,tblData[[#This Row],[Город]])))","v":true},{"$f":"IF(tblData[[#This Row],[Статус]],COUNTIF($F$2:tblData[[#This Row],[Статус]],TRUE),\"\")","v":290},{"$f":"IFERROR(INDEX(tblData[Город],MATCH(ROWS($G$2:tblData[[#This Row],[Индекс]]),tblData[Индекс],0)),\"\")","v":"Тихвин "}]
[null,null,null,null,"Верхняя Пышма ",{"$f":"NOT(ISERROR(SEARCH($B$2,tblData[[#This Row],[Город]])))","v":true},{"$f":"IF(tblData[[#This Row],[Статус]],COUNTIF($F$2:tblData[[#This Row],[Статус]],TRUE),\"\")","v":291},{"$f":"IFERROR(INDEX(tblData[Город],MATCH(ROWS($G$2:tblData[[#This Row],[Индекс]]),tblData[Индекс],0)),\"\")","v":"Верхняя Пышма "}]
[null,null,null,null,"Свободный ",{"$f":"NOT(ISERROR(SEARCH($B$2,tblData[[#This Row],[Город]])))","v":true},{"$f":"IF(tblData[[#This Row],[Статус]],COUNTIF($F$2:tblData[[#This Row],[Статус]],TRUE),\"\")","v":292},{"$f":"IFERROR(INDEX(tblData[Город],MATCH(ROWS($G$2:tblData[[#This Row],[Индекс]]),tblData[Индекс],0)),\"\")","v":"Свободный "}]
[null,null,null,null,"Ивантеевка ",{"$f":"NOT(ISERROR(SEARCH($B$2,tblData[[#This Row],[Город]])))","v":true},{"$f":"IF(tblData[[#This Row],[Статус]],COUNTIF($F$2:tblData[[#This Row],[Статус]],TRUE),\"\")","v":293},{"$f":"IFERROR(INDEX(tblData[Город],MATCH(ROWS($G$2:tblData[[#This Row],[Индекс]]),tblData[Индекс],0)),\"\")","v":"Ивантеевка "}]
[null,null,null,null,"Шуя ",{"$f":"NOT(ISERROR(SEARCH($B$2,tblData[[#This Row],[Город]])))","v":true},{"$f":"IF(tblData[[#This Row],[Статус]],COUNTIF($F$2:tblData[[#This Row],[Статус]],TRUE),\"\")","v":294},{"$f":"IFERROR(INDEX(tblData[Город],MATCH(ROWS($G$2:tblData[[#This Row],[Индекс]]),tblData[Индекс],0)),\"\")","v":"Шуя "}]
[null,null,null,null,"Когалым ",{"$f":"NOT(ISERROR(SEARCH($B$2,tblData[[#This Row],[Город]])))","v":true},{"$f":"IF(tblData[[#This Row],[Статус]],COUNTIF($F$2:tblData[[#This Row],[Статус]],TRUE),\"\")","v":295},{"$f":"IFERROR(INDEX(tblData[Город],MATCH(ROWS($G$2:tblData[[#This Row],[Индекс]]),tblData[Индекс],0)),\"\")","v":"Когалым "}]
[null,null,null,null,"Щёкино ",{"$f":"NOT(ISERROR(SEARCH($B$2,tblData[[#This Row],[Город]])))","v":true},{"$f":"IF(tblData[[#This Row],[Статус]],COUNTIF($F$2:tblData[[#This Row],[Статус]],TRUE),\"\")","v":296},{"$f":"IFERROR(INDEX(tblData[Город],MATCH(ROWS($G$2:tblData[[#This Row],[Индекс]]),tblData[Индекс],0)),\"\")","v":"Щёкино "}]
[null,null,null,null,"Жигулёвск ",{"$f":"NOT(ISERROR(SEARCH($B$2,tblData[[#This Row],[Город]])))","v":true},{"$f":"IF(tblData[[#This Row],[Статус]],COUNTIF($F$2:tblData[[#This Row],[Статус]],TRUE),\"\")","v":297},{"$f":"IFERROR(INDEX(tblData[Город],MATCH(ROWS($G$2:tblData[[#This Row],[Индекс]]),tblData[Индекс],0)),\"\")","v":"Жигулёвск "}]
[null,null,null,null,"Крымск ",{"$f":"NOT(ISERROR(SEARCH($B$2,tblData[[#This Row],[Город]])))","v":true},{"$f":"IF(tblData[[#This Row],[Статус]],COUNTIF($F$2:tblData[[#This Row],[Статус]],TRUE),\"\")","v":298},{"$f":"IFERROR(INDEX(tblData[Город],MATCH(ROWS($G$2:tblData[[#This Row],[Индекс]]),tblData[Индекс],0)),\"\")","v":"Крымск "}]
[null,null,null,null,"Вязьма ",{"$f":"NOT(ISERROR(SEARCH($B$2,tblData[[#This Row],[Город]])))","v":true},{"$f":"IF(tblData[[#This Row],[Статус]],COUNTIF($F$2:tblData[[#This Row],[Статус]],TRUE),\"\")","v":299},{"$f":"IFERROR(INDEX(tblData[Город],MATCH(ROWS($G$2:tblData[[#This Row],[Индекс]]),tblData[Индекс],0)),\"\")","v":"Вязьма "}]
[null,null,null,null,"Горно-Алтайск ",{"$f":"NOT(ISERROR(SEARCH($B$2,tblData[[#This Row],[Город]])))","v":true},{"$f":"IF(tblData[[#This Row],[Статус]],COUNTIF($F$2:tblData[[#This Row],[Статус]],TRUE),\"\")","v":300},{"$f":"IFERROR(INDEX(tblData[Город],MATCH(ROWS($G$2:tblData[[#This Row],[Индекс]]),tblData[Индекс],0)),\"\")","v":"Горно-Алтайск "}]